Workbook

Sheet 1. INFORMACION ACUMULADA
A2: VEEDURIA DISTRITAL - INFORMACIÓN GESTION CONTRACTUAL
A3: DEL 1 DE ENERO AL 31 DE DICIEMBRE DE 2022
A5: 1. Entidad | H5: 2. Sector
A6: 3. Presupuesto Disponible Inversión Directa PREDIS (BOGDATA) | E6: 23798995200 | H6: 5. Presupuesto Disponible Funcionamiento PREDIS (BOGDATA) | I6: 3365291490 | AI6: 7. Nombre de quien diligencia el formato | AK6: MAYRA CABARCAS
A7: 4. Presupuesto Comprometido de Inversión Directa según PREDIS (BOGDATA) | E7: 23634885718 | H7: 6. Presupuesto Comprometido Funcionamiento según PREDIS (BOGDATA) | I7: 2270726514 | AI7: Cargo | AK7: APOYO ADMINISTRATIVO
AI8: Dependencia | AK8: CONTRATACION
AI9: Teléfono | AK9: 3024119457
AI10: Correo Electrónico | AK10: mayra.cabarcas@gobiernobogota.gov.co
A11: 1- INFORMACION GENERAL | V11: 2- INFORMACION FINANCIERA | AC11: 3 - PLAZOS | AI11: 4. CESION | AM11: 5. ESTADO | AN11: 6. % Avance y/o cumplimiento
A12: 1 | B12: 2 | C12: 3 | E12: 4 | F12: 5 | G12: 6 | H12: 7 | I12: 8 | N12: 9 | O12: 10 | P12: 11 | V12: 12 | W12: 13 | X12: 14 | Y12: 15 | Z12: 16 | AA12: 17 | AB12: 18 | AC12: 19 | AD12: 20 | AE12: 21 | AF12: 22 | AG12: 23 | AH12: 24 | AI12: 25 | AJ12: 26 | AK12: 27 | AL12: 28 | AM12: 29 | AN12: 30
A13: Número Contrato | B13: Año | C13: Número de proceso contractual SECOP | D13: Link proceso SECOP | E13: Tipo de contrato | F13: Modalidad de Selección | G13: Procedimiento o causal | H13: Objeto | I13: Afectación | J13: Plan de Desarrollo Distrital | K13: Número Programa | L13: Equivalencia número de programa | M13: Propósito | N13: Número Proyecto | O13: Número de proponentes | P13: Número de Identificación del contratista (Cédula o NIT sin puntos, comas ni caracteres especiales y sin digito de verificación) | Q13: Nombre del contratista (según el caso: nombres y apellidos o Razón social y Tipo societario) | R13: Naturaleza Jurídica | S13: Número de Identificación del integrante del Consorcio o U.T. (Cédula o NIT sin puntos, comas ni caracteres especiales y sin digito de verificación) | T13: Nombre del Integrante del Consorcio o U.T. y Tipo societario (Según el caso: nombres y apellidos o razón social y tipo societario) | U13: % Participación (indicar solo el numero del porcentaje, sin caracteres especiales) | V13: Vigencias futuras | W13: Valor Inicial del contrato | X13: Valor total reducciones (En valor negativo) | Y13: Número de adiciones | Z13: Valor total de adiciones | AA13: Valor Final | AB13: Giros (Valor en pesos) | AC13: Fecha de suscripción (DD/MM/AAAA) | AD13: Fecha de inicio (DD/MM/AAAA) | AE13: Fecha de terminación (DD/MM/AAAA) | AF13: Plazo en días | AG13: Número de prórrogas | AH13: Prorroga en días | AI13: Número de Identificación del cesionario (NIT sin digito de verificación) | AJ13: Nombre cesionario | AK13: Fecha cesión (DD/MM/AAAA) | AL13: Valor cesión | AM13: Estado | AN13: % Avance y/o Cumplimiento
A14: 001-2022 | B14: 2022 | C14: FDLM-001-2022 | D14: https://community.secop.gov.co/Public/Tendering/OpportunityDetail/Index?noticeUID=CO1.NTC.2554077&isFromPublicArea=True&isModal=False | E14: Contratos de prestación de servicios profesionales y de apoyo a la gestión | F14: Contratación directa | G14: Prestación de servicios profesionales y de apoyo a la gestión, o para la ejecución de trabajos artísticos que sólo puedan encomendarse a determinadas personas naturales | H14: PRESTAR LOS SERVICIOS PROFESIONALES ADMINISTRATIVOS AL FONDO DE DESARROLLO LOCAL EN EL FORTALECIMIENTO DE LAS ETAPAS DE LA GESTIÓN PÚBLICA CONTRACTUAL, EN CUMPLIMIENTO DEL PLAN DE DESARROLLO LOCAL VIGENTE. | I14: Inversión | J14: Un nuevo contrato social y ambiental para la Bogotá del Siglo XXI | K14: 3 | L14: =IF(ISERROR(VLOOKUP(K14,Proposito_programa!$C$2:$E$59,2,FALSE))," ",VLOOKUP(K14,Proposito_programa!$C$2:$E$59,2,FALSE)) -> Movilidad social integral | M14: =IF(ISERROR(VLOOKUP(K14,Proposito_programa!$C$2:$E$59,3,FALSE))," ",VLOOKUP(K14,Proposito_programa!$C$2:$E$59,3,FALSE)) -> Propósito 1: Hacer un nuevo contrato social para incrementar la inclusión social, productiva y política | N14: O23011605570000002099 | O14: 0 | P14: 80849721 | Q14: JACK CRISTOPHER REINA RODRIGUEZ | R14: Persona Natural | S14: N/A | T14: N/A | U14: N/A | V14: 2022 | W14: 42000000 | Y14: 1 | Z14: 4554000 | AA14: =+W14+X14+Z14 -> 46554000 | AB14: =+X14+Y14+AA14 -> 46554001 | AC14: 2022-01-14 | AD14: 2022-01-17 | AE14: 2022-07-16 | AF14: 6 Meses | AG14: 1 | AH14: 60 | AI14: 9147584 | AJ14: JORGE CONTRERAS ROJAS | AK14: 2022-04-11 | AM14: Terminado | AN14: =IF(ISERROR(AB14/AA14),"-",(AB14/AA14)) -> 1.000000021
A15: 002-2022 | B15: 2022 | C15: FDLM-002-2022 | D15: https://community.secop.gov.co/Public/Tendering/OpportunityDetail/Index?noticeUID=CO1.NTC.2556487&isFromPublicArea=True&isModal=False | E15: Contratos de prestación de servicios profesionales y de apoyo a la gestión | F15: Contratación directa | G15: Prestación de servicios profesionales y de apoyo a la gestión, o para la ejecución de trabajos artísticos que sólo puedan encomendarse a determinadas personas naturales | H15: PRESTACIÓN DE SERVICIOS PROFESIONALES AL FONDO DE DESARROLLO LOCAL EN EL FORTALECIMIENTO DE LAS ETAPAS DE LA GESTIÓN PÚBLICA CONTRACTUAL, EN CUMPLIMIENTO DEL PLAN DE DESARROLLO LOCAL VIGENTE. | I15: Inversión | J15: Un nuevo contrato social y ambiental para la Bogotá del Siglo XXI | K15: 3 | L15: =IF(ISERROR(VLOOKUP(K15,Proposito_programa!$C$2:$E$59,2,FALSE))," ",VLOOKUP(K15,Proposito_programa!$C$2:$E$59,2,FALSE)) -> Movilidad social integral | M15: =IF(ISERROR(VLOOKUP(K15,Proposito_programa!$C$2:$E$59,3,FALSE))," ",VLOOKUP(K15,Proposito_programa!$C$2:$E$59,3,FALSE)) -> Propósito 1: Hacer un nuevo contrato social para incrementar la inclusión social, productiva y política | N15: O23011605570000002099 | O15: 0 | P15: 1018406496 | Q15: MARGARITA RICO PINTO | R15: Persona Natural | S15: N/A | T15: N/A | U15: N/A | V15: 2022 | W15: 42000000 | Y15: 1 | Z15: 15000000 | AA15: 57000000 | AB15: 57000001 | AC15: 2022-01-14 | AD15: 2022-01-18 | AE15: 2022-10-17 | AF15: 9 Meses | AG15: 1 | AH15: 90 | AI15: 1032400188 | AJ15: DANIEL RAFFAN RODRIGUEZ RAMIREZ | AK15: 2022-04-11 | AM15: Terminado | AN15: 1.000000018
A16: 003-2022 | B16: 2022 | C16: FDLM-003-2022 | D16: https://community.secop.gov.co/Public/Tendering/OpportunityDetail/Index?noticeUID=CO1.NTC.2563705&isFromPublicArea=True&isModal=False | E16: Contratos de prestación de servicios profesionales y de apoyo a la gestión | F16: Contratación directa | G16: Prestación de servicios profesionales y de apoyo a la gestión, o para la ejecución de trabajos artísticos que sólo puedan encomendarse a determinadas personas naturales | H16: PRESTACIÓN DE SERVICIOS PROFESIONALES AL FONDO DE DESARROLLO LOCAL EN EL FORTALECIMIENTO DE LAS ETAPAS DE LA GESTIÓN PÚBLICA CONTRACTUAL, EN CUMPLIMIENTO DEL PLAN DE DESARROLLO LOCAL VIGENTE. | I16: Inversión | J16: Un nuevo contrato social y ambiental para la Bogotá del Siglo XXI | K16: 3 | L16: =IF(ISERROR(VLOOKUP(K16,Proposito_programa!$C$2:$E$59,2,FALSE))," ",VLOOKUP(K16,Proposito_programa!$C$2:$E$59,2,FALSE)) -> Movilidad social integral | M16: =IF(ISERROR(VLOOKUP(K16,Proposito_programa!$C$2:$E$59,3,FALSE))," ",VLOOKUP(K16,Proposito_programa!$C$2:$E$59,3,FALSE)) -> Propósito 1: Hacer un nuevo contrato social para incrementar la inclusión social, productiva y política | N16: O23011605570000002099 | O16: 0 | P16: 52883374 | Q16: DIANA CAROLINA SÁNCHEZ CASTILLO | R16: Persona Natural | S16: N/A | T16: N/A | U16: N/A | V16: 2022 | W16: 49500000 | Y16: 1 | Z16: 10000000 | AA16: 59500000 | AB16: 59500001 | AC16: 2022-01-14 | AD16: 2022-01-17 | AE16: 2022-10-16 | AF16: 9 meses | AG16: 1 | AH16: 60 | AM16: Terminado | AN16: 1.000000017
A17: 004-2022 | B17: 2022 | C17: FDLM-004-2022 | D17: https://community.secop.gov.co/Public/Tendering/OpportunityDetail/Index?noticeUID=CO1.NTC.2555131&isFromPublicArea=True&isModal=False | E17: Contratos de prestación de servicios profesionales y de apoyo a la gestión | F17: Contratación directa | G17: Prestación de servicios profesionales y de apoyo a la gestión, o para la ejecución de trabajos artísticos que sólo puedan encomendarse a determinadas personas naturales | H17: PRESTACIÓN DE SERVICIOS PROFESIONALES AL FONDO DE DESARROLLO LOCAL EN EL FORTALECIMIENTO DE LAS ETAPAS DE LA GESTIÓN PÚBLICA CONTRACTUAL, EN CUMPLIMIENTO DEL PLAN DE DESARROLLO LOCAL VIGENTE. | I17: Inversión | J17: Un nuevo contrato social y ambiental para la Bogotá del Siglo XXI | K17: 3 | L17: =IF(ISERROR(VLOOKUP(K17,Proposito_programa!$C$2:$E$59,2,FALSE))," ",VLOOKUP(K17,Proposito_programa!$C$2:$E$59,2,FALSE)) -> Movilidad social integral | M17: =IF(ISERROR(VLOOKUP(K17,Proposito_programa!$C$2:$E$59,3,FALSE))," ",VLOOKUP(K17,Proposito_programa!$C$2:$E$59,3,FALSE)) -> Propósito 1: Hacer un nuevo contrato social para incrementar la inclusión social, productiva y política | N17: O23011605570000002099 | O17: 0 | P17: 7368660 | Q17: ALFONSO LUIS MONTES OTERO | R17: Persona Natural | S17: N/A | T17: N/A | U17: N/A | V17: 2022 | W17: 49500000 | Y17: 1 | Z17: 15000000 | AA17: 64500000 | AB17: 64500001 | AC17: 2022-01-14 | AD17: 2022-01-17 | AE17: 2022-10-16 | AF17: 9 Meses | AG17: 1 | AH17: 90 | AM17: Terminado | AN17: 1.000000016
A18: 005-2022 | B18: 2022 | C18: FDLM-005-2022 | D18: https://community.secop.gov.co/Public/Tendering/OpportunityDetail/Index?noticeUID=CO1.NTC.2564070&isFromPublicArea=True&isModal=False | E18: Contratos de prestación de servicios profesionales y de apoyo a la gestión | F18: Contratación directa | G18: Prestación de servicios profesionales y de apoyo a la gestión, o para la ejecución de trabajos artísticos que sólo puedan encomendarse a determinadas personas naturales | H18: PRESTACIÓN DE SERVICIOS PROFESIONALES AL FONDO DE DESARROLLO LOCAL EN EL FORTALECIMIENTO DE LAS ETAPAS DE LA GESTIÓN PÚBLICA CONTRACTUAL, EN CUMPLIMIENTO DEL PLAN DE DESARROLLO LOCAL VIGENTE. | I18: Inversión | J18: Un nuevo contrato social y ambiental para la Bogotá del Siglo XXI | K18: 3 | L18: =IF(ISERROR(VLOOKUP(K18,Proposito_programa!$C$2:$E$59,2,FALSE))," ",VLOOKUP(K18,Proposito_programa!$C$2:$E$59,2,FALSE)) -> Movilidad social integral | M18: =IF(ISERROR(VLOOKUP(K18,Proposito_programa!$C$2:$E$59,3,FALSE))," ",VLOOKUP(K18,Proposito_programa!$C$2:$E$59,3,FALSE)) -> Propósito 1: Hacer un nuevo contrato social para incrementar la inclusión social, productiva y política | N18: O23011605570000002099 | O18: 0 | P18: 1030523881 | Q18: HECTOR DUARTE MENDEZ | R18: Persona Natural | S18: N/A | T18: N/A | U18: N/A | V18: 2022 | W18: 49500000 | Y18: 1 | Z18: 15000000 | AA18: 64500000 | AB18: 64500001 | AC18: 2022-01-14 | AD18: 2022-01-17 | AE18: 2022-10-16 | AF18: 9 Meses | AG18: 1 | AH18: 90 | AI18: 80218395 | AJ18: FABIO LOTE PORTILLA | AK18: 2022-07-01 | AM18: Terminado | AN18: 1.000000016
A19: 006-2022 | B19: 2022 | C19: FDLM-006-2022 | D19: https://community.secop.gov.co/Public/Tendering/OpportunityDetail/Index?noticeUID=CO1.NTC.2556731&isFromPublicArea=True&isModal=False | E19: Contratos de prestación de servicios profesionales y de apoyo a la gestión | F19: Contratación directa | G19: Prestación de servicios profesionales y de apoyo a la gestión, o para la ejecución de trabajos artísticos que sólo puedan encomendarse a determinadas personas naturales | H19: APOYAR PROFESIONALMENTE AL ÁREA DE GESTIÓN DEL DESARROLLO DE LA ALCALDIA LOCAL DE LOS MARTIRES, EN LA EJECUCIÓN ADMINISTRATIVA Y FINANCIERA, PARA EL CUMPLIMIENTO DEL PLAN DE DESARROLLO LOCAL VIGENTE. | I19: Inversión | J19: Un nuevo contrato social y ambiental para la Bogotá del Siglo XXI | K19: 3 | L19: =IF(ISERROR(VLOOKUP(K19,Proposito_programa!$C$2:$E$59,2,FALSE))," ",VLOOKUP(K19,Proposito_programa!$C$2:$E$59,2,FALSE)) -> Movilidad social integral | M19: =IF(ISERROR(VLOOKUP(K19,Proposito_programa!$C$2:$E$59,3,FALSE))," ",VLOOKUP(K19,Proposito_programa!$C$2:$E$59,3,FALSE)) -> Propósito 1: Hacer un nuevo contrato social para incrementar la inclusión social, productiva y política | N19: O23011605570000002099 | O19: 0 | P19: 37844642 | Q19: LUZ ANGELA PINTO POSADA | R19: Persona Natural | S19: N/A | T19: N/A | U19: N/A | V19: 2022 | W19: 49500000 | Y19: 1 | Z19: 15000000 | AA19: 64500000 | AB19: 64500001 | AC19: 2022-01-14 | AD19: 2022-01-17 | AE19: 2022-10-16 | AF19: 9 Meses | AG19: 1 | AH19: 90 | AM19: Terminado | AN19: 1.000000016
A20: 007-2022 | B20: 2022 | C20: FDLM-007-2022 | D20: https://community.secop.gov.co/Public/Tendering/OpportunityDetail/Index?noticeUID=CO1.NTC.2563457&isFromPublicArea=True&isModal=False | E20: Contratos de prestación de servicios profesionales y de apoyo a la gestión | F20: Contratación directa | G20: Prestación de servicios profesionales y de apoyo a la gestión, o para la ejecución de trabajos artísticos que sólo puedan encomendarse a determinadas personas naturales | H20: EL CONTRATISTA SE OBLIGA CON EL FONDO DE DESARROLLO LOCAL DE LOS MÁRTIRES A PRESTAR SUS SERVICIOS PROFESIONALES CON EL FIN DE REALIZAR CATEGORIZACIÓN Y DIAGNOSTICO EN LOS TEMAS DE SEGURIDAD CIUDADANA, CONVIVENCIA Y PREVENCIÓN DE CONFLICTIVIDADES, VIOLENCIAS Y DELITOS EN LA LOCALIDAD. | I20: Inversión | J20: Un nuevo contrato social y ambiental para la Bogotá del Siglo XXI | K20: 3 | L20: =IF(ISERROR(VLOOKUP(K20,Proposito_programa!$C$2:$E$59,2,FALSE))," ",VLOOKUP(K20,Proposito_programa!$C$2:$E$59,2,FALSE)) -> Movilidad social integral | M20: =IF(ISERROR(VLOOKUP(K20,Proposito_programa!$C$2:$E$59,3,FALSE))," ",VLOOKUP(K20,Proposito_programa!$C$2:$E$59,3,FALSE)) -> Propósito 1: Hacer un nuevo contrato social para incrementar la inclusión social, productiva y política | N20: O23011603430000002083 | O20: 0 | P20: 1019066590 | Q20: AMELIA PATRÓN JIMÉNEZ | R20: Persona Natural | S20: N/A | T20: N/A | U20: N/A | V20: 2022 | W20: 45643500 | Y20: 1 | Z20: 15000000 | AA20: 60643500 | AB20: 60643501 | AC20: 2022-01-14 | AD20: 2022-01-18 | AE20: 2022-10-17 | AF20: 9 Meses | AG20: 1 | AH20: 90 | AM20: Terminado | AN20: 1.000000016
A21: 008-2022 | B21: 2022 | C21: FDLM-008-2022 | D21: https://community.secop.gov.co/Public/Tendering/OpportunityDetail/Index?noticeUID=CO1.NTC.2563396&isFromPublicArea=True&isModal=False | E21: Contratos de prestación de servicios profesionales y de apoyo a la gestión | F21: Contratación directa | G21: Prestación de servicios profesionales y de apoyo a la gestión, o para la ejecución de trabajos artísticos que sólo puedan encomendarse a determinadas personas naturales | H21: Prestar sus servicios como personal de apoyo en la conducción de los vehículos livianos o pesados de propiedad del Fondo de Desarrollo Local de Los Mártires. | I21: Inversión | J21: Un nuevo contrato social y ambiental para la Bogotá del Siglo XXI | K21: 3 | L21: =IF(ISERROR(VLOOKUP(K21,Proposito_programa!$C$2:$E$59,2,FALSE))," ",VLOOKUP(K21,Proposito_programa!$C$2:$E$59,2,FALSE)) -> Movilidad social integral | M21: =IF(ISERROR(VLOOKUP(K21,Proposito_programa!$C$2:$E$59,3,FALSE))," ",VLOOKUP(K21,Proposito_programa!$C$2:$E$59,3,FALSE)) -> Propósito 1: Hacer un nuevo contrato social para incrementar la inclusión social, productiva y política | N21: O23011605570000002099 | O21: 0 | P21: 79581451 | Q21: EDISSON PIZA YEPES | R21: Persona Natural | S21: N/A | T21: N/A | U21: N/A | V21: 2022 | W21: 40950000 | Y21: 1 | Z21: 21900000 | AA21: 62850000 | AB21: 62850001 | AC21: 2022-01-14 | AD21: 2022-01-18 | AE21: 2022-10-17 | AF21: 9 Meses | AG21: 1 | AH21: 60 | AM21: Terminado | AN21: 1.000000016
A22: 009-2022 | B22: 2022 | C22: FDLM-009-2022 | D22: https://community.secop.gov.co/Public/Tendering/OpportunityDetail/Index?noticeUID=CO1.NTC.2564019&isFromPublicArea=True&isModal=False | E22: Contratos de prestación de servicios profesionales y de apoyo a la gestión | F22: Contratación directa | G22: Prestación de servicios profesionales y de apoyo a la gestión, o para la ejecución de trabajos artísticos que sólo puedan encomendarse a determinadas personas naturales | H22: Prestar servicios profesionales en los proyectos que tienen por objeto la construcción, rehabilitación y mantenimiento de la infraestructura vial y espacio público de la localidad de los mártires. DE ACUERDO CON LO CONTEMPLADO EN EL(LOS) PROYECTO(S) 2097 --- MOVILIDAD SEGURA Y SOSTENIBLE | I22: Inversión | J22: Un nuevo contrato social y ambiental para la Bogotá del Siglo XXI | K22: 3 | L22: =IF(ISERROR(VLOOKUP(K22,Proposito_programa!$C$2:$E$59,2,FALSE))," ",VLOOKUP(K22,Proposito_programa!$C$2:$E$59,2,FALSE)) -> Movilidad social integral | M22: =IF(ISERROR(VLOOKUP(K22,Proposito_programa!$C$2:$E$59,3,FALSE))," ",VLOOKUP(K22,Proposito_programa!$C$2:$E$59,3,FALSE)) -> Propósito 1: Hacer un nuevo contrato social para incrementar la inclusión social, productiva y política | N22: O23011604490000002097 | O22: 0 | P22: 1023962415 | Q22: MARTHA LILIANA CENDALES PUENTES | R22: Persona Natural | S22: N/A | T22: N/A | U22: N/A | V22: 2022 | W22: 22356000 | Y22: 1 | Z22: 19580000 | AA22: 41936000 | AB22: 41936001 | AC22: 2022-01-14 | AD22: 2022-01-18 | AE22: 2022-10-17 | AF22: 9 Meses | AG22: 1 | AH22: 89 | AM22: Terminado | AN22: 1.000000024
A23: 010-2022 | B23: 2022 | C23: FDLM-010-2022 | D23: https://community.secop.gov.co/Public/Tendering/OpportunityDetail/Index?noticeUID=CO1.NTC.2563721&isFromPublicArea=True&isModal=False | E23: Contratos de prestación de servicios profesionales y de apoyo a la gestión | F23: Contratación directa | G23: Prestación de servicios profesionales y de apoyo a la gestión, o para la ejecución de trabajos artísticos que sólo puedan encomendarse a determinadas personas naturales | H23: Prestar servicios profesionales en los proyectos que tienen por objeto la construcción, rehabilitación y mantenimiento de la infraestructura vial y espacio público de la localidad de los mártires. DE ACUERDO CON LO CONTEMPLADO EN EL(LOS) PROYECTO(S) 2097 MOVILIDAD SEGURA Y SOSTENIBLE | I23: Inversión | J23: Un nuevo contrato social y ambiental para la Bogotá del Siglo XXI | K23: 3 | L23: =IF(ISERROR(VLOOKUP(K23,Proposito_programa!$C$2:$E$59,2,FALSE))," ",VLOOKUP(K23,Proposito_programa!$C$2:$E$59,2,FALSE)) -> Movilidad social integral | M23: =IF(ISERROR(VLOOKUP(K23,Proposito_programa!$C$2:$E$59,3,FALSE))," ",VLOOKUP(K23,Proposito_programa!$C$2:$E$59,3,FALSE)) -> Propósito 1: Hacer un nuevo contrato social para incrementar la inclusión social, productiva y política | N23: O23011604490000002097 | O23: 0 | P23: 79785438 | Q23: JAIME HERNAN VILLALBA VARGAS | R23: Persona Natural | S23: N/A | T23: N/A | U23: N/A | V23: 2022 | W23: 54000000 | Y23: 1 | Z23: 19580000 | AA23: 73580000 | AB23: 73580001 | AC23: 2022-01-14 | AD23: 2022-01-18 | AE23: 2022-10-17 | AF23: 9 Meses | AG23: 1 | AH23: 89 | AM23: Terminado | AN23: 1.000000014
A24: 011-2022 | B24: 2022 | C24: FDLM-011-2022.(67813) | D24: https://community.secop.gov.co/Public/Tendering/OpportunityDetail/Index?noticeUID=CO1.NTC.2603722&isFromPublicArea=True&isModal=False | E24: Contratos de prestación de servicios profesionales y de apoyo a la gestión | F24: Contratación directa | G24: Prestación de servicios profesionales y de apoyo a la gestión, o para la ejecución de trabajos artísticos que sólo puedan encomendarse a determinadas personas naturales | H24: PRESTAR LOS SERVICIOS PROFESIONALES DE ABOGADO, PARA APOYAR LA GESTIÓN DEL DESPACHO DEL ALCALDE DE LA LOCALIDAD DE LOS MARTIRES, EN LA IMPLEMENTACIÓN DEL PLAN DE DESARROLLO LOCAL VIGENTE. | I24: Inversión | J24: Un nuevo contrato social y ambiental para la Bogotá del Siglo XXI | K24: 3 | L24: =IF(ISERROR(VLOOKUP(K24,Proposito_programa!$C$2:$E$59,2,FALSE))," ",VLOOKUP(K24,Proposito_programa!$C$2:$E$59,2,FALSE)) -> Movilidad social integral | M24: =IF(ISERROR(VLOOKUP(K24,Proposito_programa!$C$2:$E$59,3,FALSE))," ",VLOOKUP(K24,Proposito_programa!$C$2:$E$59,3,FALSE)) -> Propósito 1: Hacer un nuevo contrato social para incrementar la inclusión social, productiva y política | N24: O23011605570000002099 | O24: 0 | P24: 1140872699 | Q24: ALBERTO MARIO OROZCO RAVELO | R24: Persona Natural | S24: N/A | T24: N/A | U24: N/A | V24: 2022 | W24: 74800000 | Y24: 1 | Z24: 15000000 | AA24: 89800000 | AB24: 89800001 | AC24: 2022-01-19 | AD24: 2022-01-19 | AE24: 2022-12-18 | AF24: 11 Meses | AG24: 1 | AH24: 90 | AM24: En ejecución | AN24: 1.000000011
A25: 013-2022 | B25: 2022 | C25: FDLM-013-2022 (67798) | D25: https://community.secop.gov.co/Public/Tendering/OpportunityDetail/Index?noticeUID=CO1.NTC.2587831&isFromPublicArea=True&isModal=False | E25: Contratos de prestación de servicios profesionales y de apoyo a la gestión | F25: Contratación directa | G25: Prestación de servicios profesionales y de apoyo a la gestión, o para la ejecución de trabajos artísticos que sólo puedan encomendarse a determinadas personas naturales | H25: PRESTAR SUS SERVICIOS PROFESIONALES ESPECIALIZADOS PARA FORTALECER TÉCNICAMENTE EL ÁREA DE GESTIÓN DEL DESARROLLO LOCAL DE LA LOCALIDAD DE LOS MÁRTIRES, EN CUMPLIMIENTO DEL PLAN DE DESARROLLO LOCAL VIGENTE | I25: Inversión | J25: Un nuevo contrato social y ambiental para la Bogotá del Siglo XXI | K25: 3 | L25: =IF(ISERROR(VLOOKUP(K25,Proposito_programa!$C$2:$E$59,2,FALSE))," ",VLOOKUP(K25,Proposito_programa!$C$2:$E$59,2,FALSE)) -> Movilidad social integral | M25: =IF(ISERROR(VLOOKUP(K25,Proposito_programa!$C$2:$E$59,3,FALSE))," ",VLOOKUP(K25,Proposito_programa!$C$2:$E$59,3,FALSE)) -> Propósito 1: Hacer un nuevo contrato social para incrementar la inclusión social, productiva y política | N25: O23011605570000002099 | O25: 0 | P25: 1140845417 | Q25: HANS DIETER VAN STRAHLEN BARTEL | R25: Persona Natural | S25: N/A | T25: N/A | U25: N/A | V25: 2022 | W25: 93500000 | Y25: 1 | Z25: 12000000 | AA25: 105500000 | AB25: 105500001 | AC25: 2022-01-17 | AD25: 2022-01-19 | AE25: 2022-12-18 | AF25: 11 Meses | AG25: 1 | AH25: 60 | AM25: Terminado | AN25: 1.000000009
A26: 014-2022 | B26: 2022 | C26: FDLM-014-2022 (67703) | D26: https://community.secop.gov.co/Public/Tendering/OpportunityDetail/Index?noticeUID=CO1.NTC.2588311&isFromPublicArea=True&isModal=False | E26: Contratos de prestación de servicios profesionales y de apoyo a la gestión | F26: Contratación directa | G26: Prestación de servicios profesionales y de apoyo a la gestión, o para la ejecución de trabajos artísticos que sólo puedan encomendarse a determinadas personas naturales | H26: PRESTAR LOS SERVICIOS PROFESIONALES ADMINISTRATIVOS AL FONDO DE DESARROLLO LOCAL EN EL FORTALECIMIENTO DE LAS ETAPAS DE LA GESTIÓN PÚBLICA CONTRACTUAL, EN CUMPLIMIENTO DEL PLAN DE DESARROLLO LOCAL VIGENTE. | I26: Inversión | J26: Un nuevo contrato social y ambiental para la Bogotá del Siglo XXI | K26: 3 | L26: =IF(ISERROR(VLOOKUP(K26,Proposito_programa!$C$2:$E$59,2,FALSE))," ",VLOOKUP(K26,Proposito_programa!$C$2:$E$59,2,FALSE)) -> Movilidad social integral | M26: =IF(ISERROR(VLOOKUP(K26,Proposito_programa!$C$2:$E$59,3,FALSE))," ",VLOOKUP(K26,Proposito_programa!$C$2:$E$59,3,FALSE)) -> Propósito 1: Hacer un nuevo contrato social para incrementar la inclusión social, productiva y política | N26: O23011605570000002099 | O26: 0 | P26: 53006011 | Q26: DIANA CAROLINA CÁRDENAS CRUZ | R26: Persona Natural | S26: N/A | T26: N/A | U26: N/A | V26: 2022 | W26: 42300000 | Y26: 1 | Z26: 9300000 | AA26: 51600000 | AB26: 51600001 | AC26: 2022-01-17 | AD26: 2022-01-19 | AE26: 2022-10-18 | AF26: 9 Meses | AG26: 1 | AH26: 90 | AM26: Terminado | AN26: 1.000000019
A27: 015-2022 | B27: 2022 | C27: FDLM-015-2022 (70196) | D27: https://community.secop.gov.co/Public/Tendering/OpportunityDetail/Index?noticeUID=CO1.NTC.2588901&isFromPublicArea=True&isModal=False | E27: Contratos de prestación de servicios profesionales y de apoyo a la gestión | F27: Contratación directa | G27: Prestación de servicios profesionales y de apoyo a la gestión, o para la ejecución de trabajos artísticos que sólo puedan encomendarse a determinadas personas naturales | H27: PRESTAR LOS SERVICIOS DE APOYO ADMINISTRATIVO PARA LA IMPLEMENTACIÓN DE ACUERDOS QUE PROMUEVAN LA CONVIVENCIA ARMÓNICA ENTRE LA CIUDADANÍA Y LOS VENDEDORES INFORMALES Y ESTACIONARIOS, ORIENTADOS A LA SOLUCIÓN DE LOS CONFLICTOS DEL ESPACIO PÚBLICO IDENTIFICADOS POR LAS ALCALDÍAS LOCALES, ASÍ COMO EL APOYO AL ÁREA DE GESTIÓN POLICIVA Y JURÍDICA DE LA ALCALDÍA LOCAL DE LOS MÁRTIRES. | I27: Inversión | J27: Un nuevo contrato social y ambiental para la Bogotá del Siglo XXI | K27: 3 | L27: =IF(ISERROR(VLOOKUP(K27,Proposito_programa!$C$2:$E$59,2,FALSE))," ",VLOOKUP(K27,Proposito_programa!$C$2:$E$59,2,FALSE)) -> Movilidad social integral | M27: =IF(ISERROR(VLOOKUP(K27,Proposito_programa!$C$2:$E$59,3,FALSE))," ",VLOOKUP(K27,Proposito_programa!$C$2:$E$59,3,FALSE)) -> Propósito 1: Hacer un nuevo contrato social para incrementar la inclusión social, productiva y política | N27: O23011603450000002080 | O27: 0 | P27: 52786083 | Q27: ANA ANGÉLICA CHAPARRO VARÓN | R27: Persona Natural | S27: N/A | T27: N/A | U27: N/A | V27: 2022 | W27: 23400000 | Y27: 1 | Z27: 6490000 | AA27: 29890000 | AB27: 29890001 | AC27: 2022-01-17 | AD27: 2022-01-20 | AE27: 2022-10-19 | AF27: 9 Meses | AG27: 1 | AH27: 60 | AM27: Terminado | AN27: 1.000000033
A28: 016-2022 | B28: 2022 | C28: FDLM-016-2022 (68387). | D28: https://community.secop.gov.co/Public/Tendering/OpportunityDetail/Index?noticeUID=CO1.NTC.2598750&isFromPublicArea=True&isModal=False | E28: Contratos de prestación de servicios profesionales y de apoyo a la gestión | F28: Contratación directa | G28: Prestación de servicios profesionales y de apoyo a la gestión, o para la ejecución de trabajos artísticos que sólo puedan encomendarse a determinadas personas naturales | H28: Liderar y garantizar la implementación y seguimiento de los procesos y procedimientos del servicio social. | I28: Inversión | J28: Un nuevo contrato social y ambiental para la Bogotá del Siglo XXI | K28: 3 | L28: =IF(ISERROR(VLOOKUP(K28,Proposito_programa!$C$2:$E$59,2,FALSE))," ",VLOOKUP(K28,Proposito_programa!$C$2:$E$59,2,FALSE)) -> Movilidad social integral | M28: =IF(ISERROR(VLOOKUP(K28,Proposito_programa!$C$2:$E$59,3,FALSE))," ",VLOOKUP(K28,Proposito_programa!$C$2:$E$59,3,FALSE)) -> Propósito 1: Hacer un nuevo contrato social para incrementar la inclusión social, productiva y política | N28: O23011601010000002068 | O28: 0 | P28: 1032385912 | Q28: CINDY JULIETH NIÑO SABOGAL | R28: Persona Natural | S28: N/A | T28: N/A | U28: N/A | V28: 2022 | W28: 51232500 | Y28: 1 | Z28: 1170109 | AA28: 52402609 | AB28: 52402610 | AC28: 2022-01-18 | AD28: 2022-01-28 | AE28: 2022-10-27 | AF28: 9 Meses | AG28: 1 | AH28: 60 | AM28: Terminado | AN28: 1.000000019
A29: 017-2022 | B29: 2022 | C29: FDLM-017-2022 (68328) | D29: https://community.secop.gov.co/Public/Tendering/OpportunityDetail/Index?noticeUID=CO1.NTC.2588922&isFromPublicArea=True&isModal=False | E29: Contratos de prestación de servicios profesionales y de apoyo a la gestión | F29: Contratación directa | G29: Prestación de servicios profesionales y de apoyo a la gestión, o para la ejecución de trabajos artísticos que sólo puedan encomendarse a determinadas personas naturales | H29: Prestar los servicios profesionales para la operación, prestación, seguimiento y cumplimiento de los procedimientos administrativos, operativos y programáticos del servicio social apoyo económico tipo C, que contribuyan a la garantía de los derechos de la población mayor en el marco de la política pública social para el envejecimiento y la vejez en el distrito capital a cargo de la alcaldía local. | I29: Inversión | J29: Un nuevo contrato social y ambiental para la Bogotá del Siglo XXI | K29: 3 | L29: =IF(ISERROR(VLOOKUP(K29,Proposito_programa!$C$2:$E$59,2,FALSE))," ",VLOOKUP(K29,Proposito_programa!$C$2:$E$59,2,FALSE)) -> Movilidad social integral | M29: =IF(ISERROR(VLOOKUP(K29,Proposito_programa!$C$2:$E$59,3,FALSE))," ",VLOOKUP(K29,Proposito_programa!$C$2:$E$59,3,FALSE)) -> Propósito 1: Hacer un nuevo contrato social para incrementar la inclusión social, productiva y política | N29: O23011601010000002068 | O29: 0 | P29: 1072654515 | Q29: ALEJANDRA JARAMILLO GONZÁLEZ | R29: Persona Natural | S29: N/A | T29: N/A | U29: N/A | V29: 2022 | W29: 41917500 | Y29: 1 | Z29: 9300000 | AA29: 51217500 | AB29: 51217501 | AC29: 2022-01-17 | AD29: 2022-01-19 | AE29: 2022-10-18 | AF29: 9 Meses | AG29: 1 | AH29: 90 | AI29: 52100652 | AJ29: NANCY ESTELLA QUEVEDO JARA | AK29: 2022-07-29 | AM29: Terminado | AN29: 1.00000002
A30: 018-2022 | B30: 2022 | C30: FDLM-018-2022 (68328). | D30: https://community.secop.gov.co/Public/Tendering/OpportunityDetail/Index?noticeUID=CO1.NTC.2621347&isFromPublicArea=True&isModal=False | E30: Contratos de prestación de servicios profesionales y de apoyo a la gestión | F30: Contratación directa | G30: Prestación de servicios profesionales y de apoyo a la gestión, o para la ejecución de trabajos artísticos que sólo puedan encomendarse a determinadas personas naturales | H30: Prestar los servicios profesionales para la operación, prestación, seguimiento y cumplimiento de los procedimientos administrativos, operativos y programáticos del servicio social apoyo económico tipo C, que contribuyan a la garantía de los derechos de la población mayor en el marco de la política pública social para el envejecimiento y la vejez en el distrito capital a cargo de la alcaldía local. | I30: Inversión | J30: Un nuevo contrato social y ambiental para la Bogotá del Siglo XXI | K30: 3 | L30: =IF(ISERROR(VLOOKUP(K30,Proposito_programa!$C$2:$E$59,2,FALSE))," ",VLOOKUP(K30,Proposito_programa!$C$2:$E$59,2,FALSE)) -> Movilidad social integral | M30: =IF(ISERROR(VLOOKUP(K30,Proposito_programa!$C$2:$E$59,3,FALSE))," ",VLOOKUP(K30,Proposito_programa!$C$2:$E$59,3,FALSE)) -> Propósito 1: Hacer un nuevo contrato social para incrementar la inclusión social, productiva y política | N30: O23011601010000002068 | O30: 0 | P30: 1014260640 | Q30: VALENTINA MAYO CASTRO | R30: Persona Natural | S30: N/A | T30: N/A | U30: N/A | V30: 2022 | W30: 41917500 | Y30: 1 | Z30: 18133333 | AA30: 60050833 | AB30: 60050834 | AC30: 2022-01-19 | AD30: 2022-01-20 | AE30: 2022-10-19 | AF30: 9 Meses | AG30: 1 | AH30: 60 | AM30: Terminado | AN30: 1.000000017
A31: 019-2022 | B31: 2022 | C31: FDLM-019-2022 (68328) | D31: https://community.secop.gov.co/Public/Tendering/OpportunityDetail/Index?noticeUID=CO1.NTC.2588879&isFromPublicArea=True&isModal=False | E31: Contratos de prestación de servicios profesionales y de apoyo a la gestión | F31: Contratación directa | G31: Prestación de servicios profesionales y de apoyo a la gestión, o para la ejecución de trabajos artísticos que sólo puedan encomendarse a determinadas personas naturales | H31: Prestar los servicios profesionales para la operación, prestación, seguimiento y cumplimiento de los procedimientos administrativos, operativos y programáticos del servicio social apoyo económico tipo C, que contribuyan a la garantía de los derechos de la población mayor en el marco de la política pública social para el envejecimiento y la vejez en el distrito capital a cargo de la alcaldía local. | I31: Inversión | J31: Un nuevo contrato social y ambiental para la Bogotá del Siglo XXI | K31: 3 | L31: =IF(ISERROR(VLOOKUP(K31,Proposito_programa!$C$2:$E$59,2,FALSE))," ",VLOOKUP(K31,Proposito_programa!$C$2:$E$59,2,FALSE)) -> Movilidad social integral | M31: =IF(ISERROR(VLOOKUP(K31,Proposito_programa!$C$2:$E$59,3,FALSE))," ",VLOOKUP(K31,Proposito_programa!$C$2:$E$59,3,FALSE)) -> Propósito 1: Hacer un nuevo contrato social para incrementar la inclusión social, productiva y política | N31: O23011601010000002068 | O31: 0 | P31: 52198702 | Q31: LEDI ANYELI CASTRILLON MARTINEZ | R31: Persona Natural | S31: N/A | T31: N/A | U31: N/A | V31: 2022 | W31: 41917500 | Y31: 1 | Z31: 13566666 | AA31: 55484166 | AB31: 55484167 | AC31: 2022-01-17 | AD31: 2022-01-19 | AE31: 2022-10-18 | AF31: 9 Meses | AG31: 1 | AH31: 60 | AM31: Terminado | AN31: 1.000000018
A32: 020-2022 | B32: 2022 | C32: FDLM-020-2022 (70050) | D32: https://community.secop.gov.co/Public/Tendering/OpportunityDetail/Index?noticeUID=CO1.NTC.2596815&isFromPublicArea=True&isModal=False | E32: Contratos de prestación de servicios profesionales y de apoyo a la gestión | F32: Contratación directa | G32: Prestación de servicios profesionales y de apoyo a la gestión, o para la ejecución de trabajos artísticos que sólo puedan encomendarse a determinadas personas naturales | H32: APOYAR AL EQUIPO DE PRENSA Y COMUNICACIONES DE LA ALCALDÍA LOCAL EN LA REALIZACIÓN Y PUBLICACIÓN DE CONTENIDOS DE REDES SOCIALES Y CANALES DE DIVULGACIÓN DIGITAL. | I32: Inversión | J32: Un nuevo contrato social y ambiental para la Bogotá del Siglo XXI | K32: 3 | L32: =IF(ISERROR(VLOOKUP(K32,Proposito_programa!$C$2:$E$59,2,FALSE))," ",VLOOKUP(K32,Proposito_programa!$C$2:$E$59,2,FALSE)) -> Movilidad social integral | M32: =IF(ISERROR(VLOOKUP(K32,Proposito_programa!$C$2:$E$59,3,FALSE))," ",VLOOKUP(K32,Proposito_programa!$C$2:$E$59,3,FALSE)) -> Propósito 1: Hacer un nuevo contrato social para incrementar la inclusión social, productiva y política | N32: O23011605570000002099 | O32: 0 | P32: 1015450203 | Q32: JUAN SEBASTIAN VITERI CHAVEZ | R32: Persona Natural | S32: N/A | T32: N/A | U32: N/A | V32: 2022 | W32: 42300000 | Y32: 1 | Z32: 5000000 | AA32: 47300000 | AB32: 47300001 | AC32: 2022-01-18 | AD32: 2022-01-20 | AE32: 2022-10-19 | AF32: 9 Meses | AG32: 1 | AH32: 60 | AI32: 79897842 | AJ32: JULIO CESAR GALEON ORTIZ | AK32: 2022-06-01 | AM32: Terminado | AN32: 1.000000021
A33: 021-2022 | B33: 2022 | C33: FDLM-021-2022 (69736) | D33: https://community.secop.gov.co/Public/Tendering/OpportunityDetail/Index?noticeUID=CO1.NTC.2589626&isFromPublicArea=True&isModal=False | E33: Contratos de prestación de servicios profesionales y de apoyo a la gestión | F33: Contratación directa | G33: Prestación de servicios profesionales y de apoyo a la gestión, o para la ejecución de trabajos artísticos que sólo puedan encomendarse a determinadas personas naturales | H33: PRESTAR SUS SERVICIOS PROFESIONALES PARA LIDERAR Y HACER SEGUIMIENTO A LOS PLANES Y ESTRATEGIAS DE COMUNICACIONES INTERNAS Y EXTERNAS PARA LA DIVULGACIÓN DE LOS PROGRAMAS, PROYECTOS Y ACTIVIDADES DE LA ALCALDÍA LOCAL. | I33: Inversión | J33: Un nuevo contrato social y ambiental para la Bogotá del Siglo XXI | K33: 3 | L33: =IF(ISERROR(VLOOKUP(K33,Proposito_programa!$C$2:$E$59,2,FALSE))," ",VLOOKUP(K33,Proposito_programa!$C$2:$E$59,2,FALSE)) -> Movilidad social integral | M33: =IF(ISERROR(VLOOKUP(K33,Proposito_programa!$C$2:$E$59,3,FALSE))," ",VLOOKUP(K33,Proposito_programa!$C$2:$E$59,3,FALSE)) -> Propósito 1: Hacer un nuevo contrato social para incrementar la inclusión social, productiva y política | N33: O23011605570000002099 | O33: 0 | P33: 1015433078 | Q33: NATALIA STEPHANY DURAN CAMARGO | R33: Persona Natural | S33: N/A | T33: N/A | U33: N/A | V33: 2022 | W33: 45000000 | Y33: 1 | Z33: 6300000 | AA33: 51300000 | AB33: 51300001 | AC33: 2022-01-17 | AD33: 2022-01-19 | AE33: 2022-10-18 | AF33: 9 Meses | AG33: 1 | AH33: 90 | AM33: Terminado | AN33: 1.000000019
A34: 022-2022 | B34: 2022 | C34: FDLM-022-2022 (67826) | D34: https://community.secop.gov.co/Public/Tendering/OpportunityDetail/Index?noticeUID=CO1.NTC.2617490&isFromPublicArea=True&isModal=False | E34: Contratos de prestación de servicios profesionales y de apoyo a la gestión | F34: Contratación directa | G34: Prestación de servicios profesionales y de apoyo a la gestión, o para la ejecución de trabajos artísticos que sólo puedan encomendarse a determinadas personas naturales | H34: APOYAR ADMINISTRATIVA Y ASISTENCIALMENTE AL DESPACHO DEL ALCALDE LOCAL DE LOS MARTIRES | I34: Inversión | J34: Un nuevo contrato social y ambiental para la Bogotá del Siglo XXI | K34: 3 | L34: =IF(ISERROR(VLOOKUP(K34,Proposito_programa!$C$2:$E$59,2,FALSE))," ",VLOOKUP(K34,Proposito_programa!$C$2:$E$59,2,FALSE)) -> Movilidad social integral | M34: =IF(ISERROR(VLOOKUP(K34,Proposito_programa!$C$2:$E$59,3,FALSE))," ",VLOOKUP(K34,Proposito_programa!$C$2:$E$59,3,FALSE)) -> Propósito 1: Hacer un nuevo contrato social para incrementar la inclusión social, productiva y política | N34: O23011605570000002099 | O34: 0 | P34: 53168170 | Q34: MARIA ANGELICA DEL PILAR ANGULO PAEZ | R34: Persona Natural | S34: N/A | T34: N/A | U34: N/A | V34: 2022 | W34: 29700000 | Y34: 1 | Z34: 6300000 | AA34: 36000000 | AB34: 36000001 | AC34: 2022-01-19 | AD34: 2022-01-20 | AE34: 2022-10-19 | AF34: 9 meses | AG34: 1 | AH34: 90 | AM34: Terminado | AN34: 1.000000028
A35: 023-2022 | B35: 2022 | C35: FDLM-023-2022 (67815) | D35: https://community.secop.gov.co/Public/Tendering/OpportunityDetail/Index?noticeUID=CO1.NTC.2618209&isFromPublicArea=True&isModal=False | E35: Contratos de prestación de servicios profesionales y de apoyo a la gestión | F35: Contratación directa | G35: Prestación de servicios profesionales y de apoyo a la gestión, o para la ejecución de trabajos artísticos que sólo puedan encomendarse a determinadas personas naturales | H35: PRESTAR SUS SERVICIOS PROFESIONALES PARA APOYAR AL ALCALDE LOCAL EN LA PROMOCIÓN, ACOMPAÑAMIENTO, COORDINACIÓN Y ATENCIÓN DE LAS INSTANCIAS DE COORDINACIÓN INTERINSTITUCIONALES Y LAS INSTANCIAS DE PARTICIPACIÓN LOCALES, ASÍ COMO LOS PROCESO COMUNITARIOS EN LA LOCALIDAD, EN CUMPLIMIENTO DEL PLAN DE DESARROLLO LOCAL VIGENTE | I35: Inversión | J35: Un nuevo contrato social y ambiental para la Bogotá del Siglo XXI | K35: 3 | L35: =IF(ISERROR(VLOOKUP(K35,Proposito_programa!$C$2:$E$59,2,FALSE))," ",VLOOKUP(K35,Proposito_programa!$C$2:$E$59,2,FALSE)) -> Movilidad social integral | M35: =IF(ISERROR(VLOOKUP(K35,Proposito_programa!$C$2:$E$59,3,FALSE))," ",VLOOKUP(K35,Proposito_programa!$C$2:$E$59,3,FALSE)) -> Propósito 1: Hacer un nuevo contrato social para incrementar la inclusión social, productiva y política | N35: O23011605570000002099 | O35: 0 | P35: 79980371 | Q35: JUAN CARLOS TOLOSA BUITRAGO | R35: Persona Natural | S35: N/A | T35: N/A | U35: N/A | V35: 2022 | W35: 54000000 | Y35: 1 | Z35: 6044400 | AA35: 60044400 | AB35: 60044401 | AC35: 2022-01-19 | AD35: 2022-01-20 | AE35: 2022-10-19 | AF35: 9 meses | AG35: 1 | AH35: 60 | AM35: Terminado | AN35: 1.000000017
A36: 024-2022 | B36: 2022 | C36: FDLM-024-2022 (68209) | D36: https://community.secop.gov.co/Public/Tendering/OpportunityDetail/Index?noticeUID=CO1.NTC.2621397&isFromPublicArea=True&isModal=False | E36: Contratos de prestación de servicios profesionales y de apoyo a la gestión | F36: Contratación directa | G36: Prestación de servicios profesionales y de apoyo a la gestión, o para la ejecución de trabajos artísticos que sólo puedan encomendarse a determinadas personas naturales | H36: Prestar sus servicios como personal de apoyo en la conducción de los vehículos livianos o pesados de propiedad del Fondo de Desarrollo Local de Los Mártires. | I36: Inversión | J36: Un nuevo contrato social y ambiental para la Bogotá del Siglo XXI | K36: 3 | L36: =IF(ISERROR(VLOOKUP(K36,Proposito_programa!$C$2:$E$59,2,FALSE))," ",VLOOKUP(K36,Proposito_programa!$C$2:$E$59,2,FALSE)) -> Movilidad social integral | M36: =IF(ISERROR(VLOOKUP(K36,Proposito_programa!$C$2:$E$59,3,FALSE))," ",VLOOKUP(K36,Proposito_programa!$C$2:$E$59,3,FALSE)) -> Propósito 1: Hacer un nuevo contrato social para incrementar la inclusión social, productiva y política | N36: O23011605570000002099 | O36: 0 | P36: 19406345 | Q36: JOSE FABIO TORRES VIGOYA | R36: Persona Natural | S36: N/A | T36: N/A | U36: N/A | V36: 2022 | W36: 22356000 | Y36: 1 | Z36: 14600000 | AA36: 36956000 | AB36: 36956001 | AC36: 2022-01-19 | AD36: 2022-01-20 | AE36: 2022-10-19 | AF36: 9 meses | AG36: 1 | AH36: 60 | AM36: Terminado | AN36: 1.000000027
A37: 025-2022 | B37: 2022 | C37: FDLM-025-2022 (67758) | D37: https://community.secop.gov.co/Public/Tendering/OpportunityDetail/Index?noticeUID=CO1.NTC.2620873&isFromPublicArea=True&isModal=False | E37: Contratos de prestación de servicios profesionales y de apoyo a la gestión | F37: Contratación directa | G37: Prestación de servicios profesionales y de apoyo a la gestión, o para la ejecución de trabajos artísticos que sólo puedan encomendarse a determinadas personas naturales | H37: PRESTAR SUS SERVICIOS PROFESIONALES PARA APOYAR A LOS RESPONSABLES E INTEGRANTES DE LOS PROCESOS EN LA IMPLEMENTACIÓN DE HERRAMIENTAS DEL ÁREA DE GESTIÓN DEL DESARROLLO, SIGUIENDO LOS LINEAMIENTOS METODOLÓGICOS ESTABLECIDOS POR EL FDLM, EN CUMPLIMIENTO DEL PLAN DE DESARROLLO LOCAL VIGENTE. | I37: Inversión | J37: Un nuevo contrato social y ambiental para la Bogotá del Siglo XXI | K37: 3 | L37: =IF(ISERROR(VLOOKUP(K37,Proposito_programa!$C$2:$E$59,2,FALSE))," ",VLOOKUP(K37,Proposito_programa!$C$2:$E$59,2,FALSE)) -> Movilidad social integral | M37: =IF(ISERROR(VLOOKUP(K37,Proposito_programa!$C$2:$E$59,3,FALSE))," ",VLOOKUP(K37,Proposito_programa!$C$2:$E$59,3,FALSE)) -> Propósito 1: Hacer un nuevo contrato social para incrementar la inclusión social, productiva y política | N37: O23011605570000002099 | O37: 0 | P37: 1065632755 | Q37: JOHNNY ANTONIO CHINCHILLA RANGEL | R37: Persona Natural | S37: N/A | T37: N/A | U37: N/A | V37: 2022 | W37: 49500000 | Y37: 1 | Z37: 14600000 | AA37: 64100000 | AB37: 64100001 | AC37: 2022-01-19 | AD37: 2022-01-20 | AE37: 2022-10-19 | AF37: 9 meses | AG37: 1 | AH37: 60 | AM37: Terminado | AN37: 1.000000016
A38: 026-2022 | B38: 2022 | C38: FDLM-026-2022 (67758) | D38: https://community.secop.gov.co/Public/Tendering/OpportunityDetail/Index?noticeUID=CO1.NTC.2618888&isFromPublicArea=True&isModal=False | E38: Contratos de prestación de servicios profesionales y de apoyo a la gestión | F38: Contratación directa | G38: Prestación de servicios profesionales y de apoyo a la gestión, o para la ejecución de trabajos artísticos que sólo puedan encomendarse a determinadas personas naturales | H38: PRESTAR SUS SERVICIOS PROFESIONALES PARA APOYAR A LOS RESPONSABLES E INTEGRANTES DE LOS PROCESOS EN LA IMPLEMENTACIÓN DE HERRAMIENTAS DEL ÁREA DE GESTIÓN DEL DESARROLLO, SIGUIENDO LOS LINEAMIENTOS METODOLÓGICOS ESTABLECIDOS POR EL FDLM, EN CUMPLIMIENTO DEL PLAN DE DESARROLLO LOCAL VIGENTE. | I38: Inversión | J38: Un nuevo contrato social y ambiental para la Bogotá del Siglo XXI | K38: 3 | L38: =IF(ISERROR(VLOOKUP(K38,Proposito_programa!$C$2:$E$59,2,FALSE))," ",VLOOKUP(K38,Proposito_programa!$C$2:$E$59,2,FALSE)) -> Movilidad social integral | M38: =IF(ISERROR(VLOOKUP(K38,Proposito_programa!$C$2:$E$59,3,FALSE))," ",VLOOKUP(K38,Proposito_programa!$C$2:$E$59,3,FALSE)) -> Propósito 1: Hacer un nuevo contrato social para incrementar la inclusión social, productiva y política | N38: O23011605570000002099 | O38: 0 | P38: 1013591512 | Q38: SERGIO NARAYAN JIUSEPPE ARMANDO BERNAL RUIZ | R38: Persona Natural | S38: N/A | T38: N/A | U38: N/A | V38: 2022 | W38: 49500000 | Y38: 1 | Z38: 6153333 | AA38: 55653333 | AB38: 55653334 | AC38: 2022-01-19 | AD38: 2022-01-20 | AE38: 2022-10-19 | AF38: 9 meses | AG38: 1 | AH38: 60 | AM38: Terminado | AN38: 1.000000018
A39: 027-2022 | B39: 2022 | C39: FDLM-027-2022 (67758) | D39: https://community.secop.gov.co/Public/Tendering/OpportunityDetail/Index?noticeUID=CO1.NTC.2621082&isFromPublicArea=True&isModal=False | E39: Contratos de prestación de servicios profesionales y de apoyo a la gestión | F39: Contratación directa | G39: Prestación de servicios profesionales y de apoyo a la gestión, o para la ejecución de trabajos artísticos que sólo puedan encomendarse a determinadas personas naturales | H39: PRESTAR SUS SERVICIOS PROFESIONALES PARA APOYAR A LOS RESPONSABLES E INTEGRANTES DE LOS PROCESOS EN LA IMPLEMENTACIÓN DE HERRAMIENTAS DEL ÁREA DE GESTIÓN DEL DESARROLLO, SIGUIENDO LOS LINEAMIENTOS METODOLÓGICOS ESTABLECIDOS POR EL FDLM, EN CUMPLIMIENTO DEL PLAN DE DESARROLLO LOCAL VIGENTE. | I39: Inversión | J39: Un nuevo contrato social y ambiental para la Bogotá del Siglo XXI | K39: 3 | L39: =IF(ISERROR(VLOOKUP(K39,Proposito_programa!$C$2:$E$59,2,FALSE))," ",VLOOKUP(K39,Proposito_programa!$C$2:$E$59,2,FALSE)) -> Movilidad social integral | M39: =IF(ISERROR(VLOOKUP(K39,Proposito_programa!$C$2:$E$59,3,FALSE))," ",VLOOKUP(K39,Proposito_programa!$C$2:$E$59,3,FALSE)) -> Propósito 1: Hacer un nuevo contrato social para incrementar la inclusión social, productiva y política | N39: O23011605570000002099 | O39: 0 | P39: 1094933233 | Q39: STEFANNY ALONSO MUÑOZ | R39: Persona Natural | S39: N/A | T39: N/A | U39: N/A | V39: 2022 | W39: 49500000 | Y39: 1 | Z39: 11954250 | AA39: 61454250 | AB39: 61454251 | AC39: 2022-01-19 | AD39: 2022-01-21 | AE39: 2022-10-20 | AF39: 9 meses | AG39: 1 | AH39: 60 | AM39: Terminado | AN39: 1.000000016
A40: 028-2022 | B40: 2022 | C40: FDLM-028-2022 | D40: https://community.secop.gov.co/Public/Tendering/OpportunityDetail/Index?noticeUID=CO1.NTC.2621905&isFromPublicArea=True&isModal=False | E40: Contratos de prestación de servicios profesionales y de apoyo a la gestión | F40: Contratación directa | G40: Prestación de servicios profesionales y de apoyo a la gestión, o para la ejecución de trabajos artísticos que sólo puedan encomendarse a determinadas personas naturales | H40: PRESTAR SUS SERVICIOS PROFESIONALES PARA APOYAR A LOS RESPONSABLES E INTEGRANTES DE LOS PROCESOS EN LA IMPLEMENTACIÓN DE HERRAMIENTAS DEL ÁREA DE GESTIÓN DEL DESARROLLO, SIGUIENDO LOS LINEAMIENTOS METODOLÓGICOS ESTABLECIDOS POR EL FDLM, EN CUMPLIMIENTO DEL PLAN DE DESARROLLO LOCAL VIGENTE. | I40: Inversión | J40: Un nuevo contrato social y ambiental para la Bogotá del Siglo XXI | K40: 3 | L40: =IF(ISERROR(VLOOKUP(K40,Proposito_programa!$C$2:$E$59,2,FALSE))," ",VLOOKUP(K40,Proposito_programa!$C$2:$E$59,2,FALSE)) -> Movilidad social integral | M40: =IF(ISERROR(VLOOKUP(K40,Proposito_programa!$C$2:$E$59,3,FALSE))," ",VLOOKUP(K40,Proposito_programa!$C$2:$E$59,3,FALSE)) -> Propósito 1: Hacer un nuevo contrato social para incrementar la inclusión social, productiva y política | N40: O23011605570000002099 | O40: 0 | P40: 1129518741 | Q40: ANDREA CAROLINA CARDENAS CAYÓN | R40: Persona Natural | S40: N/A | T40: N/A | U40: N/A | V40: 2022 | W40: 49500000 | Y40: 1 | Z40: 11178000 | AA40: 60678000 | AB40: 60678001 | AC40: 2022-01-19 | AD40: 2022-01-21 | AE40: 2022-10-20 | AF40: 9 Meses | AG40: 1 | AH40: 60 | AM40: Terminado | AN40: 1.000000016
A41: 029-2022 | B41: 2022 | C41: FDLM-029-2022 (67818) | D41: https://community.secop.gov.co/Public/Tendering/OpportunityDetail/Index?noticeUID=CO1.NTC.2616542&isFromPublicArea=True&isModal=False | E41: Contratos de prestación de servicios profesionales y de apoyo a la gestión | F41: Contratación directa | G41: Prestación de servicios profesionales y de apoyo a la gestión, o para la ejecución de trabajos artísticos que sólo puedan encomendarse a determinadas personas naturales | H41: Prestar servicios Profesionales Especializados para gestión de los asuntos concernientes con la seguridad ciudadana, convivencia y prevención de conflictos, violencias y delitos en la localidad de Los Mártires, de conformidad con el marco normativo aplicable en la materia. | I41: Inversión | J41: Un nuevo contrato social y ambiental para la Bogotá del Siglo XXI | K41: 3 | L41: =IF(ISERROR(VLOOKUP(K41,Proposito_programa!$C$2:$E$59,2,FALSE))," ",VLOOKUP(K41,Proposito_programa!$C$2:$E$59,2,FALSE)) -> Movilidad social integral | M41: =IF(ISERROR(VLOOKUP(K41,Proposito_programa!$C$2:$E$59,3,FALSE))," ",VLOOKUP(K41,Proposito_programa!$C$2:$E$59,3,FALSE)) -> Propósito 1: Hacer un nuevo contrato social para incrementar la inclusión social, productiva y política | N41: O23011605570000002099 | O41: 0 | P41: 80075984 | Q41: HERNANDO ESPELETA MAIGUEL | R41: Persona Natural | S41: N/A | T41: N/A | U41: N/A | V41: 2022 | W41: 77660000 | AA41: 77660000 | AB41: 77660000 | AC41: 2022-01-19 | AD41: 2022-01-20 | AE41: 2022-12-19 | AF41: 11 Meses | AM41: En ejecución | AN41: 1
A42: 030-2022 | B42: 2022 | C42: FDLM-030-2022 | D42: https://community.secop.gov.co/Public/Tendering/OpportunityDetail/Index?noticeUID=CO1.NTC.2621083&isFromPublicArea=True&isModal=False | E42: Contratos de prestación de servicios profesionales y de apoyo a la gestión | F42: Contratación directa | G42: Prestación de servicios profesionales y de apoyo a la gestión, o para la ejecución de trabajos artísticos que sólo puedan encomendarse a determinadas personas naturales | H42: PRESTAR SERVICIOS PROFESIONALES ESPECIALIZADOS AL ÁREA POLICIVA DE LA ALCALDÍA LOCAL DE LOS MÁRTIRES, PARA ADELANTAR TRÁMITES, PROCEDIMIENTOS Y LINEAMIENTOS EN MATERIA JURÍDICA QUE PERMITAN GARANTIZAR EL CUMPLIMIENTO DE LAS METAS ESTABLECIDAS EN EL PLAN DE DESARROLLO LOCAL VIGENTE | I42: Inversión | J42: Un nuevo contrato social y ambiental para la Bogotá del Siglo XXI | K42: 3 | L42: =IF(ISERROR(VLOOKUP(K42,Proposito_programa!$C$2:$E$59,2,FALSE))," ",VLOOKUP(K42,Proposito_programa!$C$2:$E$59,2,FALSE)) -> Movilidad social integral | M42: =IF(ISERROR(VLOOKUP(K42,Proposito_programa!$C$2:$E$59,3,FALSE))," ",VLOOKUP(K42,Proposito_programa!$C$2:$E$59,3,FALSE)) -> Propósito 1: Hacer un nuevo contrato social para incrementar la inclusión social, productiva y política | N42: O23011605570000002099 | O42: 0 | P42: 1032418847 | Q42: DIEGO FERNANDO PULIDO CHICA | R42: Persona Natural | S42: N/A | T42: N/A | U42: N/A | V42: 2022 | W42: 89100000 | AA42: 89100000 | AB42: 89100000 | AC42: 2022-01-19 | AD42: 2022-01-20 | AE42: 2022-12-19 | AF42: 11 Meses | AM42: Terminado | AN42: 1
A43: 032-2022 | B43: 2022 | C43: FDLM-032-2022 | D43: https://community.secop.gov.co/Public/Tendering/OpportunityDetail/Index?noticeUID=CO1.NTC.2621363&isFromPublicArea=True&isModal=False | E43: Contratos de prestación de servicios profesionales y de apoyo a la gestión | F43: Contratación directa | G43: Prestación de servicios profesionales y de apoyo a la gestión, o para la ejecución de trabajos artísticos que sólo puedan encomendarse a determinadas personas naturales | H43: EL CONTRATISTA SE OBLIGA CON EL FONDO DE DESARROLLO LOCAL DE LOS MÁRTIRES A PRESTAR SUS SERVICIOS DE APOYO A LA GESTIÓN DE ARTICULACIÓN EN LOS TEMAS DE SEGURIDAD CIUDADANA, CONVIVENCIA Y PREVENCIÓN DE CONFLICTIVIDADES, VIOLENCIAS Y DELITOS EN LA LOCALIDAD. | I43: Inversión | J43: Un nuevo contrato social y ambiental para la Bogotá del Siglo XXI | K43: 3 | L43: =IF(ISERROR(VLOOKUP(K43,Proposito_programa!$C$2:$E$59,2,FALSE))," ",VLOOKUP(K43,Proposito_programa!$C$2:$E$59,2,FALSE)) -> Movilidad social integral | M43: =IF(ISERROR(VLOOKUP(K43,Proposito_programa!$C$2:$E$59,3,FALSE))," ",VLOOKUP(K43,Proposito_programa!$C$2:$E$59,3,FALSE)) -> Propósito 1: Hacer un nuevo contrato social para incrementar la inclusión social, productiva y política | N43: O23011603430000002083 | O43: 0 | P43: 19396517 | Q43: HECTOR ALFONSO DELGADO RODRIGUEZ | R43: Persona Natural | S43: N/A | T43: N/A | U43: N/A | V43: 2022 | W43: 27000000 | Y43: 1 | Z43: 14200000 | AA43: =+W43+X43+Z43 -> 41200000 | AB43: 27000000 | AC43: 2022-01-19 | AD43: 2022-01-24 | AE43: 2022-10-23 | AF43: 9 meses | AG43: 1 | AH43: 60 | AM43: En ejecución | AN43: 0.6553398058
A44: 033-2022 | B44: 2022 | C44: FDLM-033-2022 (67821) | D44: https://community.secop.gov.co/Public/Tendering/OpportunityDetail/Index?noticeUID=CO1.NTC.2619729&isFromPublicArea=True&isModal=False | E44: Contratos de prestación de servicios profesionales y de apoyo a la gestión | F44: Contratación directa | G44: Prestación de servicios profesionales y de apoyo a la gestión, o para la ejecución de trabajos artísticos que sólo puedan encomendarse a determinadas personas naturales | H44: PRESTAR LOS SERVICIOS PROFESIONALES COMO APOYO AL ÁREA DE GESTIÓN DEL DESARROLLO, PARA EL FORTALECIMIENTO PRESUPUESTAL Y CONTABLE, EN EL CUMPLIMIENTO DEL PLAN DE DESARROLLO LOCAL VIGENTE | I44: Inversión | J44: Un nuevo contrato social y ambiental para la Bogotá del Siglo XXI | K44: 3 | L44: =IF(ISERROR(VLOOKUP(K44,Proposito_programa!$C$2:$E$59,2,FALSE))," ",VLOOKUP(K44,Proposito_programa!$C$2:$E$59,2,FALSE)) -> Movilidad social integral | M44: =IF(ISERROR(VLOOKUP(K44,Proposito_programa!$C$2:$E$59,3,FALSE))," ",VLOOKUP(K44,Proposito_programa!$C$2:$E$59,3,FALSE)) -> Propósito 1: Hacer un nuevo contrato social para incrementar la inclusión social, productiva y política | N44: O23011605570000002099 | O44: 0 | P44: 52060589 | Q44: EDITH CAROLINA CASTELLANOS MARTINEZ | R44: Persona Natural | S44: N/A | T44: N/A | U44: N/A | V44: 2022 | W44: 45000000 | Y44: 1 | Z44: 5878800 | AA44: 50878800 | AB44: 45000000 | AC44: 2022-01-19 | AD44: 2022-01-21 | AE44: 2022-10-20 | AF44: 9 Meses | AG44: 1 | AH44: 60 | AM44: En ejecución | AN44: 0.884454822
A45: 034-2022 | B45: 2022 | C45: FDLM-034-2022 (68204) | D45: https://community.secop.gov.co/Public/Tendering/OpportunityDetail/Index?noticeUID=CO1.NTC.2630570&isFromPublicArea=True&isModal=False | E45: Contratos de prestación de servicios profesionales y de apoyo a la gestión | F45: Contratación directa | G45: Prestación de servicios profesionales y de apoyo a la gestión, o para la ejecución de trabajos artísticos que sólo puedan encomendarse a determinadas personas naturales | H45: APOYAR EN LAS TAREAS OPERATIVAS DE CARÁCTER ARCHIVISTICO DESARROLLADAS EN LA ALCALDIA LOCAL PARA GARANTIZAR LA APLICACIÓN CORRECTA DE LOS PROCEDIMIENTOS TECNICOS. | I45: Inversión | J45: Un nuevo contrato social y ambiental para la Bogotá del Siglo XXI | K45: 3 | L45: =IF(ISERROR(VLOOKUP(K45,Proposito_programa!$C$2:$E$59,2,FALSE))," ",VLOOKUP(K45,Proposito_programa!$C$2:$E$59,2,FALSE)) -> Movilidad social integral | M45: =IF(ISERROR(VLOOKUP(K45,Proposito_programa!$C$2:$E$59,3,FALSE))," ",VLOOKUP(K45,Proposito_programa!$C$2:$E$59,3,FALSE)) -> Propósito 1: Hacer un nuevo contrato social para incrementar la inclusión social, productiva y política | N45: O23011605570000002099 | O45: 0 | P45: 51689390 | Q45: CARMEN MARIA NIPERUZA FLOREZ | R45: Persona Natural | S45: N/A | T45: N/A | U45: N/A | V45: 2022 | W45: 30739500 | Y45: 1 | Z45: 13016667 | AA45: 43756167 | AB45: =+X45+Y45+AA45 -> 43756168 | AC45: 2022-01-20 | AD45: 2022-01-21 | AE45: 2022-10-20 | AF45: 9 Meses | AG45: 1 | AH45: 90 | AM45: Terminado | AN45: 1.000000023
A46: 035-2022 | B46: 2022 | C46: FDLM-035-2022 (68335) | D46: https://community.secop.gov.co/Public/Tendering/OpportunityDetail/Index?noticeUID=CO1.NTC.2726464&isFromPublicArea=True&isModal=False | E46: Contratos de prestación de servicios profesionales y de apoyo a la gestión | F46: Contratación directa | G46: Prestación de servicios profesionales y de apoyo a la gestión, o para la ejecución de trabajos artísticos que sólo puedan encomendarse a determinadas personas naturales | H46: PRESTAR LOS SERVICIOS PROFESIONALES COMO APOYO AL ÁREA DE GESTIÓN DEL DESARROLLO, PARA EL FORTALECIMIENTO PRESUPUESTAL Y CONTABLE, EN EL CUMPLIMIENTO DEL PLAN DE DESARROLLO LOCAL VIGENTE. | I46: Inversión | J46: Un nuevo contrato social y ambiental para la Bogotá del Siglo XXI | K46: 3 | L46: =IF(ISERROR(VLOOKUP(K46,Proposito_programa!$C$2:$E$59,2,FALSE))," ",VLOOKUP(K46,Proposito_programa!$C$2:$E$59,2,FALSE)) -> Movilidad social integral | M46: =IF(ISERROR(VLOOKUP(K46,Proposito_programa!$C$2:$E$59,3,FALSE))," ",VLOOKUP(K46,Proposito_programa!$C$2:$E$59,3,FALSE)) -> Propósito 1: Hacer un nuevo contrato social para incrementar la inclusión social, productiva y política | N46: O23011605570000002099 | O46: 0 | P46: 1013603935 | Q46: CATHERINE DÍAZ LOZANO | R46: Persona Natural | S46: N/A | T46: N/A | U46: N/A | V46: 2022 | W46: 27120000 | Y46: 1 | Z46: 13560000 | AA46: 40680000 | AB46: 40680001 | AC46: 2022-01-20 | AD46: 2022-01-21 | AE46: 2022-10-20 | AF46: 9 Meses | AM46: Terminado | AN46: =IF(ISERROR(AB46/AA46),"-",(AB46/AA46)) -> 1.000000025
A47: 036-2022 | B47: 2022 | C47: FDLM-036-2022 (68207) | D47: https://community.secop.gov.co/Public/Tendering/OpportunityDetail/Index?noticeUID=CO1.NTC.2671071&isFromPublicArea=True&isModal=False | E47: Contratos de prestación de servicios profesionales y de apoyo a la gestión | F47: Contratación directa | G47: Prestación de servicios profesionales y de apoyo a la gestión, o para la ejecución de trabajos artísticos que sólo puedan encomendarse a determinadas personas naturales | H47: PRESTAR LOS SERVICIOS DE APOYO A GESTIÓN EN LAS DIFERENTES LABORES ADMINISTRATIVAS QUE SURJAN DE LAS ACTIVIDADES DE LA JUNTA ADMINISTRADORA LOCAL DE LOS MÁRTIRES. | I47: Inversión | J47: Un nuevo contrato social y ambiental para la Bogotá del Siglo XXI | K47: 3 | L47: =IF(ISERROR(VLOOKUP(K47,Proposito_programa!$C$2:$E$59,2,FALSE))," ",VLOOKUP(K47,Proposito_programa!$C$2:$E$59,2,FALSE)) -> Movilidad social integral | M47: =IF(ISERROR(VLOOKUP(K47,Proposito_programa!$C$2:$E$59,3,FALSE))," ",VLOOKUP(K47,Proposito_programa!$C$2:$E$59,3,FALSE)) -> Propósito 1: Hacer un nuevo contrato social para incrementar la inclusión social, productiva y política | N47: O23011605570000002099 | O47: 0 | P47: 51880973 | Q47: ARIS SEDITH CABARCAS MARTINEZ | R47: Persona Natural | S47: N/A | T47: N/A | U47: N/A | V47: 2022 | W47: 21424500 | Y47: 1 | Z47: 13016667 | AA47: 34441167 | AB47: 34441168 | AC47: 2022-01-24 | AD47: 2022-01-26 | AE47: 2022-10-25 | AF47: 9 Meses | AG47: 1 | AH47: 60 | AM47: Terminado | AN47: 1.000000029
A48: 037-2022 | B48: 2022 | C48: FDLM-037-2022 (67758) | D48: https://community.secop.gov.co/Public/Tendering/OpportunityDetail/Index?noticeUID=CO1.NTC.2792643&isFromPublicArea=True&isModal=False | E48: Contratos de prestación de servicios profesionales y de apoyo a la gestión | F48: Contratación directa | G48: Prestación de servicios profesionales y de apoyo a la gestión, o para la ejecución de trabajos artísticos que sólo puedan encomendarse a determinadas personas naturales | H48: PRESTAR SUS SERVICIOS PROFESIONALES PARA APOYAR A LOS RESPONSABLES E INTEGRANTES DE LOS PROCESOS EN LA IMPLEMENTACIÓN DE HERRAMIENTAS DEL ÁREA DE GESTIÓN DEL DESARROLLO, SIGUIENDO LOS LINEAMIENTOS METODOLÓGICOS ESTABLECIDOS POR EL FDLM, EN CUMPLIMIENTO DEL PLAN DE DESARROLLO LOCAL VIGENTE. | I48: Inversión | J48: Un nuevo contrato social y ambiental para la Bogotá del Siglo XXI | K48: 3 | L48: =IF(ISERROR(VLOOKUP(K48,Proposito_programa!$C$2:$E$59,2,FALSE))," ",VLOOKUP(K48,Proposito_programa!$C$2:$E$59,2,FALSE)) -> Movilidad social integral | M48: =IF(ISERROR(VLOOKUP(K48,Proposito_programa!$C$2:$E$59,3,FALSE))," ",VLOOKUP(K48,Proposito_programa!$C$2:$E$59,3,FALSE)) -> Propósito 1: Hacer un nuevo contrato social para incrementar la inclusión social, productiva y política | N48: O23011605570000002099 | O48: 0 | P48: 37013312 | Q48: MARIA CECILIA VALLEJO ROSERO | R48: Persona Natural | S48: N/A | T48: N/A | U48: N/A | V48: 2022 | W48: 49500000 | Y48: 1 | Z48: 12833333 | AA48: 62333333 | AB48: 62333334 | AC48: 2022-01-28 | AD48: 2022-02-01 | AE48: 2022-10-31 | AF48: 9 Meses | AG48: 1 | AH48: 60 | AM48: Terminado | AN48: 1.000000016
A49: 038-2022 | B49: 2022 | C49: FDLM-038-2022 (68209) | D49: https://community.secop.gov.co/Public/Tendering/OpportunityDetail/Index?noticeUID=CO1.NTC.2671431&isFromPublicArea=True&isModal=False | E49: Contratos de prestación de servicios profesionales y de apoyo a la gestión | F49: Contratación directa | G49: Prestación de servicios profesionales y de apoyo a la gestión, o para la ejecución de trabajos artísticos que sólo puedan encomendarse a determinadas personas naturales | H49: Prestar sus servicios como personal de apoyo en la conducción de los vehículos livianos o pesados de propiedad del Fondo de Desarrollo Local de Los Mártires. | I49: Inversión | J49: Un nuevo contrato social y ambiental para la Bogotá del Siglo XXI | K49: 3 | L49: =IF(ISERROR(VLOOKUP(K49,Proposito_programa!$C$2:$E$59,2,FALSE))," ",VLOOKUP(K49,Proposito_programa!$C$2:$E$59,2,FALSE)) -> Movilidad social integral | M49: =IF(ISERROR(VLOOKUP(K49,Proposito_programa!$C$2:$E$59,3,FALSE))," ",VLOOKUP(K49,Proposito_programa!$C$2:$E$59,3,FALSE)) -> Propósito 1: Hacer un nuevo contrato social para incrementar la inclusión social, productiva y política | N49: O23011605570000002099 | O49: 0 | P49: 1032356526 | Q49: JOSÉ ORLANDO RUIZ GARCÍA | R49: Persona Natural | S49: N/A | T49: N/A | U49: N/A | V49: 2022 | W49: 22356000 | Y49: 1 | Z49: 12833333 | AA49: 35189333 | AB49: 35189334 | AC49: 2022-01-24 | AD49: 2022-01-27 | AE49: 2022-10-26 | AF49: 9 Meses | AG49: 1 | AH49: 60 | AM49: Terminado | AN49: 1.000000028
A50: 039-2022 | B50: 2022 | C50: FDLM-039-2022 (68338) | D50: https://community.secop.gov.co/Public/Tendering/OpportunityDetail/Index?noticeUID=CO1.NTC.2672110&isFromPublicArea=True&isModal=False | E50: Contratos de prestación de servicios profesionales y de apoyo a la gestión | F50: Contratación directa | G50: Prestación de servicios profesionales y de apoyo a la gestión, o para la ejecución de trabajos artísticos que sólo puedan encomendarse a determinadas personas naturales | H50: APOYAR Y DAR SOPORTE TÉCNICO AL ADMINISTRADOR Y USUARIO FINAL DE LA RED DE SISTEMAS Y TECNOLOGÍA E INFORMACIÓN DE LA ALCALDÍA LOCAL. | I50: Inversión | J50: Un nuevo contrato social y ambiental para la Bogotá del Siglo XXI | K50: 3 | L50: =IF(ISERROR(VLOOKUP(K50,Proposito_programa!$C$2:$E$59,2,FALSE))," ",VLOOKUP(K50,Proposito_programa!$C$2:$E$59,2,FALSE)) -> Movilidad social integral | M50: =IF(ISERROR(VLOOKUP(K50,Proposito_programa!$C$2:$E$59,3,FALSE))," ",VLOOKUP(K50,Proposito_programa!$C$2:$E$59,3,FALSE)) -> Propósito 1: Hacer un nuevo contrato social para incrementar la inclusión social, productiva y política | N50: O23011605570000002099 | O50: 0 | P50: 79301171 | Q50: GUIDO JESUS VITERI HERRERA | R50: Persona Natural | S50: N/A | T50: N/A | U50: N/A | V50: 2022 | W50: 20010000 | AA50: 20010000 | AB50: 20010000 | AC50: 2022-01-24 | AD50: 2022-01-26 | AE50: 2022-07-25 | AF50: 6 Meses | AM50: Terminado | AN50: 1
A51: 040-2022 | B51: 2022 | C51: FDLM-040-2022 (68208) | D51: https://community.secop.gov.co/Public/Tendering/OpportunityDetail/Index?noticeUID=CO1.NTC.2677413&isFromPublicArea=True&isModal=False | E51: Contratos de prestación de servicios profesionales y de apoyo a la gestión | F51: Contratación directa | G51: Prestación de servicios profesionales y de apoyo a la gestión, o para la ejecución de trabajos artísticos que sólo puedan encomendarse a determinadas personas naturales | H51: Apoyar la formulación, ejecución, seguimiento y mejora continua de las herramientas que conforman la Gestión Ambiental Institucional de la Alcaldía Local | I51: Inversión | J51: Un nuevo contrato social y ambiental para la Bogotá del Siglo XXI | K51: 3 | L51: =IF(ISERROR(VLOOKUP(K51,Proposito_programa!$C$2:$E$59,2,FALSE))," ",VLOOKUP(K51,Proposito_programa!$C$2:$E$59,2,FALSE)) -> Movilidad social integral | M51: =IF(ISERROR(VLOOKUP(K51,Proposito_programa!$C$2:$E$59,3,FALSE))," ",VLOOKUP(K51,Proposito_programa!$C$2:$E$59,3,FALSE)) -> Propósito 1: Hacer un nuevo contrato social para incrementar la inclusión social, productiva y política | N51: O23011605570000002099 | O51: 0 | P51: 1026560952 | Q51: EMMANUEL DE JESÚS CALDERÓN RAMÍREZ | R51: Persona Natural | S51: N/A | T51: N/A | U51: N/A | V51: 2022 | W51: 41917500 | Y51: 1 | Z51: 6700000 | AA51: 48617500 | AB51: 48617501 | AC51: 2022-01-24 | AD51: 2022-02-11 | AE51: 2022-11-10 | AF51: 9 Meses | AG51: 1 | AH51: 60 | AM51: Terminado | AN51: 1.000000021
A52: 041-2022 | B52: 2022 | C52: FDLM-041-2022 (68212) | D52: https://community.secop.gov.co/Public/Tendering/OpportunityDetail/Index?noticeUID=CO1.NTC.2674233&isFromPublicArea=True&isModal=False | E52: Contratos de prestación de servicios profesionales y de apoyo a la gestión | F52: Contratación directa | G52: Prestación de servicios profesionales y de apoyo a la gestión, o para la ejecución de trabajos artísticos que sólo puedan encomendarse a determinadas personas naturales | H52: PRESTAR LOS SERVICIOS DE APOYO LOGÍSTICO EN LAS DIFERENTES TAREAS DE BODEGAJE, TRASLADOS, MONTAJES Y DEMÁS ACTIVIDADES RELACIONADAS A CARGO DE LA ALCALDÍA LOCAL DE LOS MÁRTIRES. | I52: Inversión | J52: Un nuevo contrato social y ambiental para la Bogotá del Siglo XXI | K52: 3 | L52: =IF(ISERROR(VLOOKUP(K52,Proposito_programa!$C$2:$E$59,2,FALSE))," ",VLOOKUP(K52,Proposito_programa!$C$2:$E$59,2,FALSE)) -> Movilidad social integral | M52: =IF(ISERROR(VLOOKUP(K52,Proposito_programa!$C$2:$E$59,3,FALSE))," ",VLOOKUP(K52,Proposito_programa!$C$2:$E$59,3,FALSE)) -> Propósito 1: Hacer un nuevo contrato social para incrementar la inclusión social, productiva y política | N52: O23011605570000002099 | O52: 0 | P52: 1019088888 | Q52: HANS SNEIDER CABARCAS TOROS | R52: Persona Natural | S52: N/A | T52: N/A | U52: N/A | V52: 2022 | W52: 20493000 | AA52: 20493000 | AB52: 20493000 | AC52: 2022-01-24 | AD52: 2022-01-28 | AE52: 2022-10-27 | AF52: 9 Meses | AM52: Terminado | AN52: 1
A53: 042-2022 | B53: 2022 | C53: FDLM-042-2022 (70058) | D53: https://community.secop.gov.co/Public/Tendering/OpportunityDetail/Index?noticeUID=CO1.NTC.2726743&isFromPublicArea=True&isModal=False | E53: Contratos de prestación de servicios profesionales y de apoyo a la gestión | F53: Contratación directa | G53: Prestación de servicios profesionales y de apoyo a la gestión, o para la ejecución de trabajos artísticos que sólo puedan encomendarse a determinadas personas naturales | H53: Prestar los servicios profesionales que garanticen la realización de las etapas precontractual, contractual y postcontractual del proyecto 2093, vigencia fiscal 2022, y consecuentemente coadyuven al cumplimiento de las metas del Plan de Desarrollo Local asociadas a dicho proyecto de inversión, y apoyar las labores de supervisión y liquidación de contratos suscritos con cargo al mismo proyecto | I53: Inversión | J53: Un nuevo contrato social y ambiental para la Bogotá del Siglo XXI | K53: 3 | L53: =IF(ISERROR(VLOOKUP(K53,Proposito_programa!$C$2:$E$59,2,FALSE))," ",VLOOKUP(K53,Proposito_programa!$C$2:$E$59,2,FALSE)) -> Movilidad social integral | M53: =IF(ISERROR(VLOOKUP(K53,Proposito_programa!$C$2:$E$59,3,FALSE))," ",VLOOKUP(K53,Proposito_programa!$C$2:$E$59,3,FALSE)) -> Propósito 1: Hacer un nuevo contrato social para incrementar la inclusión social, productiva y política | N53: O23011601240000002093 | O53: 0 | P53: 1026572572 | Q53: JUAN CARLOS SANCHEZ SOLANO | R53: Persona Natural | S53: N/A | T53: N/A | U53: N/A | V53: 2022 | W53: 40000000 | Y53: 1 | Z53: 11666666 | AA53: 51666666 | AB53: 51666667 | AC53: 2022-01-26 | AD53: 2022-01-28 | AE53: 2022-09-27 | AF53: 9 Meses | AG53: 1 | AH53: 60 | AM53: Terminado | AN53: 1.000000019
A54: 043-2022 | B54: 2022 | C54: FDLM-043-2022 (70182) | D54: https://community.secop.gov.co/Public/Tendering/OpportunityDetail/Index?noticeUID=CO1.NTC.2677254&isFromPublicArea=True&isModal=False | E54: Contratos de prestación de servicios profesionales y de apoyo a la gestión | F54: Contratación directa | G54: Prestación de servicios profesionales y de apoyo a la gestión, o para la ejecución de trabajos artísticos que sólo puedan encomendarse a determinadas personas naturales | H54: PRESTAR SERVICIOS PROFESIONALES ÁREA POLICIVA DE LA ALCALDÍA LOCAL DE LOS MÁRTIRES, PARA APOYAR JURÍDICAMENTE LA EJECUCIÓN DE LAS ACCIONES REQUERIDAS PARA LA DEPURACIÓN DE LAS ACTUACIONES ADMINISTRATIVAS QUE CURSAN EN LA ALCALDÍA LOCAL, ASI COMO ADELANTAR TRÁMITES, PROCEDIMIENTOS Y LINEAMIENTOS EN MATERIA JURÍDICA QUE PERMITAN GARANTIZAR EL CUMPLIMIENTO DE LAS METAS ESTABLECIDAS EN EL PLAN DE DESARROLLO LOCAL VIGENTE. | I54: Inversión | J54: Un nuevo contrato social y ambiental para la Bogotá del Siglo XXI | K54: 3 | L54: =IF(ISERROR(VLOOKUP(K54,Proposito_programa!$C$2:$E$59,2,FALSE))," ",VLOOKUP(K54,Proposito_programa!$C$2:$E$59,2,FALSE)) -> Movilidad social integral | M54: =IF(ISERROR(VLOOKUP(K54,Proposito_programa!$C$2:$E$59,3,FALSE))," ",VLOOKUP(K54,Proposito_programa!$C$2:$E$59,3,FALSE)) -> Propósito 1: Hacer un nuevo contrato social para incrementar la inclusión social, productiva y política | N54: O23011605570000002099 | O54: 0 | P54: 1026274713 | Q54: RICARDO ERNESTO SANCHEZ MENESES | R54: Persona Natural | S54: N/A | T54: N/A | U54: N/A | V54: 2022 | W54: 45000000 | AA54: 45000000 | AB54: 45000000 | AC54: 2022-01-24 | AD54: 2022-01-26 | AE54: 2022-10-25 | AF54: 9 Meses | AM54: Terminado | AN54: 1
A55: 044-2022 | B55: 2022 | C55: FDLM-044-2022 (68337) | D55: https://community.secop.gov.co/Public/Tendering/OpportunityDetail/Index?noticeUID=CO1.NTC.2677882&isFromPublicArea=True&isModal=False | E55: Contratos de prestación de servicios profesionales y de apoyo a la gestión | F55: Contratación directa | G55: Prestación de servicios profesionales y de apoyo a la gestión, o para la ejecución de trabajos artísticos que sólo puedan encomendarse a determinadas personas naturales | H55: EL CONTRATISTA SE OBLIGA CON EL FONDO DE DESARROLLO LOCAL DE LOS MÁRTIRES A PRESTAR SUS SERVICIOS DE APOYO A LA GESTIÓN TERRITORIAL EN LOS TEMAS DE SEGURIDAD Y CONVIVENCIA CIUDADANA; EN EL MARCO DEL PROYECTO 2083 MOVILIZACIONES Y AGLOMERACIONES. | I55: Inversión | J55: Un nuevo contrato social y ambiental para la Bogotá del Siglo XXI | K55: 3 | L55: =IF(ISERROR(VLOOKUP(K55,Proposito_programa!$C$2:$E$59,2,FALSE))," ",VLOOKUP(K55,Proposito_programa!$C$2:$E$59,2,FALSE)) -> Movilidad social integral | M55: =IF(ISERROR(VLOOKUP(K55,Proposito_programa!$C$2:$E$59,3,FALSE))," ",VLOOKUP(K55,Proposito_programa!$C$2:$E$59,3,FALSE)) -> Propósito 1: Hacer un nuevo contrato social para incrementar la inclusión social, productiva y política | N55: O23011603430000002083 | O55: 0 | P55: 1013618655 | Q55: FABIO ANDRES SOLORZA CORRALES | R55: Persona Natural | S55: N/A | T55: N/A | U55: N/A | V55: 2022 | W55: 15600000 | AA55: 15600000 | AB55: 15600000 | AC55: 2022-01-24 | AD55: 2022-02-03 | AE55: 2022-08-02 | AF55: 6 Meses | AM55: Terminado | AN55: 1
A56: 045-2022 | B56: 2022 | C56: FDLM-045-2022 (67810) | D56: https://community.secop.gov.co/Public/Tendering/OpportunityDetail/Index?noticeUID=CO1.NTC.2677832&isFromPublicArea=True&isModal=False | E56: Contratos de prestación de servicios profesionales y de apoyo a la gestión | F56: Contratación directa | G56: Prestación de servicios profesionales y de apoyo a la gestión, o para la ejecución de trabajos artísticos que sólo puedan encomendarse a determinadas personas naturales | H56: PRESTAR SERVICIOS DE APOYO PARA LA ATENCIÓN, GESTIÓN Y TRÁMITE DE LOS ASUNTOS DE GESTIÓN DEL RIESGO, MANEJO DE AGLOMERACIONES, ATRACCIONES Y DISPOSITIVOS DE ENTRETENIMIENTOS A CARGO DE LA LOCALIDAD DE LOS MÁRTIRES | I56: Inversión | J56: Un nuevo contrato social y ambiental para la Bogotá del Siglo XXI | K56: 3 | L56: =IF(ISERROR(VLOOKUP(K56,Proposito_programa!$C$2:$E$59,2,FALSE))," ",VLOOKUP(K56,Proposito_programa!$C$2:$E$59,2,FALSE)) -> Movilidad social integral | M56: =IF(ISERROR(VLOOKUP(K56,Proposito_programa!$C$2:$E$59,3,FALSE))," ",VLOOKUP(K56,Proposito_programa!$C$2:$E$59,3,FALSE)) -> Propósito 1: Hacer un nuevo contrato social para incrementar la inclusión social, productiva y política | N56: O23011605570000002099 | O56: 0 | P56: 1121914746 | Q56: GINA PAOLA ALBARRACIN FAJARDO | R56: Persona Natural | S56: N/A | T56: N/A | U56: N/A | V56: 2022 | W56: 23400000 | AA56: 23400000 | AB56: 23400000 | AC56: 2022-01-24 | AD56: 2022-01-26 | AE56: 2022-10-25 | AF56: 9 Meses | AM56: Terminado | AN56: 1
A57: 046-2022 | B57: 2022 | C57: FDLM-046-2022 (68565) | D57: https://community.secop.gov.co/Public/Tendering/OpportunityDetail/Index?noticeUID=CO1.NTC.2723162&isFromPublicArea=True&isModal=False | E57: Contratos de prestación de servicios profesionales y de apoyo a la gestión | F57: Contratación directa | G57: Prestación de servicios profesionales y de apoyo a la gestión, o para la ejecución de trabajos artísticos que sólo puedan encomendarse a determinadas personas naturales | H57: CONTRATAR LA PRESTACIÓN DE SERVICIOS PROFESIONALES PARA LIDERAR LA EJECUCIÓN DEL PROYECTO 2077 DE PREVENCIÓN DE VIOLENCIA INTRAFAMILIAR, VIOLENCIA SEXUAL EN EL CONTEXTO FAMILIAR Y PROMOCIÓN DEL BUEN TRATO Y ENTORNO PROTECTORES PARA POBLACIONES EN SITUACIÓN DE RIESGO EN CUMPLIMIENTO DEL PLAN DE DESARROLLO LOCAL | I57: Inversión | J57: Un nuevo contrato social y ambiental para la Bogotá del Siglo XXI | K57: 3 | L57: =IF(ISERROR(VLOOKUP(K57,Proposito_programa!$C$2:$E$59,2,FALSE))," ",VLOOKUP(K57,Proposito_programa!$C$2:$E$59,2,FALSE)) -> Movilidad social integral | M57: =IF(ISERROR(VLOOKUP(K57,Proposito_programa!$C$2:$E$59,3,FALSE))," ",VLOOKUP(K57,Proposito_programa!$C$2:$E$59,3,FALSE)) -> Propósito 1: Hacer un nuevo contrato social para incrementar la inclusión social, productiva y política | N57: O23011601060000002077 | O57: 0 | P57: 88281606 | Q57: DENIS EDUARDO BARROZO ROJAS | R57: Persona Natural | S57: N/A | T57: N/A | U57: N/A | V57: 2022 | W57: 46200000 | AA57: 46200000 | AB57: 46200000 | AC57: 2022-01-26 | AD57: 2022-01-28 | AE57: 2022-08-27 | AF57: 9 Meses | AI57: 1026283969 | AJ57: LEIDY CAROLINA MORENO HURTADO | AK57: 2022-07-01 | AM57: Terminado | AN57: 1
A58: 047-2022 | B58: 2022 | C58: FDLM-047-2022 (68565) | D58: https://community.secop.gov.co/Public/Tendering/OpportunityDetail/Index?noticeUID=CO1.NTC.2681692&isFromPublicArea=True&isModal=False | E58: Contratos de prestación de servicios profesionales y de apoyo a la gestión | F58: Contratación directa | G58: Prestación de servicios profesionales y de apoyo a la gestión, o para la ejecución de trabajos artísticos que sólo puedan encomendarse a determinadas personas naturales | H58: APOYAR JURIDICAMENTE AL FONDO DE DESARROLLO LOCAL DE LOS MARTIRES EN LA IMPLENTACION DE ACUEDOS, PLANES Y PROGRAMAS QUE PROMUEVAN LA CONVIVENCIA ARMÓNICA ENTRE LA CIUDADANÍA Y LOS VENDEDORES INFORMALES Y ESTACIONARIOS, ORIENTADOS A LA SOLUCIÓN DE LOS CONFLICTOS DEL ESPACIO PÚBLICO IDENTIFICADOS POR LAS ALCALDÍAS LOCALES, ASI COMO LAS DEMAS ACCIONES REQUERIDAS QUE PERMITAN GARANTIZAR EL CUMPLIMIENTO DE LAS METAS ESTABLECIDAS EN EL PLAN DE DESARROLLO LOCAL VIGENTE. | I58: Inversión | J58: Un nuevo contrato social y ambiental para la Bogotá del Siglo XXI | K58: 3 | L58: =IF(ISERROR(VLOOKUP(K58,Proposito_programa!$C$2:$E$59,2,FALSE))," ",VLOOKUP(K58,Proposito_programa!$C$2:$E$59,2,FALSE)) -> Movilidad social integral | M58: =IF(ISERROR(VLOOKUP(K58,Proposito_programa!$C$2:$E$59,3,FALSE))," ",VLOOKUP(K58,Proposito_programa!$C$2:$E$59,3,FALSE)) -> Propósito 1: Hacer un nuevo contrato social para incrementar la inclusión social, productiva y política | N58: O23011603450000002080 | O58: 0 | P58: 1091666488 | Q58: DANILO ALFONSO CORONEL ROJAS | R58: Persona Natural | S58: N/A | T58: N/A | U58: N/A | V58: 2022 | W58: 45000000 | Y58: 1 | Z58: 7969500 | AA58: 52969500 | AB58: 52969501 | AC58: 2022-01-24 | AD58: 2022-01-28 | AE58: 2022-10-27 | AF58: 9 Meses | AG58: 1 | AH58: 60 | AM58: Terminado | AN58: 1.000000019
A59: 048-2022 | B59: 2022 | C59: FDLM-048-2022 (67763) | D59: https://community.secop.gov.co/Public/Tendering/OpportunityDetail/Index?noticeUID=CO1.NTC.2677250&isFromPublicArea=True&isModal=False | E59: Contratos de prestación de servicios profesionales y de apoyo a la gestión | F59: Contratación directa | G59: Prestación de servicios profesionales y de apoyo a la gestión, o para la ejecución de trabajos artísticos que sólo puedan encomendarse a determinadas personas naturales | H59: PRESTAR SUS SERVICIOS PROFESIONALES DE APOYO EN LA FORMULACIÓN, EVALUACIÓN Y SEGUIMIENTO DE LAS INSTANCIAS DE PARTICIPACIÓN LOCALES, ASÍ COMO DE LOS PROYECTOS DE INVERSIÓN Y DEMÁS ACTIVIDADES RELACIONADAS CON EL ÁREA DE GESTIÓN DEL DESARROLLO LOCAL | I59: Inversión | J59: Un nuevo contrato social y ambiental para la Bogotá del Siglo XXI | K59: 3 | L59: =IF(ISERROR(VLOOKUP(K59,Proposito_programa!$C$2:$E$59,2,FALSE))," ",VLOOKUP(K59,Proposito_programa!$C$2:$E$59,2,FALSE)) -> Movilidad social integral | M59: =IF(ISERROR(VLOOKUP(K59,Proposito_programa!$C$2:$E$59,3,FALSE))," ",VLOOKUP(K59,Proposito_programa!$C$2:$E$59,3,FALSE)) -> Propósito 1: Hacer un nuevo contrato social para incrementar la inclusión social, productiva y política | N59: O23011605570000002099 | O59: 0 | P59: 1020779562 | Q59: ANA MARIA CRUZ TORRES | R59: Persona Natural | S59: N/A | T59: N/A | U59: N/A | V59: 2022 | W59: 55800000 | Y59: 1 | Z59: 5157750 | AA59: 60957750 | AB59: 60957751 | AC59: 2022-01-24 | AD59: 2022-02-01 | AE59: 2022-10-31 | AF59: 9 Meses | AG59: 1 | AH59: 60 | AM59: Terminado | AN59: 1.000000016
A60: 049-2022 | B60: 2022 | C60: FDLM-049-2022 (68565) | D60: https://community.secop.gov.co/Public/Tendering/OpportunityDetail/Index?noticeUID=CO1.NTC.2678882&isFromPublicArea=True&isModal=False | E60: Contratos de prestación de servicios profesionales y de apoyo a la gestión | F60: Contratación directa | G60: Prestación de servicios profesionales y de apoyo a la gestión, o para la ejecución de trabajos artísticos que sólo puedan encomendarse a determinadas personas naturales | H60: APOYAR JURIDICAMENTE AL FONDO DE DESARROLLO LOCAL DE LOS MARTIRES EN LA IMPLENTACION DE ACUEDOS, PLANES Y PROGRAMAS QUE PROMUEVAN LA CONVIVENCIA ARMÓNICA ENTRE LA CIUDADANÍA Y LOS VENDEDORES INFORMALES Y ESTACIONARIOS, ORIENTADOS A LA SOLUCIÓN DE LOS CONFLICTOS DEL ESPACIO PÚBLICO IDENTIFICADOS POR LAS ALCALDÍAS LOCALES, ASI COMO LAS DEMAS ACCIONES REQUERIDAS QUE PERMITAN GARANTIZAR EL CUMPLIMIENTO DE LAS METAS ESTABLECIDAS EN EL PLAN DE DESARROLLO LOCAL VIGENTE. | I60: Inversión | J60: Un nuevo contrato social y ambiental para la Bogotá del Siglo XXI | K60: 3 | L60: =IF(ISERROR(VLOOKUP(K60,Proposito_programa!$C$2:$E$59,2,FALSE))," ",VLOOKUP(K60,Proposito_programa!$C$2:$E$59,2,FALSE)) -> Movilidad social integral | M60: =IF(ISERROR(VLOOKUP(K60,Proposito_programa!$C$2:$E$59,3,FALSE))," ",VLOOKUP(K60,Proposito_programa!$C$2:$E$59,3,FALSE)) -> Propósito 1: Hacer un nuevo contrato social para incrementar la inclusión social, productiva y política | N60: O23011603450000002080 | O60: 0 | P60: 1121881058 | Q60: ANDRÉS CRUZ CASTAÑEDA | R60: Persona Natural | S60: N/A | T60: N/A | U60: N/A | V60: 2022 | W60: 45000000 | Y60: 1 | Z60: 11000000 | AA60: 56000000 | AB60: 56000001 | AC60: 2022-01-24 | AD60: 2022-02-02 | AE60: 2022-11-01 | AF60: 9 Meses | AG60: 1 | AH60: 60 | AM60: Terminado | AN60: 1.000000018
A61: 050-2022 | B61: 2022 | C61: FDLM-050-2022 (68565) | D61: https://community.secop.gov.co/Public/Tendering/OpportunityDetail/Index?noticeUID=CO1.NTC.2679406&isFromPublicArea=True&isModal=False | E61: Contratos de prestación de servicios profesionales y de apoyo a la gestión | F61: Contratación directa | G61: Prestación de servicios profesionales y de apoyo a la gestión, o para la ejecución de trabajos artísticos que sólo puedan encomendarse a determinadas personas naturales | H61: APOYAR JURIDICAMENTE AL FONDO DE DESARROLLO LOCAL DE LOS MARTIRES EN LA IMPLENTACION DE ACUEDOS, PLANES Y PROGRAMAS QUE PROMUEVAN LA CONVIVENCIA ARMÓNICA ENTRE LA CIUDADANÍA Y LOS VENDEDORES INFORMALES Y ESTACIONARIOS, ORIENTADOS A LA SOLUCIÓN DE LOS CONFLICTOS DEL ESPACIO PÚBLICO IDENTIFICADOS POR LAS ALCALDÍAS LOCALES, ASI COMO LAS DEMAS ACCIONES REQUERIDAS QUE PERMITAN GARANTIZAR EL CUMPLIMIENTO DE LAS METAS ESTABLECIDAS EN EL PLAN DE DESARROLLO LOCAL VIGENTE. | I61: Inversión | J61: Un nuevo contrato social y ambiental para la Bogotá del Siglo XXI | K61: 3 | L61: =IF(ISERROR(VLOOKUP(K61,Proposito_programa!$C$2:$E$59,2,FALSE))," ",VLOOKUP(K61,Proposito_programa!$C$2:$E$59,2,FALSE)) -> Movilidad social integral | M61: =IF(ISERROR(VLOOKUP(K61,Proposito_programa!$C$2:$E$59,3,FALSE))," ",VLOOKUP(K61,Proposito_programa!$C$2:$E$59,3,FALSE)) -> Propósito 1: Hacer un nuevo contrato social para incrementar la inclusión social, productiva y política | N61: O23011603450000002080 | O61: 0 | P61: 51921603 | Q61: AURA ALICIA INFANTE GARCIA | R61: Persona Natural | S61: N/A | T61: N/A | U61: N/A | V61: 2022 | W61: 45000000 | Y61: 1 | Z61: 3229200 | AA61: 48229200 | AB61: 48229201 | AC61: 2022-01-24 | AD61: 2022-01-26 | AE61: 2022-10-25 | AF61: 9 Meses | AG61: 1 | AH61: 60 | AM61: Terminado | AN61: 1.000000021
A62: 051-2022 | B62: 2022 | C62: FDLM-051-2022 (68565) | D62: https://community.secop.gov.co/Public/Tendering/OpportunityDetail/Index?noticeUID=CO1.NTC.2679426&isFromPublicArea=True&isModal=False | E62: Contratos de prestación de servicios profesionales y de apoyo a la gestión | F62: Contratación directa | G62: Prestación de servicios profesionales y de apoyo a la gestión, o para la ejecución de trabajos artísticos que sólo puedan encomendarse a determinadas personas naturales | H62: APOYAR JURIDICAMENTE AL FONDO DE DESARROLLO LOCAL DE LOS MARTIRES EN LA IMPLENTACION DE ACUEDOS, PLANES Y PROGRAMAS QUE PROMUEVAN LA CONVIVENCIA ARMÓNICA ENTRE LA CIUDADANÍA Y LOS VENDEDORES INFORMALES Y ESTACIONARIOS, ORIENTADOS A LA SOLUCIÓN DE LOS CONFLICTOS DEL ESPACIO PÚBLICO IDENTIFICADOS POR LAS ALCALDÍAS LOCALES, ASI COMO LAS DEMAS ACCIONES REQUERIDAS QUE PERMITAN GARANTIZAR EL CUMPLIMIENTO DE LAS METAS ESTABLECIDAS EN EL PLAN DE DESARROLLO LOCAL VIGENTE. | I62: Inversión | J62: Un nuevo contrato social y ambiental para la Bogotá del Siglo XXI | K62: 3 | L62: =IF(ISERROR(VLOOKUP(K62,Proposito_programa!$C$2:$E$59,2,FALSE))," ",VLOOKUP(K62,Proposito_programa!$C$2:$E$59,2,FALSE)) -> Movilidad social integral | M62: =IF(ISERROR(VLOOKUP(K62,Proposito_programa!$C$2:$E$59,3,FALSE))," ",VLOOKUP(K62,Proposito_programa!$C$2:$E$59,3,FALSE)) -> Propósito 1: Hacer un nuevo contrato social para incrementar la inclusión social, productiva y política | N62: O23011603450000002080 | O62: 0 | P62: 1023910605 | Q62: LUIS ARIEL MOLINA MOTAVITA | R62: Persona Natural | S62: N/A | T62: N/A | U62: N/A | V62: 2022 | W62: 45000000 | Y62: 1 | Z62: 7762500 | AA62: 52762500 | AB62: 52762501 | AC62: 2022-01-24 | AD62: 2022-02-03 | AE62: 2022-11-02 | AF62: 9 Meses | AG62: 1 | AH62: 59 | AI62: 52266204 | AJ62: CLARA ALBINO RODRIGUEZ | AK62: 2022-07-01 | AM62: Terminado | AN62: 1.000000019
A63: 052-2022 | B63: 2022 | C63: FDLM-052-2022 (70536) | D63: https://community.secop.gov.co/Public/Tendering/OpportunityDetail/Index?noticeUID=CO1.NTC.2676216&isFromPublicArea=True&isModal=False | E63: Contratos de prestación de servicios profesionales y de apoyo a la gestión | F63: Contratación directa | G63: Prestación de servicios profesionales y de apoyo a la gestión, o para la ejecución de trabajos artísticos que sólo puedan encomendarse a determinadas personas naturales | H63: Prestar los servicios profesionales que garanticen la adecuada concertación de acciones para la estructuración del proceso precontractual y contractual relativos al proyecto 2096 de la vigencia fiscal 2022, así como el apoyo a la ejecución del contrato a través del cual se ejecute la respectiva meta plan de desarrollo y objetivos del proyecto de inversión. | I63: Inversión | J63: Un nuevo contrato social y ambiental para la Bogotá del Siglo XXI | K63: 3 | L63: =IF(ISERROR(VLOOKUP(K63,Proposito_programa!$C$2:$E$59,2,FALSE))," ",VLOOKUP(K63,Proposito_programa!$C$2:$E$59,2,FALSE)) -> Movilidad social integral | M63: =IF(ISERROR(VLOOKUP(K63,Proposito_programa!$C$2:$E$59,3,FALSE))," ",VLOOKUP(K63,Proposito_programa!$C$2:$E$59,3,FALSE)) -> Propósito 1: Hacer un nuevo contrato social para incrementar la inclusión social, productiva y política | N63: O23011605550000002096 | O63: 0 | P63: 1023872353 | Q63: JEYSSON ANDRES GARCIA ROZO | R63: Persona Natural | S63: N/A | T63: N/A | U63: N/A | V63: 2022 | W63: 40000000 | AA63: 40000000 | AB63: 40000000 | AC63: 2022-01-24 | AD63: 2022-02-05 | AE63: 2022-10-04 | AF63: 8 Meses | AM63: Terminado | AN63: 1
A64: 053-2022 | B64: 2022 | C64: FDLM-053-2022 (67810) | D64: https://community.secop.gov.co/Public/Tendering/OpportunityDetail/Index?noticeUID=CO1.NTC.2769708&isFromPublicArea=True&isModal=False | E64: Contratos de prestación de servicios profesionales y de apoyo a la gestión | F64: Contratación directa | G64: Prestación de servicios profesionales y de apoyo a la gestión, o para la ejecución de trabajos artísticos que sólo puedan encomendarse a determinadas personas naturales | H64: PRESTAR SERVICIOS DE APOYO PARA LA ATENCIÓN, GESTIÓN Y TRÁMITE DE LOS ASUNTOS DE GESTIÓN DEL RIESGO, MANEJO DE AGLOMERACIONES, ATRACCIONES Y DISPOSITIVOS DE ENTRETENIMIENTOS A CARGO DE LA LOCALIDAD DE LOS MÁRTIRES | I64: Inversión | J64: Un nuevo contrato social y ambiental para la Bogotá del Siglo XXI | K64: 3 | L64: =IF(ISERROR(VLOOKUP(K64,Proposito_programa!$C$2:$E$59,2,FALSE))," ",VLOOKUP(K64,Proposito_programa!$C$2:$E$59,2,FALSE)) -> Movilidad social integral | M64: =IF(ISERROR(VLOOKUP(K64,Proposito_programa!$C$2:$E$59,3,FALSE))," ",VLOOKUP(K64,Proposito_programa!$C$2:$E$59,3,FALSE)) -> Propósito 1: Hacer un nuevo contrato social para incrementar la inclusión social, productiva y política | N64: O23011605570000002099 | O64: 0 | P64: 80744125 | Q64: RICHARD OSPINA PERDOMO | R64: Persona Natural | S64: N/A | T64: N/A | U64: N/A | V64: 2022 | W64: 23400000 | AA64: 23400000 | AB64: 23400000 | AC64: 2022-01-28 | AD64: 2022-02-01 | AE64: 2022-10-31 | AF64: 9 meses | AM64: Terminado | AN64: 1
A65: 054-2022 | B65: 2022 | C65: FDLM-054-2022 (67810) | D65: https://community.secop.gov.co/Public/Tendering/OpportunityDetail/Index?noticeUID=CO1.NTC.2678415&isFromPublicArea=True&isModal=False | E65: Contratos de prestación de servicios profesionales y de apoyo a la gestión | F65: Contratación directa | G65: Prestación de servicios profesionales y de apoyo a la gestión, o para la ejecución de trabajos artísticos que sólo puedan encomendarse a determinadas personas naturales | H65: PRESTAR SERVICIOS DE APOYO PARA LA ATENCIÓN, GESTIÓN Y TRÁMITE DE LOS ASUNTOS DE GESTIÓN DEL RIESGO, MANEJO DE AGLOMERACIONES, ATRACCIONES Y DISPOSITIVOS DE ENTRETENIMIENTOS A CARGO DE LA LOCALIDAD DE LOS MÁRTIRES | I65: Inversión | J65: Un nuevo contrato social y ambiental para la Bogotá del Siglo XXI | K65: 3 | L65: =IF(ISERROR(VLOOKUP(K65,Proposito_programa!$C$2:$E$59,2,FALSE))," ",VLOOKUP(K65,Proposito_programa!$C$2:$E$59,2,FALSE)) -> Movilidad social integral | M65: =IF(ISERROR(VLOOKUP(K65,Proposito_programa!$C$2:$E$59,3,FALSE))," ",VLOOKUP(K65,Proposito_programa!$C$2:$E$59,3,FALSE)) -> Propósito 1: Hacer un nuevo contrato social para incrementar la inclusión social, productiva y política | N65: O23011605570000002099 | O65: 0 | P65: 79611892 | Q65: JAVIER CRUZ VALVUENA | R65: Persona Natural | S65: N/A | T65: N/A | U65: N/A | V65: 2022 | W65: 23400000 | Y65: 1 | Z65: 15000000 | AA65: 38400000 | AB65: 38400001 | AC65: 2022-01-24 | AD65: 2022-01-26 | AE65: 2022-10-25 | AF65: 9 meses | AG65: 1 | AH65: 90 | AM65: Terminado | AN65: 1.000000026
A66: 055-2022 | B66: 2022 | C66: FDLM-055-2022 (67810) | D66: https://community.secop.gov.co/Public/Tendering/OpportunityDetail/Index?noticeUID=CO1.NTC.2678419&isFromPublicArea=True&isModal=False | E66: Contratos de prestación de servicios profesionales y de apoyo a la gestión | F66: Contratación directa | G66: Prestación de servicios profesionales y de apoyo a la gestión, o para la ejecución de trabajos artísticos que sólo puedan encomendarse a determinadas personas naturales | H66: PRESTAR SERVICIOS DE APOYO PARA LA ATENCIÓN, GESTIÓN Y TRÁMITE DE LOS ASUNTOS DE GESTIÓN DEL RIESGO, MANEJO DE AGLOMERACIONES, ATRACCIONES Y DISPOSITIVOS DE ENTRETENIMIENTOS A CARGO DE LA LOCALIDAD DE LOS MÁRTIRES | I66: Inversión | J66: Un nuevo contrato social y ambiental para la Bogotá del Siglo XXI | K66: 3 | L66: =IF(ISERROR(VLOOKUP(K66,Proposito_programa!$C$2:$E$59,2,FALSE))," ",VLOOKUP(K66,Proposito_programa!$C$2:$E$59,2,FALSE)) -> Movilidad social integral | M66: =IF(ISERROR(VLOOKUP(K66,Proposito_programa!$C$2:$E$59,3,FALSE))," ",VLOOKUP(K66,Proposito_programa!$C$2:$E$59,3,FALSE)) -> Propósito 1: Hacer un nuevo contrato social para incrementar la inclusión social, productiva y política | N66: O23011605570000002099 | O66: 0 | P66: 80927834 | Q66: PEDRO DAVID GALEANO MARTINEZ | R66: Persona Natural | S66: N/A | T66: N/A | U66: N/A | V66: 2022 | W66: 23400000 | AA66: 23400000 | AB66: 23400000 | AC66: 2022-01-24 | AD66: 2022-01-26 | AE66: 2022-10-25 | AF66: 9 meses | AM66: Terminado | AN66: 1
A67: 056-2022 | B67: 2022 | C67: FDLM-056-2022 (67810) | D67: https://community.secop.gov.co/Public/Tendering/OpportunityDetail/Index?noticeUID=CO1.NTC.2726428&isFromPublicArea=True&isModal=False | E67: Contratos de prestación de servicios profesionales y de apoyo a la gestión | F67: Contratación directa | G67: Prestación de servicios profesionales y de apoyo a la gestión, o para la ejecución de trabajos artísticos que sólo puedan encomendarse a determinadas personas naturales | H67: PRESTAR SERVICIOS DE APOYO PARA LA ATENCIÓN, GESTIÓN Y TRÁMITE DE LOS ASUNTOS DE GESTIÓN DEL RIESGO, MANEJO DE AGLOMERACIONES, ATRACCIONES Y DISPOSITIVOS DE ENTRETENIMIENTOS A CARGO DE LA LOCALIDAD DE LOS MÁRTIRES | I67: Inversión | J67: Un nuevo contrato social y ambiental para la Bogotá del Siglo XXI | K67: 3 | L67: =IF(ISERROR(VLOOKUP(K67,Proposito_programa!$C$2:$E$59,2,FALSE))," ",VLOOKUP(K67,Proposito_programa!$C$2:$E$59,2,FALSE)) -> Movilidad social integral | M67: =IF(ISERROR(VLOOKUP(K67,Proposito_programa!$C$2:$E$59,3,FALSE))," ",VLOOKUP(K67,Proposito_programa!$C$2:$E$59,3,FALSE)) -> Propósito 1: Hacer un nuevo contrato social para incrementar la inclusión social, productiva y política | N67: O23011605570000002099 | O67: 0 | P67: 1023862869 | Q67: OLGA VIVIANA LOPEZ CIFUENTES | R67: Persona Natural | S67: N/A | T67: N/A | U67: N/A | V67: 2022 | W67: 23400000 | X67: 7800000 | Y67: 2022-07-19 | AA67: 31200000 | AB67: 39044761 | AC67: 2022-01-26 | AD67: 2022-01-28 | AE67: 2022-10-27 | AF67: 9 meses | AM67: Terminado | AN67: 1.251434647
A68: 057-2022 | B68: 2022 | C68: FDLM-057-2022 (68212) | D68: https://community.secop.gov.co/Public/Tendering/OpportunityDetail/Index?noticeUID=CO1.NTC.2791967&isFromPublicArea=True&isModal=False | E68: Contratos de prestación de servicios profesionales y de apoyo a la gestión | F68: Contratación directa | G68: Prestación de servicios profesionales y de apoyo a la gestión, o para la ejecución de trabajos artísticos que sólo puedan encomendarse a determinadas personas naturales | H68: PRESTAR LOS SERVICIOS DE APOYO LOGÍSTICO EN LAS DIFERENTES TAREAS DE BODEGAJE, TRASLADOS, MONTAJES Y DEMÁS ACTIVIDADES RELACIONADAS A CARGO DE LA ALCALDÍA LOCAL DE LOS MÁRTIRES. | I68: Inversión | J68: Un nuevo contrato social y ambiental para la Bogotá del Siglo XXI | K68: 3 | L68: =IF(ISERROR(VLOOKUP(K68,Proposito_programa!$C$2:$E$59,2,FALSE))," ",VLOOKUP(K68,Proposito_programa!$C$2:$E$59,2,FALSE)) -> Movilidad social integral | M68: =IF(ISERROR(VLOOKUP(K68,Proposito_programa!$C$2:$E$59,3,FALSE))," ",VLOOKUP(K68,Proposito_programa!$C$2:$E$59,3,FALSE)) -> Propósito 1: Hacer un nuevo contrato social para incrementar la inclusión social, productiva y política | N68: O23011605570000002099 | O68: 0 | P68: 1020721996 | Q68: DIEGO ERNESTO GOMEZ VELA | R68: Persona Natural | S68: N/A | T68: N/A | U68: N/A | V68: 2022 | W68: 20493000 | Y68: 1 | Z68: 15000000 | AA68: 35493000 | AB68: 20493000 | AC68: 2022-01-28 | AD68: 2022-02-02 | AE68: 2022-11-01 | AF68: 9 meses | AG68: 1 | AH68: 90 | AI68: 80504340 | AJ68: RAFAEL ANTONIO ALBA CAMARGO | AK68: 2022-10-04 | AM68: En ejecución | AN68: 0.5773814555
A69: 058-2022 | B69: 2022 | C69: FDLM-058-2022 (68337) | D69: https://community.secop.gov.co/Public/Tendering/OpportunityDetail/Index?noticeUID=CO1.NTC.2678372&isFromPublicArea=True&isModal=False | E69: Contratos de prestación de servicios profesionales y de apoyo a la gestión | F69: Contratación directa | G69: Prestación de servicios profesionales y de apoyo a la gestión, o para la ejecución de trabajos artísticos que sólo puedan encomendarse a determinadas personas naturales | H69: EL CONTRATISTA SE OBLIGA CON EL FONDO DE DESARROLLO LOCAL DE LOS MÁRTIRES A PRESTAR SUS SERVICIOS DE APOYO A LA GESTIÓN TERRITORIAL EN LOS TEMAS DE SEGURIDAD Y CONVIVENCIA CIUDADANA; EN EL MARCO DEL PROYECTO 2083 MOVILIZACIONES Y AGLOMERACIONES. | I69: Inversión | J69: Un nuevo contrato social y ambiental para la Bogotá del Siglo XXI | K69: 3 | L69: =IF(ISERROR(VLOOKUP(K69,Proposito_programa!$C$2:$E$59,2,FALSE))," ",VLOOKUP(K69,Proposito_programa!$C$2:$E$59,2,FALSE)) -> Movilidad social integral | M69: =IF(ISERROR(VLOOKUP(K69,Proposito_programa!$C$2:$E$59,3,FALSE))," ",VLOOKUP(K69,Proposito_programa!$C$2:$E$59,3,FALSE)) -> Propósito 1: Hacer un nuevo contrato social para incrementar la inclusión social, productiva y política | N69: O23011603430000002083 | O69: 0 | P69: 1014291719 | Q69: JESSICA LORENA GÓMEZ PARDO | R69: Persona Natural | S69: N/A | T69: N/A | U69: N/A | V69: 2022 | W69: 15600000 | Y69: 1 | Z69: 7800000 | AA69: 23400000 | AB69: =+X69+Y69+AA69 -> 23400001 | AC69: 2022-01-24 | AD69: 2022-01-26 | AE69: 2022-10-25 | AF69: 9 Meses | AG69: 1 | AH69: 1 mes | AM69: Terminado | AN69: 1.000000043
A70: 059-2022 | B70: 2022 | C70: FDLM-059-2022 (68337) | D70: https://community.secop.gov.co/Public/Tendering/OpportunityDetail/Index?noticeUID=CO1.NTC.2678434&isFromPublicArea=True&isModal=False | E70: Contratos de prestación de servicios profesionales y de apoyo a la gestión | F70: Contratación directa | G70: Prestación de servicios profesionales y de apoyo a la gestión, o para la ejecución de trabajos artísticos que sólo puedan encomendarse a determinadas personas naturales | H70: EL CONTRATISTA SE OBLIGA CON EL FONDO DE DESARROLLO LOCAL DE LOS MÁRTIRES A PRESTAR SUS SERVICIOS DE APOYO A LA GESTIÓN TERRITORIAL EN LOS TEMAS DE SEGURIDAD Y CONVIVENCIA CIUDADANA; EN EL MARCO DEL PROYECTO 2083 MOVILIZACIONES Y AGLOMERACIONES. | I70: Inversión | J70: Un nuevo contrato social y ambiental para la Bogotá del Siglo XXI | K70: 3 | L70: =IF(ISERROR(VLOOKUP(K70,Proposito_programa!$C$2:$E$59,2,FALSE))," ",VLOOKUP(K70,Proposito_programa!$C$2:$E$59,2,FALSE)) -> Movilidad social integral | M70: =IF(ISERROR(VLOOKUP(K70,Proposito_programa!$C$2:$E$59,3,FALSE))," ",VLOOKUP(K70,Proposito_programa!$C$2:$E$59,3,FALSE)) -> Propósito 1: Hacer un nuevo contrato social para incrementar la inclusión social, productiva y política | N70: O23011603430000002083 | O70: 0 | P70: 1095806484 | Q70: JUAN DIEGO ROSAS GARCIA | R70: Persona Natural | S70: N/A | T70: N/A | U70: N/A | V70: 2022 | W70: 15600000 | AA70: 15600000 | AB70: 15600000 | AC70: 2022-01-24 | AD70: 2022-01-28 | AE70: 2022-07-27 | AF70: 6 meses | AM70: Terminado | AN70: 1
A71: 060-2022 | B71: 2022 | C71: FDLM-060-2022 (68337 | D71: https://community.secop.gov.co/Public/Tendering/OpportunityDetail/Index?noticeUID=CO1.NTC.2684082&isFromPublicArea=True&isModal=False | E71: Contratos de prestación de servicios profesionales y de apoyo a la gestión | F71: Contratación directa | G71: Prestación de servicios profesionales y de apoyo a la gestión, o para la ejecución de trabajos artísticos que sólo puedan encomendarse a determinadas personas naturales | H71: EL CONTRATISTA SE OBLIGA CON EL FONDO DE DESARROLLO LOCAL DE LOS MÁRTIRES A PRESTAR SUS SERVICIOS DE APOYO A LA GESTIÓN TERRITORIAL EN LOS TEMAS DE SEGURIDAD Y CONVIVENCIA CIUDADANA; EN EL MARCO DEL PROYECTO 2083 MOVILIZACIONES Y AGLOMERACIONES. | I71: Inversión | J71: Un nuevo contrato social y ambiental para la Bogotá del Siglo XXI | K71: 3 | L71: =IF(ISERROR(VLOOKUP(K71,Proposito_programa!$C$2:$E$59,2,FALSE))," ",VLOOKUP(K71,Proposito_programa!$C$2:$E$59,2,FALSE)) -> Movilidad social integral | M71: =IF(ISERROR(VLOOKUP(K71,Proposito_programa!$C$2:$E$59,3,FALSE))," ",VLOOKUP(K71,Proposito_programa!$C$2:$E$59,3,FALSE)) -> Propósito 1: Hacer un nuevo contrato social para incrementar la inclusión social, productiva y política | N71: O23011603430000002083 | O71: 0 | P71: 1022428142 | Q71: ANDRES MATEO GOMEZ RAMOS | R71: Persona Natural | S71: N/A | T71: N/A | U71: N/A | V71: 2022 | W71: 15600000 | AA71: 15600000 | AB71: 15600000 | AC71: 2022-01-24 | AD71: 2022-01-26 | AE71: 2022-07-25 | AF71: 6 meses | AM71: Terminado | AN71: 1
A72: 061-2022 | B72: 2022 | C72: FDLM-061-2022 (70236) | D72: https://community.secop.gov.co/Public/Tendering/OpportunityDetail/Index?noticeUID=CO1.NTC.2681726&isFromPublicArea=True&isModal=False | E72: Contratos de prestación de servicios profesionales y de apoyo a la gestión | F72: Contratación directa | G72: Prestación de servicios profesionales y de apoyo a la gestión, o para la ejecución de trabajos artísticos que sólo puedan encomendarse a determinadas personas naturales | H72: Prestar los servicios profesionales que garanticen la realización de las etapas precontractual, contractual y postcontractual del proyecto 2075, vigencia fiscal 2022, y consecuentemente coadyuven al cumplimiento de las metas del Plan de Desarrollo Local asociadas a dicho proyecto de inversión | I72: Inversión | J72: Un nuevo contrato social y ambiental para la Bogotá del Siglo XXI | K72: 3 | L72: =IF(ISERROR(VLOOKUP(K72,Proposito_programa!$C$2:$E$59,2,FALSE))," ",VLOOKUP(K72,Proposito_programa!$C$2:$E$59,2,FALSE)) -> Movilidad social integral | M72: =IF(ISERROR(VLOOKUP(K72,Proposito_programa!$C$2:$E$59,3,FALSE))," ",VLOOKUP(K72,Proposito_programa!$C$2:$E$59,3,FALSE)) -> Propósito 1: Hacer un nuevo contrato social para incrementar la inclusión social, productiva y política | N72: O23011601200000002075 | O72: 0 | P72: 1016006137 | Q72: DAIRO ALEXANDER BUSTOS TRIANA | R72: Persona Natural | S72: N/A | T72: N/A | U72: N/A | V72: 2022 | W72: 40000000 | AA72: 40000000 | AB72: 40000000 | AC72: 2022-01-24 | AD72: 2022-01-26 | AE72: 2022-09-25 | AF72: 8 Meses | AM72: Terminado | AN72: 1
A73: 062-2022 | B73: 2022 | C73: FDLM-062-2022 (70032) | D73: https://community.secop.gov.co/Public/Tendering/OpportunityDetail/Index?noticeUID=CO1.NTC.2712723&isFromPublicArea=True&isModal=False | E73: Contratos de prestación de servicios profesionales y de apoyo a la gestión | F73: Contratación directa | G73: Prestación de servicios profesionales y de apoyo a la gestión, o para la ejecución de trabajos artísticos que sólo puedan encomendarse a determinadas personas naturales | H73: Prestar servicios profesionales en los proyectos que tienen por objeto la construcción, rehabilitación y mantenimiento de la infraestructura vial y espacio público de la localidad de los mártires. | I73: Inversión | J73: Un nuevo contrato social y ambiental para la Bogotá del Siglo XXI | K73: 3 | L73: =IF(ISERROR(VLOOKUP(K73,Proposito_programa!$C$2:$E$59,2,FALSE))," ",VLOOKUP(K73,Proposito_programa!$C$2:$E$59,2,FALSE)) -> Movilidad social integral | M73: =IF(ISERROR(VLOOKUP(K73,Proposito_programa!$C$2:$E$59,3,FALSE))," ",VLOOKUP(K73,Proposito_programa!$C$2:$E$59,3,FALSE)) -> Propósito 1: Hacer un nuevo contrato social para incrementar la inclusión social, productiva y política | N73: O23011604490000002097 | O73: 0 | P73: 52844049 | Q73: PILAR EUGENIA ROJAS CASTIBLANCO | R73: Persona Natural | S73: N/A | T73: N/A | U73: N/A | V73: 2022 | W73: 54000000 | Y73: 1 | Z73: 10500000 | AA73: 64500000 | AB73: 64500001 | AC73: 2022-01-24 | AD73: 2022-02-01 | AE73: 2022-10-31 | AF73: 9 Meses | AG73: 1 | AH73: 60 | AM73: Terminado | AN73: 1.000000016
A74: 063-2022 | B74: 2022 | C74: FDLM-063-2022 (70220) | D74: https://community.secop.gov.co/Public/Tendering/OpportunityDetail/Index?noticeUID=CO1.NTC.2714269&isFromPublicArea=True&isModal=False | E74: Contratos de prestación de servicios profesionales y de apoyo a la gestión | F74: Contratación directa | G74: Prestación de servicios profesionales y de apoyo a la gestión, o para la ejecución de trabajos artísticos que sólo puedan encomendarse a determinadas personas naturales | H74: PRESTAR LOS SERVICIOS DE APOYO ADMINISTRATIVO PARA LA IMPLEMENTACIÓN DE ACUERDOS QUE PROMUEVAN LA CONVIVENCIA ARMÓNICA ENTRE LA CIUDADANÍA Y LOS VENDEDORES INFORMALES Y ESTACIONARIOS, ORIENTADOS A LA SOLUCIÓN DE LOS CONFLICTOS DEL ESPACIO PÚBLICO IDENTIFICADOS POR LAS ALCALDÍAS LOCALES, ASÍ COMO EL APOYO AL ÁREA DE GESTIÓN POLICIVA Y JURÍDICA DE LA ALCALDÍA LOCAL DE LOS MÁRTIRES. | I74: Inversión | J74: Un nuevo contrato social y ambiental para la Bogotá del Siglo XXI | K74: 3 | L74: =IF(ISERROR(VLOOKUP(K74,Proposito_programa!$C$2:$E$59,2,FALSE))," ",VLOOKUP(K74,Proposito_programa!$C$2:$E$59,2,FALSE)) -> Movilidad social integral | M74: =IF(ISERROR(VLOOKUP(K74,Proposito_programa!$C$2:$E$59,3,FALSE))," ",VLOOKUP(K74,Proposito_programa!$C$2:$E$59,3,FALSE)) -> Propósito 1: Hacer un nuevo contrato social para incrementar la inclusión social, productiva y política | N74: O23011605570000002099 | O74: 0 | P74: 1026592803 | Q74: SERGIO ARTURO ROMERO CASTAÑEDA | R74: Persona Natural | S74: N/A | T74: N/A | U74: N/A | V74: 2022 | W74: 23400000 | AA74: 23400000 | AB74: 23400000 | AC74: 2022-01-24 | AD74: 2022-01-28 | AE74: 2022-10-27 | AF74: 9 Meses | AM74: Terminado | AN74: 1
A75: 064-2022 | B75: 2022 | C75: FDLM-064-2022 (68565) | D75: https://community.secop.gov.co/Public/Tendering/OpportunityDetail/Index?noticeUID=CO1.NTC.2714834&isFromPublicArea=True&isModal=False | E75: Contratos de prestación de servicios profesionales y de apoyo a la gestión | F75: Contratación directa | G75: Prestación de servicios profesionales y de apoyo a la gestión, o para la ejecución de trabajos artísticos que sólo puedan encomendarse a determinadas personas naturales | H75: APOYAR JURIDICAMENTE AL FONDO DE DESARROLLO LOCAL DE LOS MARTIRES EN LA IMPLENTACION DE ACUEDOS, PLANES Y PROGRAMAS QUE PROMUEVAN LA CONVIVENCIA ARMÓNICA ENTRE LA CIUDADANÍA Y LOS VENDEDORES INFORMALES Y ESTACIONARIOS, ORIENTADOS A LA SOLUCIÓN DE LOS CONFLICTOS DEL ESPACIO PÚBLICO IDENTIFICADOS POR LAS ALCALDÍAS LOCALES, ASI COMO LAS DEMAS ACCIONES REQUERIDAS QUE PERMITAN GARANTIZAR EL CUMPLIMIENTO DE LAS METAS ESTABLECIDAS EN EL PLAN DE DESARROLLO LOCAL VIGENTE. | I75: Inversión | J75: Un nuevo contrato social y ambiental para la Bogotá del Siglo XXI | K75: 3 | L75: =IF(ISERROR(VLOOKUP(K75,Proposito_programa!$C$2:$E$59,2,FALSE))," ",VLOOKUP(K75,Proposito_programa!$C$2:$E$59,2,FALSE)) -> Movilidad social integral | M75: =IF(ISERROR(VLOOKUP(K75,Proposito_programa!$C$2:$E$59,3,FALSE))," ",VLOOKUP(K75,Proposito_programa!$C$2:$E$59,3,FALSE)) -> Propósito 1: Hacer un nuevo contrato social para incrementar la inclusión social, productiva y política | N75: O23011603450000002080 | O75: 0 | P75: 46383509 | Q75: YENNY ANDREA CÁRDENAS LEÓN | R75: Persona Natural | S75: N/A | T75: N/A | U75: N/A | V75: 2022 | W75: 45000000 | Y75: 1 | Z75: 12400000 | AA75: =+W75+X75+Z75 -> 57400000 | AB75: 57400001 | AC75: 2022-01-24 | AD75: 2022-01-28 | AE75: 2022-10-27 | AF75: 9 Meses | AG75: 1 | AH75: 60 | AM75: Terminado | AN75: 1.000000017
A76: 065-2022 | B76: 2022 | C76: FDLM-065-2022 (70085) | D76: https://community.secop.gov.co/Public/Tendering/OpportunityDetail/Index?noticeUID=CO1.NTC.2726347&isFromPublicArea=True&isModal=False | E76: Contratos de prestación de servicios profesionales y de apoyo a la gestión | F76: Contratación directa | G76: Prestación de servicios profesionales y de apoyo a la gestión, o para la ejecución de trabajos artísticos que sólo puedan encomendarse a determinadas personas naturales | H76: APOYAR TÉCNICAMENTE LA REALIZACIÓN DE ACUERDOS QUE PROMUEVAN LA CONVIVENCIA ARMÓNICA ENTRE LA CIUDADANÍA Y LOS VENDEDORES INFORMALES Y ESTACIONARIOS, ORIENTADOS A LA SOLUCIÓN DE LOS CONFLICTOS DEL ESPACIO PÚBLICO IDENTIFICADOS POR LAS ALCALDÍAS LOCALES, ASI COMO APOYAR TENICAMENTE LAS DISTINTAS ETAPAS DE LOS PROCESOS DE COMPETENCIA DE LA ALCALDÍA LOCAL Y/O INSPECCIONES DE POLICÍA PARA LA DEPURACIÓN DE ACTUACIONES ADMINISTRATIVAS Y/O QUERELLAS. | I76: Inversión | J76: Un nuevo contrato social y ambiental para la Bogotá del Siglo XXI | K76: 3 | L76: =IF(ISERROR(VLOOKUP(K76,Proposito_programa!$C$2:$E$59,2,FALSE))," ",VLOOKUP(K76,Proposito_programa!$C$2:$E$59,2,FALSE)) -> Movilidad social integral | M76: =IF(ISERROR(VLOOKUP(K76,Proposito_programa!$C$2:$E$59,3,FALSE))," ",VLOOKUP(K76,Proposito_programa!$C$2:$E$59,3,FALSE)) -> Propósito 1: Hacer un nuevo contrato social para incrementar la inclusión social, productiva y política | N76: O23011603450000002080 | O76: 0 | P76: 19456366 | Q76: EDGAR GOYENECHE MUÑOZ | R76: Persona Natural | S76: N/A | T76: N/A | U76: N/A | V76: 2022 | W76: 40950000 | Y76: 1 | Z76: 9833333 | AA76: 50783333 | AB76: 50783334 | AC76: 2022-01-26 | AD76: 2022-02-01 | AE76: 2022-10-31 | AF76: 9 Meses | AG76: 1 | AH76: 59 | AM76: Terminado | AN76: 1.00000002
A77: 066-2022 | B77: 2022 | C77: FDLM- 066-2022 (67793) | D77: https://community.secop.gov.co/Public/Tendering/OpportunityDetail/Index?noticeUID=CO1.NTC.2724995&isFromPublicArea=True&isModal=False | E77: Contratos de prestación de servicios profesionales y de apoyo a la gestión | F77: Contratación directa | G77: Prestación de servicios profesionales y de apoyo a la gestión, o para la ejecución de trabajos artísticos que sólo puedan encomendarse a determinadas personas naturales | H77: APOYAR ADMINISTRATIVA Y ASISTENCIALMENTE EN LAS ETAPAS DE LA GESTIÓN PÚBLICA CONTRACTUAL, EN CUMPLIMIENTO DEL PLAN DE DESARROLLO LOCAL VIGENTE | I77: Inversión | J77: Un nuevo contrato social y ambiental para la Bogotá del Siglo XXI | K77: 3 | L77: =IF(ISERROR(VLOOKUP(K77,Proposito_programa!$C$2:$E$59,2,FALSE))," ",VLOOKUP(K77,Proposito_programa!$C$2:$E$59,2,FALSE)) -> Movilidad social integral | M77: =IF(ISERROR(VLOOKUP(K77,Proposito_programa!$C$2:$E$59,3,FALSE))," ",VLOOKUP(K77,Proposito_programa!$C$2:$E$59,3,FALSE)) -> Propósito 1: Hacer un nuevo contrato social para incrementar la inclusión social, productiva y política | N77: O23011605570000002099 | O77: 0 | P77: 1001897394 | Q77: MAYRA ALEJANDRA CABARCAS CARDENAS | R77: Persona Natural | S77: N/A | T77: N/A | U77: N/A | V77: 2022 | W77: 28800000 | Y77: 1 | Z77: 10833333 | AA77: 39633333 | AB77: 28800000 | AC77: 2022-01-25 | AD77: 2022-02-01 | AE77: 2022-10-31 | AF77: 9 Meses | AG77: 1 | AH77: 60 | AM77: En ejecución | AN77: 0.7266610658
A78: 067-2022 | B78: 2022 | C78: FDLM-067-2022 (70133) | D78: https://community.secop.gov.co/Public/Tendering/OpportunityDetail/Index?noticeUID=CO1.NTC.2729721&isFromPublicArea=True&isModal=False | E78: Contratos de prestación de servicios profesionales y de apoyo a la gestión | F78: Contratación directa | G78: Prestación de servicios profesionales y de apoyo a la gestión, o para la ejecución de trabajos artísticos que sólo puedan encomendarse a determinadas personas naturales | H78: Apoyar el cubrimiento de las actividades, cronogramas y agenda de la alcaldía local a nivel interno y externo, así como la generación de contenidos periodísticos | I78: Inversión | J78: Un nuevo contrato social y ambiental para la Bogotá del Siglo XXI | K78: 3 | L78: =IF(ISERROR(VLOOKUP(K78,Proposito_programa!$C$2:$E$59,2,FALSE))," ",VLOOKUP(K78,Proposito_programa!$C$2:$E$59,2,FALSE)) -> Movilidad social integral | M78: =IF(ISERROR(VLOOKUP(K78,Proposito_programa!$C$2:$E$59,3,FALSE))," ",VLOOKUP(K78,Proposito_programa!$C$2:$E$59,3,FALSE)) -> Propósito 1: Hacer un nuevo contrato social para incrementar la inclusión social, productiva y política | N78: O23011605570000002099 | O78: 0 | P78: 1020815999 | Q78: ANYEL MARIANA RUEDA CHAVES | R78: Persona Natural | S78: N/A | T78: N/A | U78: N/A | V78: 2022 | W78: 40950000 | AA78: 40950000 | AB78: =+X78+Y78+AA78 -> 40950000 | AC78: 2022-01-26 | AD78: 2022-02-03 | AE78: 2022-11-02 | AF78: 9 Meses | AM78: Terminado | AN78: =IF(ISERROR(AB78/AA78),"-",(AB78/AA78)) -> 1
A79: 068-2022 | B79: 2022 | C79: FDLM-068-2022 (70133) | D79: https://community.secop.gov.co/Public/Tendering/OpportunityDetail/Index?noticeUID=CO1.NTC.2726437&isFromPublicArea=True&isModal=False | E79: Contratos de prestación de servicios profesionales y de apoyo a la gestión | F79: Contratación directa | G79: Prestación de servicios profesionales y de apoyo a la gestión, o para la ejecución de trabajos artísticos que sólo puedan encomendarse a determinadas personas naturales | H79: Apoyar el cubrimiento de las actividades, cronogramas y agenda de la alcaldía local a nivel interno y externo, así como la generación de contenidos periodísticos | I79: Inversión | J79: Un nuevo contrato social y ambiental para la Bogotá del Siglo XXI | K79: 3 | L79: =IF(ISERROR(VLOOKUP(K79,Proposito_programa!$C$2:$E$59,2,FALSE))," ",VLOOKUP(K79,Proposito_programa!$C$2:$E$59,2,FALSE)) -> Movilidad social integral | M79: =IF(ISERROR(VLOOKUP(K79,Proposito_programa!$C$2:$E$59,3,FALSE))," ",VLOOKUP(K79,Proposito_programa!$C$2:$E$59,3,FALSE)) -> Propósito 1: Hacer un nuevo contrato social para incrementar la inclusión social, productiva y política | N79: O23011605570000002099 | O79: 0 | P79: 79853593 | Q79: JOSÉ ALEJANDRO ESPEJO MEDINA | R79: Persona Natural | S79: N/A | T79: N/A | U79: N/A | V79: 2022 | W79: 40950000 | X79: 7800000 | Y79: 2022-07-25 | AA79: 48750000 | AB79: 56594767 | AC79: 2022-01-26 | AD79: 2022-01-28 | AE79: 2022-10-27 | AF79: 9 Meses | AM79: Terminado | AN79: 1.160918297
A80: 069-2022 | B80: 2022 | C80: FDLM-069-2022 (68565) | D80: https://community.secop.gov.co/Public/Tendering/OpportunityDetail/Index?noticeUID=CO1.NTC.2717691&isFromPublicArea=True&isModal=False | E80: Contratos de prestación de servicios profesionales y de apoyo a la gestión | F80: Contratación directa | G80: Prestación de servicios profesionales y de apoyo a la gestión, o para la ejecución de trabajos artísticos que sólo puedan encomendarse a determinadas personas naturales | H80: APOYAR JURIDICAMENTE AL FONDO DE DESARROLLO LOCAL DE LOS MARTIRES EN LA IMPLENTACION DE ACUEDOS, PLANES Y PROGRAMAS QUE PROMUEVAN LA CONVIVENCIA ARMÓNICA ENTRE LA CIUDADANÍA Y LOS VENDEDORES INFORMALES Y ESTACIONARIOS, ORIENTADOS A LA SOLUCIÓN DE LOS CONFLICTOS DEL ESPACIO PÚBLICO IDENTIFICADOS POR LAS ALCALDÍAS LOCALES, ASI COMO LAS DEMAS ACCIONES REQUERIDAS QUE PERMITAN GARANTIZAR EL CUMPLIMIENTO DE LAS METAS ESTABLECIDAS EN EL PLAN DE DESARROLLO LOCAL VIGENTE. | I80: Inversión | J80: Un nuevo contrato social y ambiental para la Bogotá del Siglo XXI | K80: 3 | L80: =IF(ISERROR(VLOOKUP(K80,Proposito_programa!$C$2:$E$59,2,FALSE))," ",VLOOKUP(K80,Proposito_programa!$C$2:$E$59,2,FALSE)) -> Movilidad social integral | M80: =IF(ISERROR(VLOOKUP(K80,Proposito_programa!$C$2:$E$59,3,FALSE))," ",VLOOKUP(K80,Proposito_programa!$C$2:$E$59,3,FALSE)) -> Propósito 1: Hacer un nuevo contrato social para incrementar la inclusión social, productiva y política | N80: O23011603450000002080 | O80: 0 | P80: 1010220159 | Q80: KAREM DANIELLA VELASCO PARADA | R80: Persona Natural | S80: N/A | T80: N/A | U80: N/A | V80: 2022 | W80: 45000000 | Y80: 1 | Z80: 9666667 | AA80: 54666667 | AB80: 54666668 | AC80: 2022-01-25 | AD80: 2022-01-28 | AE80: 2022-10-27 | AF80: 9 Meses | AG80: 1 | AH80: 59 | AM80: Terminado | AN80: 1.000000018
A81: 070-2022 | B81: 2022 | C81: FDLM-070-2022 (68333) | D81: https://community.secop.gov.co/Public/Tendering/OpportunityDetail/Index?noticeUID=CO1.NTC.2726242&isFromPublicArea=True&isModal=False | E81: Contratos de prestación de servicios profesionales y de apoyo a la gestión | F81: Contratación directa | G81: Prestación de servicios profesionales y de apoyo a la gestión, o para la ejecución de trabajos artísticos que sólo puedan encomendarse a determinadas personas naturales | H81: Prestar los servicios como apoyo administrativo y asistencial en el área gestión del desarrollo, administrativa y finanzas, a los profesionales que desarrollan obligaciones de obras de infraestructura (malla vial, parques y estabilidad). | I81: Inversión | J81: Un nuevo contrato social y ambiental para la Bogotá del Siglo XXI | K81: 3 | L81: =IF(ISERROR(VLOOKUP(K81,Proposito_programa!$C$2:$E$59,2,FALSE))," ",VLOOKUP(K81,Proposito_programa!$C$2:$E$59,2,FALSE)) -> Movilidad social integral | M81: =IF(ISERROR(VLOOKUP(K81,Proposito_programa!$C$2:$E$59,3,FALSE))," ",VLOOKUP(K81,Proposito_programa!$C$2:$E$59,3,FALSE)) -> Propósito 1: Hacer un nuevo contrato social para incrementar la inclusión social, productiva y política | N81: O23011604490000002097 | O81: 0 | P81: 1032490091 | Q81: PAULA ANGÉLICA JIMÉNEZ TAMARA | R81: Persona Natural | S81: N/A | T81: N/A | U81: N/A | V81: 2022 | W81: 15600000 | Y81: 1 | Z81: 7800000 | AA81: 23400000 | AB81: 23400001 | AC81: 2022-01-26 | AD81: 2022-01-28 | AE81: 2022-10-27 | AF81: 9 Meses | AG81: 1 | AH81: 1 mes | AM81: Terminado | AN81: 1.000000043
A82: 071-2022 | B82: 2022 | C82: FDLM-071-2022 (68331) | D82: https://community.secop.gov.co/Public/Tendering/OpportunityDetail/Index?noticeUID=CO1.NTC.2726456&isFromPublicArea=True&isModal=False | E82: Contratos de prestación de servicios profesionales y de apoyo a la gestión | F82: Contratación directa | G82: Prestación de servicios profesionales y de apoyo a la gestión, o para la ejecución de trabajos artísticos que sólo puedan encomendarse a determinadas personas naturales | H82: PRESTAR SUS SERVICIOS PROFESIONALES PARA APOYAR JURÍDICAMENTE LA EJECUCIÓN DE LAS ACCIONES REQUERIDAS PARA LA DEPURACIÓN DE LAS ACTUACIONES ADMINISTRATIVAS QUE CURSAN EN LA ALCALDÍA LOCAL DE LOS MÁRTIRES | I82: Inversión | J82: Un nuevo contrato social y ambiental para la Bogotá del Siglo XXI | K82: 3 | L82: =IF(ISERROR(VLOOKUP(K82,Proposito_programa!$C$2:$E$59,2,FALSE))," ",VLOOKUP(K82,Proposito_programa!$C$2:$E$59,2,FALSE)) -> Movilidad social integral | M82: =IF(ISERROR(VLOOKUP(K82,Proposito_programa!$C$2:$E$59,3,FALSE))," ",VLOOKUP(K82,Proposito_programa!$C$2:$E$59,3,FALSE)) -> Propósito 1: Hacer un nuevo contrato social para incrementar la inclusión social, productiva y política | N82: O23011603430000002083 | O82: 0 | P82: 1007539578 | Q82: JUAN PABLO TORRES ALVAREZ | R82: Persona Natural | S82: N/A | T82: N/A | U82: N/A | V82: 2022 | W82: 27120000 | X82: 7800000 | Y82: 2022-07-25 | AA82: 34920000 | AB82: 42764767 | AC82: 2022-01-25 | AD82: 2022-02-01 | AE82: 2022-07-31 | AF82: 6 Meses | AM82: Terminado | AN82: 1.224649685
A83: 072-2022 | B83: 2022 | C83: FDLM-072-2022 (68332) | D83: https://community.secop.gov.co/Public/Tendering/OpportunityDetail/Index?noticeUID=CO1.NTC.2725639&isFromPublicArea=True&isModal=False | E83: Contratos de prestación de servicios profesionales y de apoyo a la gestión | F83: Contratación directa | G83: Prestación de servicios profesionales y de apoyo a la gestión, o para la ejecución de trabajos artísticos que sólo puedan encomendarse a determinadas personas naturales | H83: Prestar los servicios técnicos para la operación, seguimiento y cumplimiento de los procesos y procedimientos del servicio social Apoyos para la Seguridad Económica Tipo C, requeridos para el oportuno y adecuado registro, cruce y reporte de los datos en el sistema de información y registro de Beneficiarios-SIRBE, que contribuyan a la garantía de los derechos de la población mayor en el marco de la Política Pública Social para el Envejecimiento y la Vejez en el Distrito Capital a cargo de la Alcaldía. | I83: Inversión | J83: Un nuevo contrato social y ambiental para la Bogotá del Siglo XXI | K83: 3 | L83: =IF(ISERROR(VLOOKUP(K83,Proposito_programa!$C$2:$E$59,2,FALSE))," ",VLOOKUP(K83,Proposito_programa!$C$2:$E$59,2,FALSE)) -> Movilidad social integral | M83: =IF(ISERROR(VLOOKUP(K83,Proposito_programa!$C$2:$E$59,3,FALSE))," ",VLOOKUP(K83,Proposito_programa!$C$2:$E$59,3,FALSE)) -> Propósito 1: Hacer un nuevo contrato social para incrementar la inclusión social, productiva y política | N83: O23011601010000002068 | O83: 0 | P83: 1031157993 | Q83: YEIMI PAHOLA HERRERA RUIZ | R83: Persona Natural | S83: N/A | T83: N/A | U83: N/A | V83: 2022 | W83: 29808000 | Y83: 1 | Z83: 5633333 | AA83: 35441333 | AB83: 35441334 | AC83: 2022-01-25 | AD83: 2022-01-28 | AE83: 2022-10-27 | AF83: 9 Meses | AG83: 1 | AH83: 60 | AM83: Terminado | AN83: 1.000000028
A84: 073-2022 | B84: 2022 | C84: FDLM-073-2022 (67822) | D84: https://community.secop.gov.co/Public/Tendering/OpportunityDetail/Index?noticeUID=CO1.NTC.2726069&isFromPublicArea=True&isModal=False | E84: Contratos de prestación de servicios profesionales y de apoyo a la gestión | F84: Contratación directa | G84: Prestación de servicios profesionales y de apoyo a la gestión, o para la ejecución de trabajos artísticos que sólo puedan encomendarse a determinadas personas naturales | H84: PRESTAR LOS SERVICIOS PROFESIONALES COMO APOYO AL ÁREA DE GESTIÓN DEL DESARROLLO, PARA EL FORTALECIMIENTO PRESUPUESTAL Y CONTABLE, EN EL CUMPLIMIENTO DEL PLAN DE DESARROLLO LOCAL VIGENTE | I84: Inversión | J84: Un nuevo contrato social y ambiental para la Bogotá del Siglo XXI | K84: 3 | L84: =IF(ISERROR(VLOOKUP(K84,Proposito_programa!$C$2:$E$59,2,FALSE))," ",VLOOKUP(K84,Proposito_programa!$C$2:$E$59,2,FALSE)) -> Movilidad social integral | M84: =IF(ISERROR(VLOOKUP(K84,Proposito_programa!$C$2:$E$59,3,FALSE))," ",VLOOKUP(K84,Proposito_programa!$C$2:$E$59,3,FALSE)) -> Propósito 1: Hacer un nuevo contrato social para incrementar la inclusión social, productiva y política | N84: O23011605570000002099 | O84: 0 | P84: 1022325511 | Q84: JHONN ALEXANDER BAHOS HERRERA | R84: Persona Natural | S84: N/A | T84: N/A | U84: N/A | V84: 2022 | W84: 45000000 | Y84: 1 | Z84: 4478100 | AA84: 49478100 | AB84: 49478101 | AC84: 2022-01-25 | AD84: 2022-01-28 | AE84: 2022-10-27 | AF84: 9 meses | AG84: 1 | AH84: 60 | AM84: Terminado | AN84: 1.00000002
A85: 074-2022 | B85: 2022 | C85: FDLM-074-2022 (68566) | D85: https://community.secop.gov.co/Public/Tendering/OpportunityDetail/Index?noticeUID=CO1.NTC.2728732&isFromPublicArea=True&isModal=False | E85: Contratos de prestación de servicios profesionales y de apoyo a la gestión | F85: Contratación directa | G85: Prestación de servicios profesionales y de apoyo a la gestión, o para la ejecución de trabajos artísticos que sólo puedan encomendarse a determinadas personas naturales | H85: Apoyar técnicamente al área de gestión del desarrollo de la Alcaldía Local de los Mártires, en la ejecución administrativa y financiera, para el cumplimiento del plan de desarrollo local vigente. | I85: Inversión | J85: Un nuevo contrato social y ambiental para la Bogotá del Siglo XXI | K85: 3 | L85: =IF(ISERROR(VLOOKUP(K85,Proposito_programa!$C$2:$E$59,2,FALSE))," ",VLOOKUP(K85,Proposito_programa!$C$2:$E$59,2,FALSE)) -> Movilidad social integral | M85: =IF(ISERROR(VLOOKUP(K85,Proposito_programa!$C$2:$E$59,3,FALSE))," ",VLOOKUP(K85,Proposito_programa!$C$2:$E$59,3,FALSE)) -> Propósito 1: Hacer un nuevo contrato social para incrementar la inclusión social, productiva y política | N85: O23011605570000002099 | O85: 0 | P85: 1024560480 | Q85: YURY ALEXANDRA DUQUE VALLEJO | R85: Persona Natural | S85: N/A | T85: N/A | U85: N/A | V85: 2022 | W85: 35100000 | Y85: 1 | Z85: 12000000 | AA85: 47100000 | AB85: 47100001 | AC85: 2022-01-26 | AD85: 2022-01-28 | AE85: 2022-10-27 | AF85: 9 meses | AG85: 1 | AH85: 60 | AM85: Terminado | AN85: 1.000000021
A86: 075-2022 | B86: 2022 | C86: FDLM-075-2022 (67825) | D86: https://community.secop.gov.co/Public/Tendering/OpportunityDetail/Index?noticeUID=CO1.NTC.2726462&isFromPublicArea=True&isModal=False | E86: Contratos de prestación de servicios profesionales y de apoyo a la gestión | F86: Contratación directa | G86: Prestación de servicios profesionales y de apoyo a la gestión, o para la ejecución de trabajos artísticos que sólo puedan encomendarse a determinadas personas naturales | H86: PRESTAR SERVICIOS PROFESIONALES ÁREA POLICIVA DE LA ALCALDÍA LOCAL DE LOS MARTIRES, PARA APOYAR JURIDICAMENTE LA EJECUCIÓN DE LAS ACCIONES REQUERIDAS PARA LA DEPURACIÓN DE LAS ACTUACIONES ADMINISTRATIVAS QUE CURSAN EN LA ALCALDÍA LOCAL, ASI COMO EL SEGUIMIENTO AL COBRO COACTIVO Y PERSUASIVO, INFORMES MENSUALES DE SIVICOF, MANEJO DEL SISTEMA SICO Y RESPUESTA A TUTELAS QUE LE SEAN ASIGNADOS. | I86: Inversión | J86: Un nuevo contrato social y ambiental para la Bogotá del Siglo XXI | K86: 3 | L86: =IF(ISERROR(VLOOKUP(K86,Proposito_programa!$C$2:$E$59,2,FALSE))," ",VLOOKUP(K86,Proposito_programa!$C$2:$E$59,2,FALSE)) -> Movilidad social integral | M86: =IF(ISERROR(VLOOKUP(K86,Proposito_programa!$C$2:$E$59,3,FALSE))," ",VLOOKUP(K86,Proposito_programa!$C$2:$E$59,3,FALSE)) -> Propósito 1: Hacer un nuevo contrato social para incrementar la inclusión social, productiva y política | N86: O23011605570000002099 | O86: 0 | P86: 53115231 | Q86: LAURA JANNETH RICO BELTRAN | R86: Persona Natural | S86: N/A | T86: N/A | U86: N/A | V86: 2022 | W86: 54000000 | Y86: 1 | Z86: 10500000 | AA86: 64500000 | AB86: 64500001 | AC86: 2022-01-26 | AD86: 2022-01-28 | AE86: 2022-10-27 | AF86: 9 meses | AG86: 1 | AH86: 60 | AM86: Terminado | AN86: 1.000000016
A87: 076-2022 | B87: 2022 | C87: FDLM-076-2022 (68800) | D87: https://community.secop.gov.co/Public/Tendering/OpportunityDetail/Index?noticeUID=CO1.NTC.2728095&isFromPublicArea=True&isModal=False | E87: Contratos de prestación de servicios profesionales y de apoyo a la gestión | F87: Contratación directa | G87: Prestación de servicios profesionales y de apoyo a la gestión, o para la ejecución de trabajos artísticos que sólo puedan encomendarse a determinadas personas naturales | H87: PRESTAR LOS SERVICIOS PROFESIONALES PARA LA FORMULACIÓN PRE CONTRACTUAL PARTICIPATIVA, APOYO A LA SUPERVISIÓN, SEGUIMIENTO, ACOMPAÑAMIENTO, ATENCIÓN Y EVALUACIÓN DE LOS PROYECTOS E INSTANCIAS DE ARTICULACIÓN INTERINSTITUCIONAL Y PARTICIPACIÓN LOCAL QUE SE REQUIERAN EN EL PROYECTO 2077 TERRITORIOS DIVERSOS Y LIBRES DE VIOLENCIA. | I87: Inversión | J87: Un nuevo contrato social y ambiental para la Bogotá del Siglo XXI | K87: 3 | L87: =IF(ISERROR(VLOOKUP(K87,Proposito_programa!$C$2:$E$59,2,FALSE))," ",VLOOKUP(K87,Proposito_programa!$C$2:$E$59,2,FALSE)) -> Movilidad social integral | M87: =IF(ISERROR(VLOOKUP(K87,Proposito_programa!$C$2:$E$59,3,FALSE))," ",VLOOKUP(K87,Proposito_programa!$C$2:$E$59,3,FALSE)) -> Propósito 1: Hacer un nuevo contrato social para incrementar la inclusión social, productiva y política | N87: O23011601060000002077 | O87: 0 | P87: 1013643257 | Q87: MONICA STEFFANY CONSUEGRA AVENDAÑO | R87: Persona Natural | S87: N/A | T87: N/A | U87: N/A | V87: 2022 | W87: 45900000 | AA87: 45900000 | AB87: 45900000 | AC87: 2022-01-26 | AD87: 2022-01-28 | AE87: 2022-10-27 | AF87: 9 meses | AM87: Terminado | AN87: 1
A88: 077-2022 | B88: 2022 | C88: FDLM-077-2022 (68800) | D88: https://community.secop.gov.co/Public/Tendering/OpportunityDetail/Index?noticeUID=CO1.NTC.2728352&isFromPublicArea=True&isModal=False | E88: Contratos de prestación de servicios profesionales y de apoyo a la gestión | F88: Contratación directa | G88: Prestación de servicios profesionales y de apoyo a la gestión, o para la ejecución de trabajos artísticos que sólo puedan encomendarse a determinadas personas naturales | H88: PRESTAR LOS SERVICIOS PROFESIONALES PARA LA FORMULACIÓN PRE CONTRACTUAL PARTICIPATIVA, APOYO A LA SUPERVISIÓN, SEGUIMIENTO, ACOMPAÑAMIENTO, ATENCIÓN Y EVALUACIÓN DE LOS PROYECTOS E INSTANCIAS DE ARTICULACIÓN INTERINSTITUCIONAL Y PARTICIPACIÓN LOCAL QUE SE REQUIERAN EN EL PROYECTO 2077 TERRITORIOS DIVERSOS Y LIBRES DE VIOLENCIA. | I88: Inversión | J88: Un nuevo contrato social y ambiental para la Bogotá del Siglo XXI | K88: 3 | L88: =IF(ISERROR(VLOOKUP(K88,Proposito_programa!$C$2:$E$59,2,FALSE))," ",VLOOKUP(K88,Proposito_programa!$C$2:$E$59,2,FALSE)) -> Movilidad social integral | M88: =IF(ISERROR(VLOOKUP(K88,Proposito_programa!$C$2:$E$59,3,FALSE))," ",VLOOKUP(K88,Proposito_programa!$C$2:$E$59,3,FALSE)) -> Propósito 1: Hacer un nuevo contrato social para incrementar la inclusión social, productiva y política | N88: O23011601060000002077 | O88: 0 | P88: 1032383222 | Q88: JESUS MAURICIO ROA OME | R88: Persona Natural | S88: N/A | T88: N/A | U88: N/A | V88: 2022 | W88: 45900000 | AA88: 45900000 | AB88: 45900000 | AC88: 2022-01-26 | AD88: 2022-01-28 | AE88: 2022-10-27 | AF88: 9 meses | AM88: Terminado | AN88: 1
A89: 078-2022 | B89: 2022 | C89: FDLM-078-2022 (67763) | D89: https://community.secop.gov.co/Public/Tendering/OpportunityDetail/Index?noticeUID=CO1.NTC.2770445&isFromPublicArea=True&isModal=False | E89: Contratos de prestación de servicios profesionales y de apoyo a la gestión | F89: Contratación directa | G89: Prestación de servicios profesionales y de apoyo a la gestión, o para la ejecución de trabajos artísticos que sólo puedan encomendarse a determinadas personas naturales | H89: PRESTAR SUS SERVICIOS PROFESIONALES DE APOYO EN LA FORMULACIÓN, EVALUACIÓN Y SEGUIMIENTO DE LAS INSTANCIAS DE PARTICIPACIÓN LOCALES, ASÍ COMO DE LOS PROYECTOS DE INVERSIÓN Y DEMÁS ACTIVIDADES RELACIONADAS CON EL ÁREA DE GESTIÓN DEL DESARROLLO LOCAL | I89: Inversión | J89: Un nuevo contrato social y ambiental para la Bogotá del Siglo XXI | K89: 3 | L89: =IF(ISERROR(VLOOKUP(K89,Proposito_programa!$C$2:$E$59,2,FALSE))," ",VLOOKUP(K89,Proposito_programa!$C$2:$E$59,2,FALSE)) -> Movilidad social integral | M89: =IF(ISERROR(VLOOKUP(K89,Proposito_programa!$C$2:$E$59,3,FALSE))," ",VLOOKUP(K89,Proposito_programa!$C$2:$E$59,3,FALSE)) -> Propósito 1: Hacer un nuevo contrato social para incrementar la inclusión social, productiva y política | N89: O23011605570000002099 | O89: 0 | P89: 49606008 | Q89: IRINA LUZ GUTIERREZ CIFUENTES | R89: Persona Natural | S89: N/A | T89: N/A | U89: N/A | V89: 2022 | W89: 45000000 | Y89: 1 | Z89: 9100000 | AA89: 54100000 | AB89: 54100001 | AC89: 2022-01-27 | AD89: 2022-02-01 | AE89: 2022-10-31 | AF89: 9 Meses | AG89: 1 | AH89: 60 | AM89: Terminado | AN89: 1.000000018
A90: 079-2022 | B90: 2022 | C90: FDLM-079-2022 (70208) | D90: https://community.secop.gov.co/Public/Tendering/OpportunityDetail/Index?noticeUID=CO1.NTC.2764103&isFromPublicArea=True&isModal=False | E90: Contratos de prestación de servicios profesionales y de apoyo a la gestión | F90: Contratación directa | G90: Prestación de servicios profesionales y de apoyo a la gestión, o para la ejecución de trabajos artísticos que sólo puedan encomendarse a determinadas personas naturales | H90: Prestar servicios profesionales especializados en los proyectos que tienen por objeto la adecuación, rehabilitación y mantenimiento de la casa de la cultura de la localidad de los mártires. | I90: Inversión | J90: Un nuevo contrato social y ambiental para la Bogotá del Siglo XXI | K90: 3 | L90: =IF(ISERROR(VLOOKUP(K90,Proposito_programa!$C$2:$E$59,2,FALSE))," ",VLOOKUP(K90,Proposito_programa!$C$2:$E$59,2,FALSE)) -> Movilidad social integral | M90: =IF(ISERROR(VLOOKUP(K90,Proposito_programa!$C$2:$E$59,3,FALSE))," ",VLOOKUP(K90,Proposito_programa!$C$2:$E$59,3,FALSE)) -> Propósito 1: Hacer un nuevo contrato social para incrementar la inclusión social, productiva y política | N90: O23011601210000002070 | O90: 0 | P90: 1030534528 | Q90: DIANA ALEXANDRA JIMÉNEZ ARIZA | R90: Persona Natural | S90: N/A | T90: N/A | U90: N/A | V90: 2022 | W90: 63900000 | Y90: 1 | Z90: 8533333 | AA90: 72433333 | AB90: 72433334 | AC90: 2022-01-26 | AD90: 2022-01-28 | AE90: 2022-10-27 | AF90: 9 Meses | AG90: 1 | AH90: 60 | AM90: Terminado | AN90: 1.000000014
A91: 080-2022 | B91: 2022 | C91: FDLM-080-2022 (71233) | D91: https://community.secop.gov.co/Public/Tendering/OpportunityDetail/Index?noticeUID=CO1.NTC.2726464&isFromPublicArea=True&isModal=False. | E91: Contratos de prestación de servicios profesionales y de apoyo a la gestión | F91: Contratación directa | G91: Prestación de servicios profesionales y de apoyo a la gestión, o para la ejecución de trabajos artísticos que sólo puedan encomendarse a determinadas personas naturales | H91: PRESTAR LOS SERVICIOS PROFESIONALES ADMINISTRATIVOS AL FONDO DE DESARROLLO LOCAL EN EL FORTALECIMIENTO DE LAS ETAPAS DE LA GESTION PUBLICA CONTRACTUAL, EN CUMPLIMIENTO DEL PLAN DE DESARROLLO LOCAL VIGENTE. | I91: Inversión | J91: Un nuevo contrato social y ambiental para la Bogotá del Siglo XXI | K91: 3 | L91: =IF(ISERROR(VLOOKUP(K91,Proposito_programa!$C$2:$E$59,2,FALSE))," ",VLOOKUP(K91,Proposito_programa!$C$2:$E$59,2,FALSE)) -> Movilidad social integral | M91: =IF(ISERROR(VLOOKUP(K91,Proposito_programa!$C$2:$E$59,3,FALSE))," ",VLOOKUP(K91,Proposito_programa!$C$2:$E$59,3,FALSE)) -> Propósito 1: Hacer un nuevo contrato social para incrementar la inclusión social, productiva y política | N91: O23011605570000002099 | O91: 0 | P91: 1030544996 | Q91: JEIMMY ALEXANDRA RODRIGUEZ BOLIVAR | R91: Persona Natural | S91: N/A | T91: N/A | U91: N/A | V91: 2022 | W91: 41600000 | Y91: 1 | Z91: 10500000 | AA91: 52100000 | AB91: 52100001 | AC91: 2022-01-26 | AD91: 2022-01-27 | AE91: 2022-09-26 | AF91: 8 Meses | AG91: 1 | AH91: 60 | AM91: Terminado | AN91: 1.000000019
A92: 081-2022 | B92: 2022 | C92: FDLM-081-2022 (58212) | D92: https://community.secop.gov.co/Public/Tendering/OpportunityDetail/Index?noticeUID=CO1.NTC.2768861&isFromPublicArea=True&isModal=False | E92: Contratos de prestación de servicios profesionales y de apoyo a la gestión | F92: Contratación directa | G92: Prestación de servicios profesionales y de apoyo a la gestión, o para la ejecución de trabajos artísticos que sólo puedan encomendarse a determinadas personas naturales | H92: PRESTAR LOS SERVICIOS DE APOYO LOGÍSTICO EN LAS DIFERENTES TAREAS DE BODEGAJE, TRASLADOS, MONTAJES Y DEMÁS ACTIVIDADES RELACIONADAS A CARGO DE LA ALCALDÍA LOCAL DE LOS MÁRTIRES. | I92: Inversión | J92: Un nuevo contrato social y ambiental para la Bogotá del Siglo XXI | K92: 3 | L92: =IF(ISERROR(VLOOKUP(K92,Proposito_programa!$C$2:$E$59,2,FALSE))," ",VLOOKUP(K92,Proposito_programa!$C$2:$E$59,2,FALSE)) -> Movilidad social integral | M92: =IF(ISERROR(VLOOKUP(K92,Proposito_programa!$C$2:$E$59,3,FALSE))," ",VLOOKUP(K92,Proposito_programa!$C$2:$E$59,3,FALSE)) -> Propósito 1: Hacer un nuevo contrato social para incrementar la inclusión social, productiva y política | N92: O23011605570000002099 | O92: 0 | P92: 79380362 | Q92: FERNANDO CABALLERO SILVA | R92: Persona Natural | S92: N/A | T92: N/A | U92: N/A | V92: 2022 | W92: 20493000 | AA92: 20493000 | AB92: 20493000 | AC92: 2022-01-27 | AD92: 2022-01-31 | AE92: 2022-10-30 | AF92: 9 Meses | AM92: Terminado | AN92: 1
A93: 082-2022 | B93: 2022 | C93: FDLM-082-2022 (70469) | D93: https://community.secop.gov.co/Public/Tendering/OpportunityDetail/Index?noticeUID=CO1.NTC.2724829&isFromPublicArea=True&isModal=False | E93: Contratos de prestación de servicios profesionales y de apoyo a la gestión | F93: Contratación directa | G93: Prestación de servicios profesionales y de apoyo a la gestión, o para la ejecución de trabajos artísticos que sólo puedan encomendarse a determinadas personas naturales | H93: Prestar los servicios profesionales que garanticen la adecuada concertación de acciones para la estructuración del proceso precontractual y contractual relativos al proyecto 2084 de la vigencia fiscal 2022, así como el apoyo a la ejecución del contrato a través del cual se ejecute la respectiva meta plan de desarrollo y objetivos del proyecto de inversión. | I93: Inversión | J93: Un nuevo contrato social y ambiental para la Bogotá del Siglo XXI | K93: 3 | L93: =IF(ISERROR(VLOOKUP(K93,Proposito_programa!$C$2:$E$59,2,FALSE))," ",VLOOKUP(K93,Proposito_programa!$C$2:$E$59,2,FALSE)) -> Movilidad social integral | M93: =IF(ISERROR(VLOOKUP(K93,Proposito_programa!$C$2:$E$59,3,FALSE))," ",VLOOKUP(K93,Proposito_programa!$C$2:$E$59,3,FALSE)) -> Propósito 1: Hacer un nuevo contrato social para incrementar la inclusión social, productiva y política | N93: O23011602380000002084 | O93: 0 | P93: 7174336 | Q93: CARLOS ALEXANDER NEIRA SÁNCHEZ | R93: Persona Natural | S93: N/A | T93: N/A | U93: N/A | V93: 2022 | W93: 40000000 | Y93: 1 | Z93: 6955200 | AA93: 46955200 | AB93: 46955201 | AC93: 2022-01-26 | AD93: 2022-01-28 | AE93: 2022-09-27 | AF93: 8 Meses | AG93: 1 | AH93: 60 | AM93: Terminado | AN93: 1.000000021
A94: 083-2022 | B94: 2022 | C94: FDLM-083-2022 (71221) | D94: https://community.secop.gov.co/Public/Tendering/OpportunityDetail/Index?noticeUID=CO1.NTC.2770668&isFromPublicArea=True&isModal=False | E94: Contratos de prestación de servicios profesionales y de apoyo a la gestión | F94: Contratación directa | G94: Prestación de servicios profesionales y de apoyo a la gestión, o para la ejecución de trabajos artísticos que sólo puedan encomendarse a determinadas personas naturales | H94: PRESTAR LOS SERVICIOS COMO PROFESIONAL AL DESPACHO DEL ALCALDE EN LA GESTIÓN PÚBLICA PRECONTRACTUAL, CONTRACTUAL Y POST CONTRACTUAL QUE SE REQUIERA EN CUMPLIMIENTO DEL PLAN DE DESARROLLO LOCAL. | I94: Inversión | J94: Un nuevo contrato social y ambiental para la Bogotá del Siglo XXI | K94: 3 | L94: =IF(ISERROR(VLOOKUP(K94,Proposito_programa!$C$2:$E$59,2,FALSE))," ",VLOOKUP(K94,Proposito_programa!$C$2:$E$59,2,FALSE)) -> Movilidad social integral | M94: =IF(ISERROR(VLOOKUP(K94,Proposito_programa!$C$2:$E$59,3,FALSE))," ",VLOOKUP(K94,Proposito_programa!$C$2:$E$59,3,FALSE)) -> Propósito 1: Hacer un nuevo contrato social para incrementar la inclusión social, productiva y política | N94: O23011605570000002099 | O94: 0 | P94: 1140843788 | Q94: FREDY ANDRÉS PAUTT BARCELÓ | R94: Persona Natural | S94: N/A | T94: N/A | U94: N/A | V94: 2022 | W94: 63000000 | Y94: 1 | Z94: 10500000 | AA94: 73500000 | AB94: 63000000 | AC94: 2022-01-27 | AD94: 2022-01-29 | AE94: 2022-10-28 | AF94: 9 Meses | AG94: 1 | AH94: 60 | AM94: En ejecución | AN94: 0.8571428571
A95: 084-2022 | B95: 2022 | C95: FDLM-084-2022 (68206) | D95: https://community.secop.gov.co/Public/Tendering/OpportunityDetail/Index?noticeUID=CO1.NTC.2773888&isFromPublicArea=True&isModal=Fa | E95: Contratos de prestación de servicios profesionales y de apoyo a la gestión | F95: Contratación directa | G95: Prestación de servicios profesionales y de apoyo a la gestión, o para la ejecución de trabajos artísticos que sólo puedan encomendarse a determinadas personas naturales | H95: PRESTAR LOS SERVICIOS DE APOYO A LOS ARCHIVOS DE GESTIÓN DE LA ENTIDAD EN LA IMPLEMENTACIÓN DE LOS PROCESOS DE CLASIFICACIÓN, ORDENACIÓN, SELECCIÓN NATURAL, FOLIACIÓN, IDENTIFICACIÓN, LEVANTAMIENTO DE INVENTARIOS, ALMACENAMIENTO Y APLICACIÓN DE PROTOCOLOS DE ELIMINACIÓN Y TRANSFERENCIAS DOCUMENTALES | I95: Inversión | J95: Un nuevo contrato social y ambiental para la Bogotá del Siglo XXI | K95: 3 | L95: =IF(ISERROR(VLOOKUP(K95,Proposito_programa!$C$2:$E$59,2,FALSE))," ",VLOOKUP(K95,Proposito_programa!$C$2:$E$59,2,FALSE)) -> Movilidad social integral | M95: =IF(ISERROR(VLOOKUP(K95,Proposito_programa!$C$2:$E$59,3,FALSE))," ",VLOOKUP(K95,Proposito_programa!$C$2:$E$59,3,FALSE)) -> Propósito 1: Hacer un nuevo contrato social para incrementar la inclusión social, productiva y política | N95: O23011605570000002099 | O95: 0 | P95: 1032367179 | Q95: YIBETH FAISURY SALAZAR ABRIL | R95: Persona Natural | S95: N/A | T95: N/A | U95: N/A | V95: 2022 | W95: 20493000 | Y95: 1 | Z95: 8190000 | AA95: 28683000 | AB95: =+X95+Y95+AA95 -> 28683001 | AC95: 2022-01-28 | AD95: 2022-02-01 | AE95: 2022-10-31 | AF95: 9 Meses | AG95: 1 | AH95: 60 | AM95: Terminado | AN95: 1.000000035
A96: 085-2022 | B96: 2022 | C96: FDLM-085-2022 (68206) | D96: https://community.secop.gov.co/Public/Tendering/OpportunityDetail/Index?noticeUID=CO1.NTC.2764494&isFromPublicArea=True&isModal=False | E96: Contratos de prestación de servicios profesionales y de apoyo a la gestión | F96: Contratación directa | G96: Prestación de servicios profesionales y de apoyo a la gestión, o para la ejecución de trabajos artísticos que sólo puedan encomendarse a determinadas personas naturales | H96: PRESTAR LOS SERVICIOS DE APOYO A LOS ARCHIVOS DE GESTIÓN DE LA ENTIDAD EN LA IMPLEMENTACIÓN DE LOS PROCESOS DE CLASIFICACIÓN, ORDENACIÓN, SELECCIÓN NATURAL, FOLIACIÓN, IDENTIFICACIÓN, LEVANTAMIENTO DE INVENTARIOS, ALMACENAMIENTO Y APLICACIÓN DE PROTOCOLOS DE ELIMINACIÓN Y TRANSFERENCIAS DOCUMENTALES | I96: Inversión | J96: Un nuevo contrato social y ambiental para la Bogotá del Siglo XXI | K96: 3 | L96: =IF(ISERROR(VLOOKUP(K96,Proposito_programa!$C$2:$E$59,2,FALSE))," ",VLOOKUP(K96,Proposito_programa!$C$2:$E$59,2,FALSE)) -> Movilidad social integral | M96: =IF(ISERROR(VLOOKUP(K96,Proposito_programa!$C$2:$E$59,3,FALSE))," ",VLOOKUP(K96,Proposito_programa!$C$2:$E$59,3,FALSE)) -> Propósito 1: Hacer un nuevo contrato social para incrementar la inclusión social, productiva y política | N96: O23011605570000002099 | O96: 0 | P96: 1010233475 | Q96: CRISTIAN EDUARDO MORENO DUCUARA | R96: Persona Natural | S96: N/A | T96: N/A | U96: N/A | V96: 2022 | W96: 20493000 | Y96: 1 | Z96: 12600000 | AA96: 33093000 | AB96: =+X96+Y96+AA96 -> 33093001 | AC96: 2022-01-27 | AD96: 2022-02-01 | AE96: 2022-10-31 | AF96: 9 Meses | AG96: 1 | AH96: 60 | AM96: Terminado | AN96: 1.00000003
A97: 086-2022 | B97: 2022 | C97: FDLM-086-2022 (70087) | D97: https://community.secop.gov.co/Public/Tendering/OpportunityDetail/Index?noticeUID=CO1.NTC.2763367&isFromPublicArea=True&isModal=False | E97: Contratos de prestación de servicios profesionales y de apoyo a la gestión | F97: Contratación directa | G97: Prestación de servicios profesionales y de apoyo a la gestión, o para la ejecución de trabajos artísticos que sólo puedan encomendarse a determinadas personas naturales | H97: PRESTAR LOS SERVICIOS PROFESIONALES PARA ADMINISTRAR LA RED DE SISTEMAS Y TECNOLOGIA E INFORMACIÓN DE LA ALCALDIA LOCAL. | I97: Inversión | J97: Un nuevo contrato social y ambiental para la Bogotá del Siglo XXI | K97: 3 | L97: =IF(ISERROR(VLOOKUP(K97,Proposito_programa!$C$2:$E$59,2,FALSE))," ",VLOOKUP(K97,Proposito_programa!$C$2:$E$59,2,FALSE)) -> Movilidad social integral | M97: =IF(ISERROR(VLOOKUP(K97,Proposito_programa!$C$2:$E$59,3,FALSE))," ",VLOOKUP(K97,Proposito_programa!$C$2:$E$59,3,FALSE)) -> Propósito 1: Hacer un nuevo contrato social para incrementar la inclusión social, productiva y política | N97: O23011605570000002099 | O97: 0 | P97: 80166441 | Q97: LUIS MIGUEL LOPEZ RODRIGUEZ | R97: Persona Natural | S97: N/A | T97: N/A | U97: N/A | V97: 2022 | W97: 45000000 | AA97: 45000000 | AB97: =+X97+Y97+AA97 -> 45000000 | AC97: 2022-01-27 | AD97: 2022-02-01 | AE97: 2022-10-31 | AF97: 9 Meses | AM97: Terminado | AN97: 1
A98: 087-2022 | B98: 2022 | C98: FDLM-087-2022 (70039 | D98: https://community.secop.gov.co/Public/Tendering/OpportunityDetail/Index?noticeUID=CO1.NTC.2769542&isFromPublicArea=True&isModal=False | E98: Contratos de prestación de servicios profesionales y de apoyo a la gestión | F98: Contratación directa | G98: Prestación de servicios profesionales y de apoyo a la gestión, o para la ejecución de trabajos artísticos que sólo puedan encomendarse a determinadas personas naturales | H98: PRESTAR LOS SERVICIOS PROFESIONALES PARA LA FORMULACIÓN PRE CONTRACTUAL PARTICIPATIVA, APOYO A LA SUPERVISIÓN, SEGUIMIENTO, ACOMPAÑAMIENTO, ATENCIÓN Y EVALUACIÓN DE LOS PROYECTOS E INSTANCIAS DE ARTICULACIÓN INTERINSTITUCIONAL Y PARTICIPACIÓN LOCAL QUE SE REQUIERAN EN EL PROYECTO 2077 TERRITORIOS DIVERSOS Y LIBRES DE VIOLENCIA. | I98: Inversión | J98: Un nuevo contrato social y ambiental para la Bogotá del Siglo XXI | K98: 3 | L98: =IF(ISERROR(VLOOKUP(K98,Proposito_programa!$C$2:$E$59,2,FALSE))," ",VLOOKUP(K98,Proposito_programa!$C$2:$E$59,2,FALSE)) -> Movilidad social integral | M98: =IF(ISERROR(VLOOKUP(K98,Proposito_programa!$C$2:$E$59,3,FALSE))," ",VLOOKUP(K98,Proposito_programa!$C$2:$E$59,3,FALSE)) -> Propósito 1: Hacer un nuevo contrato social para incrementar la inclusión social, productiva y política | N98: O23011601060000002077 | O98: 0 | P98: 33206170 | Q98: INGRID TERESA PEÑA VEGA | R98: Persona Natural | S98: N/A | T98: N/A | U98: N/A | V98: 2022 | W98: 40950000 | Y98: 1 | Z98: 7280000 | AA98: 48230000 | AB98: 40950000 | AC98: 2022-01-28 | AD98: 2022-02-01 | AE98: 2022-10-31 | AF98: 9 Meses | AG98: 1 | AH98: 01 mes y 18 dias | AM98: En ejecución | AN98: 0.8490566038
A99: 088-2022 | B99: 2022 | C99: FDLM-088-2022 (70413) | D99: https://community.secop.gov.co/Public/Tendering/OpportunityDetail/Index?noticeUID=CO1.NTC.2767713&isFromPublicArea=True&isModal=False | E99: Contratos de prestación de servicios profesionales y de apoyo a la gestión | F99: Contratación directa | G99: Prestación de servicios profesionales y de apoyo a la gestión, o para la ejecución de trabajos artísticos que sólo puedan encomendarse a determinadas personas naturales | H99: Prestar los servicios profesionales que garanticen el adecuado seguimiento físico financiero a la transferencia monetaria por concepto de ingreso mínimo garantizado, en el marco del Programa Bogotá Solidaria. | I99: Inversión | J99: Un nuevo contrato social y ambiental para la Bogotá del Siglo XXI | K99: 3 | L99: =IF(ISERROR(VLOOKUP(K99,Proposito_programa!$C$2:$E$59,2,FALSE))," ",VLOOKUP(K99,Proposito_programa!$C$2:$E$59,2,FALSE)) -> Movilidad social integral | M99: =IF(ISERROR(VLOOKUP(K99,Proposito_programa!$C$2:$E$59,3,FALSE))," ",VLOOKUP(K99,Proposito_programa!$C$2:$E$59,3,FALSE)) -> Propósito 1: Hacer un nuevo contrato social para incrementar la inclusión social, productiva y política | N99: O23011601010000002068 | O99: 0 | P99: 1065641911 | Q99: ANETH TATIANA BUENO ARIAS | R99: Persona Natural | S99: N/A | T99: N/A | U99: N/A | V99: 2022 | W99: 40000000 | Y99: 1 | Z99: 10000000 | AA99: 50000000 | AB99: =+X99+Y99+AA99 -> 50000001 | AC99: 2022-01-27 | AD99: 2022-02-01 | AE99: 2022-09-30 | AF99: 8 Meses | AG99: 1 | AH99: 60 | AM99: Terminado | AN99: 1.00000002
A100: 089-2022 | B100: 2022 | C100: FDLM-089-2022 (70424) | D100: https://community.secop.gov.co/Public/Tendering/OpportunityDetail/Index?noticeUID=CO1.NTC.2770674&isFromPublicArea=True&isModal=False | E100: Contratos de prestación de servicios profesionales y de apoyo a la gestión | F100: Contratación directa | G100: Prestación de servicios profesionales y de apoyo a la gestión, o para la ejecución de trabajos artísticos que sólo puedan encomendarse a determinadas personas naturales | H100: Prestar los servicios profesionales que garanticen la adecuada estructuración del proceso mediante el cual se ejecute el proyecto 2042 del FDLM, en especial la relativa a la vinculación de personas a procesos de construcción de memoria, verdad, reparación integral a víctimas, paz y reconciliación. | I100: Inversión | J100: Un nuevo contrato social y ambiental para la Bogotá del Siglo XXI | K100: 3 | L100: =IF(ISERROR(VLOOKUP(K100,Proposito_programa!$C$2:$E$59,2,FALSE))," ",VLOOKUP(K100,Proposito_programa!$C$2:$E$59,2,FALSE)) -> Movilidad social integral | M100: =IF(ISERROR(VLOOKUP(K100,Proposito_programa!$C$2:$E$59,3,FALSE))," ",VLOOKUP(K100,Proposito_programa!$C$2:$E$59,3,FALSE)) -> Propósito 1: Hacer un nuevo contrato social para incrementar la inclusión social, productiva y política | N100: O23011603390000002042 | O100: 0 | P100: 1010235916 | Q100: ALVARO JAVIER SALAZAR GIRALDO | R100: Persona Natural | S100: N/A | T100: N/A | U100: N/A | V100: 2022 | W100: 40000000 | Y100: 1 | Z100: 14910000 | AA100: 54910000 | AB100: 54910001 | AC100: 2022-01-27 | AD100: 2022-02-01 | AE100: 2022-09-30 | AF100: 8 Meses | AG100: 1 | AH100: 60 | AM100: Terminado | AN100: 1.000000018
A101: 090-2022 | B101: 2022 | C101: FDLM-090-2022 (70541) | D101: https://community.secop.gov.co/Public/Tendering/OpportunityDetail/Index?noticeUID=CO1.NTC.2766441&isFromPublicArea=True&isModal=False | E101: Contratos de prestación de servicios profesionales y de apoyo a la gestión | F101: Contratación directa | G101: Prestación de servicios profesionales y de apoyo a la gestión, o para la ejecución de trabajos artísticos que sólo puedan encomendarse a determinadas personas naturales | H101: Prestar los servicios profesionales que garanticen la adecuada concertación de acciones para la estructuración del proceso precontractual y contractual relativos al proyecto 2096 de la vigencia fiscal 2022, así como el apoyo a la ejecución del contrato a través del cual se ejecute la respectiva meta plan de desarrollo y objetivos del proyecto de inversión. | I101: Inversión | J101: Un nuevo contrato social y ambiental para la Bogotá del Siglo XXI | K101: 3 | L101: =IF(ISERROR(VLOOKUP(K101,Proposito_programa!$C$2:$E$59,2,FALSE))," ",VLOOKUP(K101,Proposito_programa!$C$2:$E$59,2,FALSE)) -> Movilidad social integral | M101: =IF(ISERROR(VLOOKUP(K101,Proposito_programa!$C$2:$E$59,3,FALSE))," ",VLOOKUP(K101,Proposito_programa!$C$2:$E$59,3,FALSE)) -> Propósito 1: Hacer un nuevo contrato social para incrementar la inclusión social, productiva y política | N101: O23011605550000002096 | O101: 0 | P101: 1013596018 | Q101: JAIR ARMANDO MORA DIAZ | R101: Persona Natural | S101: N/A | T101: N/A | U101: N/A | V101: 2022 | W101: 40000000 | AA101: 40000000 | AB101: 40000000 | AC101: 2022-01-27 | AD101: 2022-02-01 | AE101: 2022-09-30 | AF101: 8 Meses | AM101: Terminado | AN101: 1
A102: 091-2022 | B102: 2022 | C102: FDLM- 091-2022 (70571) | D102: https://community.secop.gov.co/Public/Tendering/OpportunityDetail/Index?noticeUID=CO1.NTC.2764193&isFromPublicArea=True&isModal=False | E102: Contratos de prestación de servicios profesionales y de apoyo a la gestión | F102: Contratación directa | G102: Prestación de servicios profesionales y de apoyo a la gestión, o para la ejecución de trabajos artísticos que sólo puedan encomendarse a determinadas personas naturales | H102: Prestar los servicios profesionales como apoyo al equipo del proyecto 2060, que garantice la adecuada estructuración del proceso precontractual y contractual relativos al proyecto 2060 de la vigencia fiscal 2022, así como el apoyo a la ejecución del contrato a través del cual se ejecute la respectiva meta plan de desarrollo y objetivos del proyecto de inversión, y del contrato en ejecución vigencia fiscal 2021. | I102: Inversión | J102: Un nuevo contrato social y ambiental para la Bogotá del Siglo XXI | K102: 3 | L102: =IF(ISERROR(VLOOKUP(K102,Proposito_programa!$C$2:$E$59,2,FALSE))," ",VLOOKUP(K102,Proposito_programa!$C$2:$E$59,2,FALSE)) -> Movilidad social integral | M102: =IF(ISERROR(VLOOKUP(K102,Proposito_programa!$C$2:$E$59,3,FALSE))," ",VLOOKUP(K102,Proposito_programa!$C$2:$E$59,3,FALSE)) -> Propósito 1: Hacer un nuevo contrato social para incrementar la inclusión social, productiva y política | N102: O23011601060000002060 | O102: 0 | P102: 1052993997 | Q102: ANDRÉS FELIPE LARA NÚÑEZ | R102: Persona Natural | S102: N/A | T102: N/A | U102: N/A | V102: 2022 | W102: 40000000 | Y102: 1 | Z102: 16293333 | AA102: 56293333 | AB102: 56293334 | AC102: 2022-01-27 | AD102: 2022-02-01 | AE102: 2022-09-30 | AF102: 8 Meses | AG102: 1 | AH102: 95 | AM102: Terminado | AN102: 1.000000018
A103: 092-2022 | B103: 2022 | C103: FDLM-092-2022 (67827) | D103: https://community.secop.gov.co/Public/Tendering/OpportunityDetail/Index?noticeUID=CO1.NTC.2773922&isFromPublicArea=True&isModal=False | E103: Contratos de prestación de servicios profesionales y de apoyo a la gestión | F103: Contratación directa | G103: Prestación de servicios profesionales y de apoyo a la gestión, o para la ejecución de trabajos artísticos que sólo puedan encomendarse a determinadas personas naturales | H103: PRESTAR SERVICIOS PROFESIONALES COMO ENLACE EN TEMAS DE GESTIÓN DE RIESGO Y AGLOMERACIONES, A CARGO DE LA LOCALIDAD DE LOS MÁRTIRES DE CONFORMIDAD CON EL MARCO NORMATIVO APLICABLE PARA LA MATERIA. | I103: Inversión | J103: Un nuevo contrato social y ambiental para la Bogotá del Siglo XXI | K103: 3 | L103: =IF(ISERROR(VLOOKUP(K103,Proposito_programa!$C$2:$E$59,2,FALSE))," ",VLOOKUP(K103,Proposito_programa!$C$2:$E$59,2,FALSE)) -> Movilidad social integral | M103: =IF(ISERROR(VLOOKUP(K103,Proposito_programa!$C$2:$E$59,3,FALSE))," ",VLOOKUP(K103,Proposito_programa!$C$2:$E$59,3,FALSE)) -> Propósito 1: Hacer un nuevo contrato social para incrementar la inclusión social, productiva y política | N103: O23011605570000002099 | O103: 0 | P103: 79967824 | Q103: VICTOR FERNANDO ENCISO CONTRERAS | R103: Persona Natural | S103: N/A | T103: N/A | U103: N/A | V103: 2022 | W103: 54000000 | Y103: 1 | Z103: 16293333 | AA103: 70293333 | AB103: 70293334 | AC103: 2022-01-28 | AD103: 2022-02-01 | AE103: 2022-10-31 | AF103: 9 Meses | AG103: 1 | AH103: 95 | AM103: Terminado | AN103: 1.000000014
A104: 093-2022 | B104: 2022 | C104: FDLM-093-2022 (70474) | D104: https://community.secop.gov.co/Public/Tendering/OpportunityDetail/Index?noticeUID=CO1.NTC.2768565&isFromPublicArea=True&isModal=False | E104: Contratos de prestación de servicios profesionales y de apoyo a la gestión | F104: Contratación directa | G104: Prestación de servicios profesionales y de apoyo a la gestión, o para la ejecución de trabajos artísticos que sólo puedan encomendarse a determinadas personas naturales | H104: Apoyar técnicamente a los profesionales de infraestructura del grupo de Planeación Local, en el trámite de respuesta a derechos de petición, requerimientos ciudadanos y demás aspectos administrativos necesarios para gestionar de manera adecuada el proyecto 2097, de la vigencia fiscal 2022. | I104: Inversión | J104: Un nuevo contrato social y ambiental para la Bogotá del Siglo XXI | K104: 3 | L104: =IF(ISERROR(VLOOKUP(K104,Proposito_programa!$C$2:$E$59,2,FALSE))," ",VLOOKUP(K104,Proposito_programa!$C$2:$E$59,2,FALSE)) -> Movilidad social integral | M104: =IF(ISERROR(VLOOKUP(K104,Proposito_programa!$C$2:$E$59,3,FALSE))," ",VLOOKUP(K104,Proposito_programa!$C$2:$E$59,3,FALSE)) -> Propósito 1: Hacer un nuevo contrato social para incrementar la inclusión social, productiva y política | N104: O23011604490000002097 | O104: 0 | P104: 52436360 | Q104: LUZ MERY MUNZA CASASBUENAS | R104: Persona Natural | S104: N/A | T104: N/A | U104: N/A | V104: 2022 | W104: 24800000 | Y104: 1 | Z104: 15500000 | AA104: 40300000 | AB104: 40300001 | AC104: 2022-01-27 | AD104: 2022-02-01 | AE104: 2022-09-30 | AF104: 8 Meses | AG104: 1 | AH104: 94 | AM104: Terminado | AN104: 1.000000025
A105: 094-2022 | B105: 2022 | C105: FDLM-094-2022 (71256) | D105: https://community.secop.gov.co/Public/Tendering/OpportunityDetail/Index?noticeUID=CO1.NTC.2770778&isFromPublicArea=True&isModal=False | E105: Contratos de prestación de servicios profesionales y de apoyo a la gestión | F105: Contratación directa | G105: Prestación de servicios profesionales y de apoyo a la gestión, o para la ejecución de trabajos artísticos que sólo puedan encomendarse a determinadas personas naturales | H105: El contrato que se pretende celebrar tendrá por objeto Prestar los servicios de apoyo que garanticen la adecuada estructuración del proceso mediante el cual se ejecute el proyecto 2077 del FDLM, en especial la relativa a la formación en prevención de violencia intrafamiliar y/o violencia sexual. | I105: Inversión | J105: Un nuevo contrato social y ambiental para la Bogotá del Siglo XXI | K105: 3 | L105: =IF(ISERROR(VLOOKUP(K105,Proposito_programa!$C$2:$E$59,2,FALSE))," ",VLOOKUP(K105,Proposito_programa!$C$2:$E$59,2,FALSE)) -> Movilidad social integral | M105: =IF(ISERROR(VLOOKUP(K105,Proposito_programa!$C$2:$E$59,3,FALSE))," ",VLOOKUP(K105,Proposito_programa!$C$2:$E$59,3,FALSE)) -> Propósito 1: Hacer un nuevo contrato social para incrementar la inclusión social, productiva y política | N105: O23011601060000002077 | O105: 0 | P105: 1022430287 | Q105: PAULA ALEJANDRA ZAMUDIO VELASQUEZ | R105: Persona Natural | S105: N/A | T105: N/A | U105: N/A | V105: 2022 | W105: 25500000 | AA105: 25500000 | AB105: 25500000 | AC105: 2022-01-28 | AD105: 2022-02-01 | AE105: 2022-09-30 | AF105: 8 Meses | AM105: Terminado | AN105: 1
A106: 095-2022 | B106: 2022 | C106: FDLM-095-2022 (70083) | D106: https://community.secop.gov.co/Public/Tendering/OpportunityDetail/Index?noticeUID=CO1.NTC.2765040&isFromPublicArea=True&isModal=False | E106: Contratos de prestación de servicios profesionales y de apoyo a la gestión | F106: Contratación directa | G106: Prestación de servicios profesionales y de apoyo a la gestión, o para la ejecución de trabajos artísticos que sólo puedan encomendarse a determinadas personas naturales | H106: Prestar sus Servicios Profesionales para apoyar a la Alcaldía Local de Los Mártires, en la articulación, acompañamiento y seguimiento del contrato No 184- 2021. | I106: Inversión | J106: Un nuevo contrato social y ambiental para la Bogotá del Siglo XXI | K106: 3 | L106: =IF(ISERROR(VLOOKUP(K106,Proposito_programa!$C$2:$E$59,2,FALSE))," ",VLOOKUP(K106,Proposito_programa!$C$2:$E$59,2,FALSE)) -> Movilidad social integral | M106: =IF(ISERROR(VLOOKUP(K106,Proposito_programa!$C$2:$E$59,3,FALSE))," ",VLOOKUP(K106,Proposito_programa!$C$2:$E$59,3,FALSE)) -> Propósito 1: Hacer un nuevo contrato social para incrementar la inclusión social, productiva y política | N106: O23011602340000002085 | O106: 0 | P106: 11605534 | Q106: JOHN JADER SUÁREZ DELGADO | R106: Persona Natural | S106: N/A | T106: N/A | U106: N/A | V106: 2022 | W106: 61200000 | Y106: 1 | Z106: 15500000 | AA106: 76700000 | AB106: 76700001 | AC106: 2022-01-27 | AD106: 2022-02-01 | AE106: 2022-10-31 | AF106: 9 Meses | AG106: 1 | AH106: 94 | AM106: Terminado | AN106: 1.000000013
A107: 096-2022 | B107: 2022 | C107: FDLM-096-2022 (70580) | D107: https://community.secop.gov.co/Public/Tendering/OpportunityDetail/Index?noticeUID=CO1.NTC.2768453&isFromPublicArea=True&isModal=False | E107: Contratos de prestación de servicios profesionales y de apoyo a la gestión | F107: Contratación directa | G107: Prestación de servicios profesionales y de apoyo a la gestión, o para la ejecución de trabajos artísticos que sólo puedan encomendarse a determinadas personas naturales | H107: Prestar los servicios de apoyo técnico que garanticen la labor de coordinación del proyecto 2060, que garantice la adecuada estructuración del proceso precontractual y contractual relativos al proyecto 2060 de la vigencia fiscal 2022, así como el apoyo a la ejecución del contrato a través del cual se ejecute la respectiva meta plan de desarrollo y objetivos del proyecto de inversión, y del contrato en ejecución vigencia fiscal 2021. | I107: Inversión | J107: Un nuevo contrato social y ambiental para la Bogotá del Siglo XXI | K107: 3 | L107: =IF(ISERROR(VLOOKUP(K107,Proposito_programa!$C$2:$E$59,2,FALSE))," ",VLOOKUP(K107,Proposito_programa!$C$2:$E$59,2,FALSE)) -> Movilidad social integral | M107: =IF(ISERROR(VLOOKUP(K107,Proposito_programa!$C$2:$E$59,3,FALSE))," ",VLOOKUP(K107,Proposito_programa!$C$2:$E$59,3,FALSE)) -> Propósito 1: Hacer un nuevo contrato social para incrementar la inclusión social, productiva y política | N107: O23011601060000002060 | O107: 0 | P107: 1020815037 | Q107: DANIELA CAÑÓN BENAVIDES | R107: Persona Natural | S107: N/A | T107: N/A | U107: N/A | V107: 2022 | W107: 27900000 | AA107: =+W107+X107+Z107 -> 27900000 | AB107: 27900000 | AC107: 2022-01-28 | AD107: 2022-02-01 | AE107: 2022-10-31 | AF107: 9 Meses | AM107: Terminado | AN107: 1
A108: 097-2022 | B108: 2022 | C108: FDLM-097-2022 (67787) | D108: https://community.secop.gov.co/Public/Tendering/OpportunityDetail/Index?noticeUID=CO1.NTC.2792537&isFromPublicArea=True&isModal=False | E108: Contratos de prestación de servicios profesionales y de apoyo a la gestión | F108: Contratación directa | G108: Prestación de servicios profesionales y de apoyo a la gestión, o para la ejecución de trabajos artísticos que sólo puedan encomendarse a determinadas personas naturales | H108: PRESTAR LOS SERVICIOS ASISTENCIALES DE APOYO A LAS ACTIVIDADES RELACIONADAS CON EL ÁREA DE GESTIÓN DEL DESARROLLO LOCAL DE LA LOCALIDAD DE LOS MÁRTIRES, EN CUMPLIMIENTO DEL PLAN DE DESARROLLO LOCAL VIGENTE. | I108: Inversión | J108: Un nuevo contrato social y ambiental para la Bogotá del Siglo XXI | K108: 3 | L108: =IF(ISERROR(VLOOKUP(K108,Proposito_programa!$C$2:$E$59,2,FALSE))," ",VLOOKUP(K108,Proposito_programa!$C$2:$E$59,2,FALSE)) -> Movilidad social integral | M108: =IF(ISERROR(VLOOKUP(K108,Proposito_programa!$C$2:$E$59,3,FALSE))," ",VLOOKUP(K108,Proposito_programa!$C$2:$E$59,3,FALSE)) -> Propósito 1: Hacer un nuevo contrato social para incrementar la inclusión social, productiva y política | N108: O23011605570000002099 | O108: 0 | P108: 1121333194 | Q108: VIELKA YELITZA ROSADO OVIEDO | R108: Persona Natural | S108: N/A | T108: N/A | U108: N/A | V108: 2022 | W108: 22500000 | Y108: 1 | Z108: 19133333 | AA108: 41633333 | AB108: 41633334 | AC108: 2022-01-28 | AD108: 2022-02-01 | AE108: 2022-10-31 | AF108: 9 Meses | AG108: 1 | AH108: 60 | AM108: Terminado | AN108: 1.000000024
A109: 098-2022 | B109: 2022 | C109: FDLM-098-2022 (71255) | D109: https://community.secop.gov.co/Public/Tendering/OpportunityDetail/Index?noticeUID=CO1.NTC.2773467&isFromPublicArea=True&isModal=False | E109: Contratos de prestación de servicios profesionales y de apoyo a la gestión | F109: Contratación directa | G109: Prestación de servicios profesionales y de apoyo a la gestión, o para la ejecución de trabajos artísticos que sólo puedan encomendarse a determinadas personas naturales | H109: Prestar los servicios de apoyo administrativo que garanticen la adecuada gestión del equipo humano a cargo del proyecto 2060 de la vigencia fiscal 2022, así como el apoyo administrativo a la supervisión de los contratos suscritos con cargo a dicho proyecto para las vigencias fiscales 2021 y 2022 | I109: Inversión | J109: Un nuevo contrato social y ambiental para la Bogotá del Siglo XXI | K109: 3 | L109: =IF(ISERROR(VLOOKUP(K109,Proposito_programa!$C$2:$E$59,2,FALSE))," ",VLOOKUP(K109,Proposito_programa!$C$2:$E$59,2,FALSE)) -> Movilidad social integral | M109: =IF(ISERROR(VLOOKUP(K109,Proposito_programa!$C$2:$E$59,3,FALSE))," ",VLOOKUP(K109,Proposito_programa!$C$2:$E$59,3,FALSE)) -> Propósito 1: Hacer un nuevo contrato social para incrementar la inclusión social, productiva y política | N109: O23011601060000002060 | O109: 0 | P109: 1016113257 | Q109: RICARDO JUNIOR SÁNCHEZ VELASQUEZ | R109: Persona Natural | S109: N/A | T109: N/A | U109: N/A | V109: 2022 | W109: 16800000 | Y109: 1 | Z109: 4554000 | AA109: 21354000 | AB109: 21354001 | AC109: 2022-01-28 | AD109: 2022-02-01 | AE109: 2022-09-30 | AF109: 8 Meses | AG109: 1 | AH109: 60 | AM109: Terminado | AN109: 1.000000047
A110: 099-2022 | B110: 2022 | C110: FDLM-099-2022 (71125) | D110: https://community.secop.gov.co/Public/Tendering/OpportunityDetail/Index?noticeUID=CO1.NTC.2773313&isFromPublicArea=True&isModal=False | E110: Contratos de prestación de servicios profesionales y de apoyo a la gestión | F110: Contratación directa | G110: Prestación de servicios profesionales y de apoyo a la gestión, o para la ejecución de trabajos artísticos que sólo puedan encomendarse a determinadas personas naturales | H110: El contrato que se pretende celebrar, tendrá por objeto PRESTAR SUS SERVICIOS COMO PERSONAL DE APOYO EN LA CONDUCCIÓN DEL VEHÍCULO DE PROPIEDAD DEL FONDO DE DESARROLLO LOCAL DE LOS MÁRTIRES, ASIGNADO A DESPACHO. | I110: Inversión | J110: Un nuevo contrato social y ambiental para la Bogotá del Siglo XXI | K110: 3 | L110: =IF(ISERROR(VLOOKUP(K110,Proposito_programa!$C$2:$E$59,2,FALSE))," ",VLOOKUP(K110,Proposito_programa!$C$2:$E$59,2,FALSE)) -> Movilidad social integral | M110: =IF(ISERROR(VLOOKUP(K110,Proposito_programa!$C$2:$E$59,3,FALSE))," ",VLOOKUP(K110,Proposito_programa!$C$2:$E$59,3,FALSE)) -> Propósito 1: Hacer un nuevo contrato social para incrementar la inclusión social, productiva y política | N110: O23011605570000002099 | O110: 0 | P110: 9140998 | Q110: JHONY ENRIQUE RAMOS ALVAREZ | R110: Persona Natural | S110: N/A | T110: N/A | U110: N/A | V110: 2022 | W110: 22330000 | Y110: 1 | Z110: 11165000 | AA110: 33495000 | AB110: 33495001 | AC110: 2022-01-28 | AD110: 2022-01-31 | AE110: 2022-12-15 | AF110: 7 Meses | AG110: 1 | AH110: 1 mes | AM110: Terminado | AN110: =IF(ISERROR(AB110/AA110),"-",(AB110/AA110)) -> 1.00000003
A111: 100-2022 | B111: 2022 | C111: FDLM-100-2022 (71255) | D111: https://community.secop.gov.co/Public/Tendering/OpportunityDetail/Index?noticeUID=CO1.NTC.2792156&isFromPublicArea=True&isModal=False | E111: Contratos de prestación de servicios profesionales y de apoyo a la gestión | F111: Contratación directa | G111: Prestación de servicios profesionales y de apoyo a la gestión, o para la ejecución de trabajos artísticos que sólo puedan encomendarse a determinadas personas naturales | H111: Prestar los servicios de apoyo administrativo que garanticen la adecuada gestión del equipo humano a cargo del proyecto 2060 de la vigencia fiscal 2022, así como el apoyo administrativo a la supervisión de los contratos suscritos con cargo a dicho proyecto para las vigencias fiscales 2021 y 2022 | I111: Inversión | J111: Un nuevo contrato social y ambiental para la Bogotá del Siglo XXI | K111: 3 | L111: =IF(ISERROR(VLOOKUP(K111,Proposito_programa!$C$2:$E$59,2,FALSE))," ",VLOOKUP(K111,Proposito_programa!$C$2:$E$59,2,FALSE)) -> Movilidad social integral | M111: =IF(ISERROR(VLOOKUP(K111,Proposito_programa!$C$2:$E$59,3,FALSE))," ",VLOOKUP(K111,Proposito_programa!$C$2:$E$59,3,FALSE)) -> Propósito 1: Hacer un nuevo contrato social para incrementar la inclusión social, productiva y política | N111: O23011601060000002060 | O111: 0 | P111: 80763598 | Q111: JOSÉ LUIS BLANCO AVENDAÑO | R111: Persona Natural | S111: N/A | T111: N/A | U111: N/A | V111: 2022 | W111: 16800000 | Y111: 1 | Z111: 6500000 | AA111: 23300000 | AB111: 23300001 | AC111: 2022-01-28 | AD111: 2022-02-01 | AE111: 2022-09-30 | AF111: 9 Meses | AG111: 1 | AH111: 1 mes | AM111: Terminado | AN111: 1.000000043
A112: 101-2022 | B112: 2022 | C112: FDLM-101-2022 (70052) | D112: https://community.secop.gov.co/Public/Tendering/OpportunityDetail/Index?noticeUID=CO1.NTC.2791500&isFromPublicArea=True&isModal=False | E112: Contratos de prestación de servicios profesionales y de apoyo a la gestión | F112: Contratación directa | G112: Prestación de servicios profesionales y de apoyo a la gestión, o para la ejecución de trabajos artísticos que sólo puedan encomendarse a determinadas personas naturales | H112: PRESTAR SUS SERVICIOS PROFESIONALES PARA EL APOYO Y SEGUIMIENTO DE LOS PROYECTOS DE INVERSIÓN DE LA ALCALDÍA DE LOS MÁRTIRES RELACIONADAS CON EL SECTOR SALUD, EN CUMPLIMIENTO DEL PLAN DE DESARROLLO LOCAL VIGENTE. | I112: Inversión | J112: Un nuevo contrato social y ambiental para la Bogotá del Siglo XXI | K112: 3 | L112: =IF(ISERROR(VLOOKUP(K112,Proposito_programa!$C$2:$E$59,2,FALSE))," ",VLOOKUP(K112,Proposito_programa!$C$2:$E$59,2,FALSE)) -> Movilidad social integral | M112: =IF(ISERROR(VLOOKUP(K112,Proposito_programa!$C$2:$E$59,3,FALSE))," ",VLOOKUP(K112,Proposito_programa!$C$2:$E$59,3,FALSE)) -> Propósito 1: Hacer un nuevo contrato social para incrementar la inclusión social, productiva y política | N112: O23011601060000002065 | O112: 0 | P112: 12592136 | Q112: JORGE ELIECER OROZCO SALAZAR | R112: Persona Natural | S112: N/A | T112: N/A | U112: N/A | V112: 2022 | W112: 73700000 | AA112: 73700000 | AB112: 73700000 | AC112: 2022-01-28 | AD112: 2022-02-02 | AE112: 2022-09-30 | AF112: 9 Meses | AM112: Terminado | AN112: 1
A113: 102-2022 | B113: 2022 | C113: FDLM-102-2022 (70119) | D113: https://community.secop.gov.co/Public/Tendering/OpportunityDetail/Index?noticeUID=CO1.NTC.2791711&isFromPublicArea=True&isModal=False. | E113: Contratos de prestación de servicios profesionales y de apoyo a la gestión | F113: Contratación directa | G113: Prestación de servicios profesionales y de apoyo a la gestión, o para la ejecución de trabajos artísticos que sólo puedan encomendarse a determinadas personas naturales | H113: PRESTACIÓN DE SERVICIOS DE APOYO A LA GESTIÓN EN LA EJECUCIÓN DE LABORES ADMINISTRATIVAS DEL PROYECTO DE PREVENCIÓN DE VIOLENCIA INTRAFAMILIAR EN LA LOCALIDAD DE LOS MÁRTIRES | I113: Inversión | J113: Un nuevo contrato social y ambiental para la Bogotá del Siglo XXI | K113: 3 | L113: =IF(ISERROR(VLOOKUP(K113,Proposito_programa!$C$2:$E$59,2,FALSE))," ",VLOOKUP(K113,Proposito_programa!$C$2:$E$59,2,FALSE)) -> Movilidad social integral | M113: =IF(ISERROR(VLOOKUP(K113,Proposito_programa!$C$2:$E$59,3,FALSE))," ",VLOOKUP(K113,Proposito_programa!$C$2:$E$59,3,FALSE)) -> Propósito 1: Hacer un nuevo contrato social para incrementar la inclusión social, productiva y política | N113: O23011601060000002077 | O113: 0 | P113: 79500442 | Q113: FABIO HERNAN RODRIGUEZ VALDERRAMA | R113: Persona Natural | S113: N/A | T113: N/A | U113: N/A | V113: 2022 | W113: 15300000 | AA113: 15300000 | AB113: 15300000 | AC113: 2022-01-28 | AD113: 2022-02-03 | AE113: 2022-10-30 | AF113: 9 Meses | AM113: Terminado | AN113: 1
A114: 103-2022 | B114: 2022 | C114: FDLM-103-2022 (67763) | D114: https://community.secop.gov.co/Public/Tendering/OpportunityDetail/Index?noticeUID=CO1.NTC.2792741&isFromPublicArea=True&isModal=False | E114: Contratos de prestación de servicios profesionales y de apoyo a la gestión | F114: Contratación directa | G114: Prestación de servicios profesionales y de apoyo a la gestión, o para la ejecución de trabajos artísticos que sólo puedan encomendarse a determinadas personas naturales | H114: PRESTAR SUS SERVICIOS PROFESIONALES DE APOYO EN LA FORMULACIÓN, EVALUACIÓN Y SEGUIMIENTO DE LAS INSTANCIAS DE PARTICIPACIÓN LOCALES, ASÍ COMO DE LOS PROYECTOS DE INVERSIÓN Y DEMÁS ACTIVIDADES RELACIONADAS CON EL ÁREA DE GESTIÓN DEL DESARROLLO LOCAL | I114: Inversión | J114: Un nuevo contrato social y ambiental para la Bogotá del Siglo XXI | K114: 3 | L114: =IF(ISERROR(VLOOKUP(K114,Proposito_programa!$C$2:$E$59,2,FALSE))," ",VLOOKUP(K114,Proposito_programa!$C$2:$E$59,2,FALSE)) -> Movilidad social integral | M114: =IF(ISERROR(VLOOKUP(K114,Proposito_programa!$C$2:$E$59,3,FALSE))," ",VLOOKUP(K114,Proposito_programa!$C$2:$E$59,3,FALSE)) -> Propósito 1: Hacer un nuevo contrato social para incrementar la inclusión social, productiva y política | N114: O23011605570000002099 | O114: 0 | P114: 1033759343 | Q114: HILDA ALEXANDRA MORENO MURCIA | R114: Persona Natural | S114: N/A | T114: N/A | U114: N/A | V114: 2022 | W114: 45000000 | Y114: 1 | Z114: 6500000 | AA114: 51500000 | AB114: 51500001 | AC114: 2022-01-28 | AD114: 2022-02-01 | AE114: 2022-10-31 | AF114: 9 Meses | AM114: Terminado | AN114: 1.000000019
A115: 104-2022 | B115: 2022 | C115: FDLM-104-2022 (70039) | D115: https://community.secop.gov.co/Public/Tendering/OpportunityDetail/Index?noticeUID=CO1.NTC.2791422&isFromPublicArea=True&isModal=False | E115: Contratos de prestación de servicios profesionales y de apoyo a la gestión | F115: Contratación directa | G115: Prestación de servicios profesionales y de apoyo a la gestión, o para la ejecución de trabajos artísticos que sólo puedan encomendarse a determinadas personas naturales | H115: PRESTAR LOS SERVICIOS PROFESIONALES PARA LA FORMULACIÓN PRE CONTRACTUAL PARTICIPATIVA, APOYO A LA SUPERVISIÓN, SEGUIMIENTO, ACOMPAÑAMIENTO, ATENCIÓN Y EVALUACIÓN DE LOS PROYECTOS E INSTANCIAS DE ARTICULACIÓN INTERINSTITUCIONAL Y PARTICIPACIÓN LOCAL QUE SE REQUIERAN EN EL PROYECTO 2077 TERRITORIOS DIVERSOS Y LIBRES DE VIOLENCIA. | I115: Inversión | J115: Un nuevo contrato social y ambiental para la Bogotá del Siglo XXI | K115: 3 | L115: =IF(ISERROR(VLOOKUP(K115,Proposito_programa!$C$2:$E$59,2,FALSE))," ",VLOOKUP(K115,Proposito_programa!$C$2:$E$59,2,FALSE)) -> Movilidad social integral | M115: =IF(ISERROR(VLOOKUP(K115,Proposito_programa!$C$2:$E$59,3,FALSE))," ",VLOOKUP(K115,Proposito_programa!$C$2:$E$59,3,FALSE)) -> Propósito 1: Hacer un nuevo contrato social para incrementar la inclusión social, productiva y política | N115: O23011601060000002077 | O115: 0 | P115: 1022936092 | Q115: IVON LILIANA ROMERO PEÑALOZA | R115: Persona Natural | S115: N/A | T115: N/A | U115: N/A | V115: 2022 | W115: 40950000 | AA115: 40950000 | AB115: 40950000 | AC115: 2022-01-28 | AD115: 2022-10-31 | AE115: 2022-10-30 | AF115: 9 Meses | AM115: Terminado | AN115: 1
A116: 105-2022 | B116: 2022 | C116: FDLM-105-2022 (70039) | D116: https://community.secop.gov.co/Public/Tendering/OpportunityDetail/Index?noticeUID=CO1.NTC.2792199&isFromPublicArea=True&isModal=False | E116: Contratos de prestación de servicios profesionales y de apoyo a la gestión | F116: Contratación directa | G116: Prestación de servicios profesionales y de apoyo a la gestión, o para la ejecución de trabajos artísticos que sólo puedan encomendarse a determinadas personas naturales | H116: PRESTAR LOS SERVICIOS PROFESIONALES PARA LA FORMULACIÓN PRE CONTRACTUAL PARTICIPATIVA, APOYO A LA SUPERVISIÓN, SEGUIMIENTO, ACOMPAÑAMIENTO, ATENCIÓN Y EVALUACIÓN DE LOS PROYECTOS E INSTANCIAS DE ARTICULACIÓN INTERINSTITUCIONAL Y PARTICIPACIÓN LOCAL QUE SE REQUIERAN EN EL PROYECTO 2077 TERRITORIOS DIVERSOS Y LIBRES DE VIOLENCIA. | I116: Inversión | J116: Un nuevo contrato social y ambiental para la Bogotá del Siglo XXI | K116: 3 | L116: =IF(ISERROR(VLOOKUP(K116,Proposito_programa!$C$2:$E$59,2,FALSE))," ",VLOOKUP(K116,Proposito_programa!$C$2:$E$59,2,FALSE)) -> Movilidad social integral | M116: =IF(ISERROR(VLOOKUP(K116,Proposito_programa!$C$2:$E$59,3,FALSE))," ",VLOOKUP(K116,Proposito_programa!$C$2:$E$59,3,FALSE)) -> Propósito 1: Hacer un nuevo contrato social para incrementar la inclusión social, productiva y política | N116: O23011601060000002077 | O116: 0 | P116: 1012420698 | Q116: JESSICA MARIA MARTINEZ TIERRADENTRO | R116: Persona Natural | S116: N/A | T116: N/A | U116: N/A | V116: 2022 | W116: 40950000 | Y116: 1 | Z116: 7680000 | AA116: 48630000 | AB116: 40950000 | AC116: 2022-01-28 | AD116: 2022-02-01 | AE116: 2022-10-31 | AF116: 9 Meses | AG116: 1 | AH116: 1 MES | AM116: En ejecución | AN116: 0.8420727946
A117: 106-2022 | B117: 2022 | C117: FDLM-106-2022 (71104) | D117: https://community.secop.gov.co/Public/Tendering/OpportunityDetail/Index?noticeUID=CO1.NTC.2793351&isFromPublicArea=True&isModal=False. | E117: Contratos de prestación de servicios profesionales y de apoyo a la gestión | F117: Contratación directa | G117: Prestación de servicios profesionales y de apoyo a la gestión, o para la ejecución de trabajos artísticos que sólo puedan encomendarse a determinadas personas naturales | H117: Prestar los servicios profesionales que garanticen la adecuada concertación de acciones para la estructuración del proceso precontractual y contractual relativos al proyecto 2056 de la vigencia fiscal 2022, así como el apoyo a la ejecución del contrato a través del cual se ejecuta la respectiva meta plan de desarrollo y objetivos del proyecto de inversión. | I117: Inversión | J117: Un nuevo contrato social y ambiental para la Bogotá del Siglo XXI | K117: 3 | L117: =IF(ISERROR(VLOOKUP(K117,Proposito_programa!$C$2:$E$59,2,FALSE))," ",VLOOKUP(K117,Proposito_programa!$C$2:$E$59,2,FALSE)) -> Movilidad social integral | M117: =IF(ISERROR(VLOOKUP(K117,Proposito_programa!$C$2:$E$59,3,FALSE))," ",VLOOKUP(K117,Proposito_programa!$C$2:$E$59,3,FALSE)) -> Propósito 1: Hacer un nuevo contrato social para incrementar la inclusión social, productiva y política | N117: O23011601170000002056 | O117: 0 | P117: 1022338424 | Q117: DIANA PILAR PARADA ESPINOSA | R117: Persona Natural | S117: N/A | T117: N/A | U117: N/A | V117: 2022 | W117: 36160000 | AA117: 36160000 | AB117: =+X117+Y117+AA117 -> 36160000 | AC117: 2022-01-28 | AD117: 2022-02-03 | AE117: 2022-09-08 | AF117: 8 Meses | AM117: Terminado | AN117: 1
A118: 107-2022 | B118: 2022 | C118: FDLM-107-2022 (67824) | D118: https://community.secop.gov.co/Public/Tendering/OpportunityDetail/Index?noticeUID=CO1.NTC.2795585&isFromPublicArea=True&isModal=False | E118: Contratos de prestación de servicios profesionales y de apoyo a la gestión | F118: Contratación directa | G118: Prestación de servicios profesionales y de apoyo a la gestión, o para la ejecución de trabajos artísticos que sólo puedan encomendarse a determinadas personas naturales | H118: PRESTACIÓN DE SERVICIOS PROFESIONALES ESPECIALIZADOS PARA EL SEGUIMIENTO Y APOYO JURÍDICO DE LOS REQUERIMIENTOS QUE SEAN EFECTUADOS AL DESPACHO EN LA IMPLEMENTACIÓN DEL PLAN DE DESARROLLO LOCAL VIGENTE. | I118: Inversión | J118: Un nuevo contrato social y ambiental para la Bogotá del Siglo XXI | K118: 3 | L118: =IF(ISERROR(VLOOKUP(K118,Proposito_programa!$C$2:$E$59,2,FALSE))," ",VLOOKUP(K118,Proposito_programa!$C$2:$E$59,2,FALSE)) -> Movilidad social integral | M118: =IF(ISERROR(VLOOKUP(K118,Proposito_programa!$C$2:$E$59,3,FALSE))," ",VLOOKUP(K118,Proposito_programa!$C$2:$E$59,3,FALSE)) -> Propósito 1: Hacer un nuevo contrato social para incrementar la inclusión social, productiva y política | N118: O23011605570000002099 | O118: 0 | P118: 1010201357 | Q118: JANNER MAURICIO RIVERA VELASQUEZ | R118: Persona Natural | S118: N/A | T118: N/A | U118: N/A | V118: 2022 | W118: 65700000 | Y118: 1 | Z118: 6500000 | AA118: 72200000 | AB118: 65700000 | AC118: 2022-01-28 | AD118: 2022-02-01 | AE118: 2022-10-31 | AF118: 8 Meses | AM118: En ejecución | AN118: 0.9099722992
A119: 108-2022 | B119: 2022 | C119: FDLM-108-2022 (71499) | D119: https://community.secop.gov.co/Public/Tendering/OpportunityDetail/Index?noticeUID=CO1.NTC.2796312&isFromPublicArea=True&isModal=False | E119: Contratos de prestación de servicios profesionales y de apoyo a la gestión | F119: Contratación directa | G119: Prestación de servicios profesionales y de apoyo a la gestión, o para la ejecución de trabajos artísticos que sólo puedan encomendarse a determinadas personas naturales | H119: PRESTAR SUS SERVICIOS PROFESIONALES PARA APOYAR AL ALCALDE LOCAL EN LA PROMOCIÓN, ACOMPAÑAMIENTO, COORDINACIÓN Y ATENCIÓN DE LAS INSTANCIAS DE COORDINACIÓN INTERINSTITUCIONALES Y LAS INSTANCIAS DE PARTICIPACIÓN LOCALES, ASÍ COMO LOS PROCESO COMUNITARIOS EN LA LOCALIDAD, EN CUMPLIMIENTO DEL PLAN DE DESARROLLO LOCAL VIGENTE | I119: Inversión | J119: Un nuevo contrato social y ambiental para la Bogotá del Siglo XXI | K119: 3 | L119: =IF(ISERROR(VLOOKUP(K119,Proposito_programa!$C$2:$E$59,2,FALSE))," ",VLOOKUP(K119,Proposito_programa!$C$2:$E$59,2,FALSE)) -> Movilidad social integral | M119: =IF(ISERROR(VLOOKUP(K119,Proposito_programa!$C$2:$E$59,3,FALSE))," ",VLOOKUP(K119,Proposito_programa!$C$2:$E$59,3,FALSE)) -> Propósito 1: Hacer un nuevo contrato social para incrementar la inclusión social, productiva y política | N119: O23011605570000002099 | O119: 0 | P119: 1019077615 | Q119: MARIA ANGELICA LOZANO SANCHEZ | R119: Persona Natural | S119: N/A | T119: N/A | U119: N/A | V119: 2022 | W119: 41400000 | AA119: 41400000 | AB119: =+X119+Y119+AA119 -> 41400000 | AC119: 2022-01-28 | AD119: 2022-02-01 | AE119: 2022-10-31 | AF119: 9 Meses | AM119: Terminado | AN119: 1
A120: 109-2022 | B120: 2022 | C120: FDLM-109-2022 (70039) | D120: https://community.secop.gov.co/Public/Tendering/OpportunityDetail/Index?noticeUID=CO1.NTC.2796721&isFromPublicArea=True&isModal=False | E120: Contratos de prestación de servicios profesionales y de apoyo a la gestión | F120: Contratación directa | G120: Prestación de servicios profesionales y de apoyo a la gestión, o para la ejecución de trabajos artísticos que sólo puedan encomendarse a determinadas personas naturales | H120: PRESTAR LOS SERVICIOS PROFESIONALES PARA LA FORMULACIÓN PRE CONTRACTUAL PARTICIPATIVA, APOYO A LA SUPERVISIÓN, SEGUIMIENTO, ACOMPAÑAMIENTO, ATENCIÓN Y EVALUACIÓN DE LOS PROYECTOS E INSTANCIAS DE ARTICULACIÓN INTERINSTITUCIONAL Y PARTICIPACIÓN LOCAL QUE SE REQUIERAN EN EL PROYECTO 2077 TERRITORIOS DIVERSOS Y LIBRES DE VIOLENCIA. | I120: Inversión | J120: Un nuevo contrato social y ambiental para la Bogotá del Siglo XXI | K120: 3 | L120: =IF(ISERROR(VLOOKUP(K120,Proposito_programa!$C$2:$E$59,2,FALSE))," ",VLOOKUP(K120,Proposito_programa!$C$2:$E$59,2,FALSE)) -> Movilidad social integral | M120: =IF(ISERROR(VLOOKUP(K120,Proposito_programa!$C$2:$E$59,3,FALSE))," ",VLOOKUP(K120,Proposito_programa!$C$2:$E$59,3,FALSE)) -> Propósito 1: Hacer un nuevo contrato social para incrementar la inclusión social, productiva y política | N120: O23011601060000002077 | O120: 0 | P120: 1020767187 | Q120: NATALIA ANDREA PENAGOS BERMUDEZ | R120: Persona Natural | S120: N/A | T120: N/A | U120: N/A | V120: 2022 | W120: 40950000 | Y120: 1 | Z120: 7680000 | AA120: 48630000 | AB120: 40950000 | AC120: 2022-01-28 | AD120: 2022-02-04 | AE120: 2022-11-03 | AF120: 9 Meses | AG120: 1 | AH120: 1 MES | AM120: En ejecución | AN120: 0.8420727946
A121: 110-2022 | B121: 2022 | C121: FDLM-110-2022 (70575) | D121: https://community.secop.gov.co/Public/Tendering/OpportunityDetail/Index?noticeUID=CO1.NTC.2795793&isFromPublicArea=True&isModal=False | E121: Contratos de prestación de servicios profesionales y de apoyo a la gestión | F121: Contratación directa | G121: Prestación de servicios profesionales y de apoyo a la gestión, o para la ejecución de trabajos artísticos que sólo puedan encomendarse a determinadas personas naturales | H121: El contrato que se pretende celebrar tendrá por objeto: Prestar los servicios profesionales que garanticen la labor de coordinación del proyecto 2060, que garantice la adecuada estructuración del proceso precontractual y contractual relativos al proyecto 2060 de la vigencia fiscal 2022, así como el apoyo a la ejecución del contrato a través del cual se ejecute la respectiva meta plan de desarrollo y objetivos del proyecto de inversión, y del contrato en ejecución vigencia fiscal 2021. | I121: Inversión | J121: Un nuevo contrato social y ambiental para la Bogotá del Siglo XXI | K121: 3 | L121: =IF(ISERROR(VLOOKUP(K121,Proposito_programa!$C$2:$E$59,2,FALSE))," ",VLOOKUP(K121,Proposito_programa!$C$2:$E$59,2,FALSE)) -> Movilidad social integral | M121: =IF(ISERROR(VLOOKUP(K121,Proposito_programa!$C$2:$E$59,3,FALSE))," ",VLOOKUP(K121,Proposito_programa!$C$2:$E$59,3,FALSE)) -> Propósito 1: Hacer un nuevo contrato social para incrementar la inclusión social, productiva y política | N121: O23011601060000002060 | O121: 0 | P121: 1047462010 | Q121: MARIA JOSE CABARCAS CARDENAS | R121: Persona Natural | S121: N/A | T121: N/A | U121: N/A | V121: 2022 | W121: 52800 | Y121: 1 | Z121: 19500000 | AA121: 19552800 | AB121: =+X121+Y121+AA121 -> 19552801 | AC121: 2022-01-28 | AD121: 2022-02-02 | AE121: 2022-10-01 | AF121: 8 Meses | AM121: Terminado | AN121: 1.000000051
A122: 111-2022 | B122: 2022 | C122: FDLM-111-2022 (71492) | D122: https://community.secop.gov.co/Public/Tendering/OpportunityDetail/Index?noticeUID=CO1.NTC.2795297&isFromPublicArea=True&isModal=False | E122: Contratos de prestación de servicios profesionales y de apoyo a la gestión | F122: Contratación directa | G122: Prestación de servicios profesionales y de apoyo a la gestión, o para la ejecución de trabajos artísticos que sólo puedan encomendarse a determinadas personas naturales | H122: PRESTACION DE SERVICIOS PROFESIONALES AL FONDO DE DESARROLLO LOCAL DE LOS MARTIRES EN MATERIA DE CONTRATACION ESTATAL, EN CUMPLIMIENTO DEL PLAN DE DESARROLLO LOCAL VIGENTE | I122: Inversión | J122: Un nuevo contrato social y ambiental para la Bogotá del Siglo XXI | K122: 3 | L122: =IF(ISERROR(VLOOKUP(K122,Proposito_programa!$C$2:$E$59,2,FALSE))," ",VLOOKUP(K122,Proposito_programa!$C$2:$E$59,2,FALSE)) -> Movilidad social integral | M122: =IF(ISERROR(VLOOKUP(K122,Proposito_programa!$C$2:$E$59,3,FALSE))," ",VLOOKUP(K122,Proposito_programa!$C$2:$E$59,3,FALSE)) -> Propósito 1: Hacer un nuevo contrato social para incrementar la inclusión social, productiva y política | N122: O23011605570000002099 | O122: 0 | P122: 1022944283 | Q122: JORGE LUIS LOMBANA SANCHEZ | R122: Persona Natural | S122: N/A | T122: N/A | U122: N/A | V122: 2022 | W122: 46800000 | AA122: 46800000 | AB122: =+X122+Y122+AA122 -> 46800000 | AC122: 2022-01-28 | AD122: 2022-02-02 | AE122: 2022-11-01 | AF122: 9 Meses | AM122: Terminado | AN122: 1
A123: 112-2022 | B123: 2022 | C123: FDLM-112-2022 (71466) | D123: https://community.secop.gov.co/Public/Tendering/OpportunityDetail/Index?noticeUID=CO1.NTC.2796609&isFromPublicArea=True&isModal=False | E123: Contratos de prestación de servicios profesionales y de apoyo a la gestión | F123: Contratación directa | G123: Prestación de servicios profesionales y de apoyo a la gestión, o para la ejecución de trabajos artísticos que sólo puedan encomendarse a determinadas personas naturales | H123: APOYAR ADMINISTRATIVA Y ASISTENCIALMENTE AL DESPACHO DEL ALCALDE LOCAL DE LOS MARTIRES | I123: Inversión | J123: Un nuevo contrato social y ambiental para la Bogotá del Siglo XXI | K123: 3 | L123: =IF(ISERROR(VLOOKUP(K123,Proposito_programa!$C$2:$E$59,2,FALSE))," ",VLOOKUP(K123,Proposito_programa!$C$2:$E$59,2,FALSE)) -> Movilidad social integral | M123: =IF(ISERROR(VLOOKUP(K123,Proposito_programa!$C$2:$E$59,3,FALSE))," ",VLOOKUP(K123,Proposito_programa!$C$2:$E$59,3,FALSE)) -> Propósito 1: Hacer un nuevo contrato social para incrementar la inclusión social, productiva y política | N123: O23011605570000002099 | O123: 0 | P123: 1010198750 | Q123: GLADYS MARYURI ORTEGA MARIN | R123: Persona Natural | S123: N/A | T123: N/A | U123: N/A | V123: 2022 | W123: 29700000 | Y123: 1 | Z123: 19500000 | AA123: 49200000 | AB123: =+X123+Y123+AA123 -> 49200001 | AC123: 2022-01-28 | AD123: 2022-02-02 | AE123: 2022-11-01 | AF123: 9 Meses | AM123: Terminado | AN123: 1.00000002
A124: 113-2022 | B124: 2022 | C124: FDLM-113-2022 (70065) | D124: https://community.secop.gov.co/Public/Tendering/OpportunityDetail/Index?noticeUID=CO1.NTC.2795023&isFromPublicArea=True&isModal=False. | E124: Contratos de prestación de servicios profesionales y de apoyo a la gestión | F124: Contratación directa | G124: Prestación de servicios profesionales y de apoyo a la gestión, o para la ejecución de trabajos artísticos que sólo puedan encomendarse a determinadas personas naturales | H124: APOYAR LA FORMULACIÓN, GESTIÓN Y SEGUIMIENTO DE ACTIVIDADES ENFOCADAS A LA GESTIÓN AMBIENTAL EXTERNA, ENCAMINADAS A LA MITIGACIÓN DE LOS DIFERENTES IMPACTOS AMBIENTALES Y LA CONSERVACIÓN DE LOS RECURSOS NATURALES DE LA LOCALIDAD. | I124: Inversión | J124: Un nuevo contrato social y ambiental para la Bogotá del Siglo XXI | K124: 3 | L124: =IF(ISERROR(VLOOKUP(K124,Proposito_programa!$C$2:$E$59,2,FALSE))," ",VLOOKUP(K124,Proposito_programa!$C$2:$E$59,2,FALSE)) -> Movilidad social integral | M124: =IF(ISERROR(VLOOKUP(K124,Proposito_programa!$C$2:$E$59,3,FALSE))," ",VLOOKUP(K124,Proposito_programa!$C$2:$E$59,3,FALSE)) -> Propósito 1: Hacer un nuevo contrato social para incrementar la inclusión social, productiva y política | N124: O23011605570000002099 | O124: 0 | P124: 52796567 | Q124: YENIFER ZORAIDA VALDERRAMA VILLALOBOS | R124: Persona Natural | S124: N/A | T124: N/A | U124: N/A | V124: 2022 | W124: 44100000 | AA124: 44100000 | AB124: =+X124+Y124+AA124 -> 44100000 | AC124: 2022-01-28 | AD124: 2022-02-01 | AE124: 2022-10-31 | AF124: 9 Meses | AM124: Terminado | AN124: 1
A125: 114-2022 | B125: 2022 | C125: FDLM-SABMC-001-2022 | D125: https://community.secop.gov.co/Public/Tendering/OpportunityDetail/Index?noticeUID=CO1.NTC.2843953&isFromPublicArea=True&isModal=False | E125: Contratos de prestación de servicios | F125: Contratación directa | G125: Prestación de servicios profesionales y de apoyo a la gestión, o para la ejecución de trabajos artísticos que sólo puedan encomendarse a determinadas personas naturales | H125: LA PRESTACIÓN DEL SERVICIO DE VIGILANCIA Y SEGURIDAD PRIVADA INCLUIDO MEDIOS TECNOLOGICOS, PARA LOS PREDIOS DE PROPIEDAD Y/O TENENCIA DE LA ALCALDÍA LOCAL DE LOS MÁRTIRES, DE CONFORMIDAD CON LAS ESPECIFICACIONES ESTABLECIDAS EN EL DOCUMENTO DE CONDICIONES ESPECIALES, SEGÚN EL PROCEDIMIENTO ESTABLECIDO EN EL REGLAMENTO DE FUNCIONAMIENTO Y OPERACIÓN DE LA BOLSA PARA EL MERCADO DE COMPRAS PÚBLICAS - MCP- DE LA BOLSA MERCANTIL DE COLOMBIA S.A. | I125: Inversión | J125: Un nuevo contrato social y ambiental para la Bogotá del Siglo XXI | K125: 3 | L125: =IF(ISERROR(VLOOKUP(K125,Proposito_programa!$C$2:$E$59,2,FALSE))," ",VLOOKUP(K125,Proposito_programa!$C$2:$E$59,2,FALSE)) -> Movilidad social integral | M125: =IF(ISERROR(VLOOKUP(K125,Proposito_programa!$C$2:$E$59,3,FALSE))," ",VLOOKUP(K125,Proposito_programa!$C$2:$E$59,3,FALSE)) -> Propósito 1: Hacer un nuevo contrato social para incrementar la inclusión social, productiva y política | N125: O21202020080585250 | O125: 0 | P125: 8050008679 | Q125: CORREAGRO S.A | R125: Persona Jurídica | S125: N/A | T125: N/A | U125: N/A | V125: 2022 | W125: 258491623 | Y125: 1 | Z125: 99955648 | AA125: 358447271 | AB125: 258491623 | AC125: 2022-03-09 | AD125: 2022-03-10 | AE125: 2022-11-24 | AF125: 8 meses y 15 dias | AG125: 1 | AH125: 01 mes y 10 dias | AM125: En ejecución | AN125: 0.7211426726
A126: 115-2022 | B126: 2022 | C126: FDLM-MC-001-2022 | D126: https://community.secop.gov.co/Public/Tendering/OpportunityDetail/Index?noticeUID=CO1.NTC.2931702&isFromPublicArea=True&isModal=False | E126: Contratos de prestación de servicios | F126: Selección abreviada | G126: Selección abreviada por menor cuantía | H126: Contratar los servicios logísticos para la realización de la audiencia pública de rendición de cuentas de la vigencia 2021 para la localidad de Los Mártires | I126: Inversión | J126: Un nuevo contrato social y ambiental para la Bogotá del Siglo XXI | K126: 3 | L126: =IF(ISERROR(VLOOKUP(K126,Proposito_programa!$C$2:$E$59,2,FALSE))," ",VLOOKUP(K126,Proposito_programa!$C$2:$E$59,2,FALSE)) -> Movilidad social integral | M126: =IF(ISERROR(VLOOKUP(K126,Proposito_programa!$C$2:$E$59,3,FALSE))," ",VLOOKUP(K126,Proposito_programa!$C$2:$E$59,3,FALSE)) -> Propósito 1: Hacer un nuevo contrato social para incrementar la inclusión social, productiva y política | N126: O23011605570000002099 | O126: 0 | P126: 900300970-1 | Q126: INDUHOTEL | R126: Persona Jurídica | S126: N/A | T126: N/A | U126: N/A | V126: 2022 | W126: 9478360 | AA126: 9478360 | AC126: 2022-05-12 | AD126: 2022-05-13 | AE126: 2022-06-12 | AF126: 30 dias | AM126: En ejecución | AN126: 0
A127: 116-2022 | B127: 2022 | C127: FDLM-MC-002-2022 | D127: https://community.secop.gov.co/Public/Tendering/OpportunityDetail/Index?noticeUID=CO1.NTC.2962216&isFromPublicArea=True&isModal=False | E127: Contratos de prestación de servicios | F127: Contratación directa | G127: Selección abreviada por menor cuantía | H127: CONTRATAR EL SEGURO DE VIDA PARA LOS EDILES DEL FONDO DE DESARROLLO LOCAL DE MÁRTIRES | I127: Inversión | J127: Un nuevo contrato social y ambiental para la Bogotá del Siglo XXI | K127: 3 | L127: =IF(ISERROR(VLOOKUP(K127,Proposito_programa!$C$2:$E$59,2,FALSE))," ",VLOOKUP(K127,Proposito_programa!$C$2:$E$59,2,FALSE)) -> Movilidad social integral | M127: =IF(ISERROR(VLOOKUP(K127,Proposito_programa!$C$2:$E$59,3,FALSE))," ",VLOOKUP(K127,Proposito_programa!$C$2:$E$59,3,FALSE)) -> Propósito 1: Hacer un nuevo contrato social para incrementar la inclusión social, productiva y política | N127: O212020200701030571358 | O127: 0 | P127: 860037013 | Q127: COMPAÑIA MUNDIAL DE SEGUROS S.A. | R127: Persona Jurídica | S127: N/A | T127: N/A | U127: N/A | V127: 2022 | W127: 5019000 | AA127: 5019000 | AC127: 2022-06-16 | AD127: 2022-06-17 | AE127: 2023-06-17 | AF127: 365 dias | AM127: En ejecución | AN127: 0
A128: 117-2022 | B128: 2022 | C128: FDLM-MC-003-2022 | D128: https://community.secop.gov.co/Public/Tendering/OpportunityDetail/Index?noticeUID=CO1.NTC.2989329&isFromPublicArea=True&isModal=False | E128: Contratos de prestación de servicios | F128: Selección abreviada | G128: Selección abreviada por menor cuantía | H128: CONTRATAR LOS SERVICIOS DE COPIA Y REPRODUCCIÓN DE DOCUMENTOS, FOTOGRAMAS Y PIEZAS QUE SE REQUIERAN PARA EL MANTENIMIENTO DEL ARCHIVO DE LA ENTIDAD | I128: Inversión | J128: Un nuevo contrato social y ambiental para la Bogotá del Siglo XXI | K128: 3 | L128: =IF(ISERROR(VLOOKUP(K128,Proposito_programa!$C$2:$E$59,2,FALSE))," ",VLOOKUP(K128,Proposito_programa!$C$2:$E$59,2,FALSE)) -> Movilidad social integral | M128: =IF(ISERROR(VLOOKUP(K128,Proposito_programa!$C$2:$E$59,3,FALSE))," ",VLOOKUP(K128,Proposito_programa!$C$2:$E$59,3,FALSE)) -> Propósito 1: Hacer un nuevo contrato social para incrementar la inclusión social, productiva y política | N128: O21202020080585951 | O128: 0 | P128: 830031976-7 | Q128: COPIERS MARKET EU | R128: Persona Jurídica | S128: N/A | T128: N/A | U128: N/A | V128: 2022 | W128: 16993200 | AA128: 16993200 | AC128: 2022-07-12 | AD128: 2022-07-15 | AE128: 2023-02-14 | AF128: 7 Meses | AM128: En ejecución | AN128: 0
A129: 118-2022 | B129: 2022 | C129: FDLM-114-2022 (73766) | D129: https://community.secop.gov.co/Public/Tendering/OpportunityDetail/Index?noticeUID=CO1.NTC.3049308&isFromPublicArea=True&isModal=False | E129: Contratos de prestación de servicios profesionales y de apoyo a la gestión | F129: Contratación directa | G129: Prestación de servicios profesionales y de apoyo a la gestión, o para la ejecución de trabajos artísticos que sólo puedan encomendarse a determinadas personas naturales | H129: PRESTAR LOS SERVICIOS PROFESIONALES ADMINISTRATIVOS AL FONDO DE DESARROLLO LOCAL EN EL FORTALECIMIENTO DE LAS ETAPAS DE LA GESTION PUBLICA CONTRACTUAL, EN CUMPLIMIENTO DEL PLAN DE DESARROLLO LOCAL VIGENTE | I129: Inversión | J129: Un nuevo contrato social y ambiental para la Bogotá del Siglo XXI | K129: 3 | L129: =IF(ISERROR(VLOOKUP(K129,Proposito_programa!$C$2:$E$59,2,FALSE))," ",VLOOKUP(K129,Proposito_programa!$C$2:$E$59,2,FALSE)) -> Movilidad social integral | M129: =IF(ISERROR(VLOOKUP(K129,Proposito_programa!$C$2:$E$59,3,FALSE))," ",VLOOKUP(K129,Proposito_programa!$C$2:$E$59,3,FALSE)) -> Propósito 1: Hacer un nuevo contrato social para incrementar la inclusión social, productiva y política | N129: O23011605570000002099 | O129: 0 | P129: 9147584 | Q129: JORGE ALBEIRO CONTRERAS ROJAS | R129: Persona Natural | S129: N/A | T129: N/A | U129: N/A | V129: 2022 | W129: 29700000 | AA129: 29700000 | AC129: 2022-07-18 | AD129: 2022-07-19 | AE129: 2022-12-30 | AF129: 5 meses y 12 Dias | AM129: En ejecución | AN129: 0
A130: 119-2022 | B130: 2022 | C130: FDLM-MC-005-2022 (73464) | D130: https://community.secop.gov.co/Public/Tendering/OpportunityDetail/Index?noticeUID=CO1.NTC.2962216&isFromPublicArea=True&isModal=False | E130: Contratos de prestación de servicios | F130: Selección abreviada | G130: Selección abreviada por menor cuantía | H130: SUMINISTRO DE ELEMENTOS DE PAPELERÍA Y ÚTILES DE OFICINA PARA ATENDER LAS NECESIDADES DE LOS DIFERENTES GRUPOS DE TRABAJO QUE CONFORMAN LA ALCALDÍA LOCAL DE LOS MARTIRES, A MONTO AGOTABLE Y PRECIOS UNITARIOS CONFORME LA PROPUESTA PRESENTADA Y LAS CARACTERÍSTICAS Y ESPECIFICACIONES SEÑALADAS EN LOS ESTUDIOS PREVIOS Y ANEXO TECNICO”. | I130: Inversión | J130: Un nuevo contrato social y ambiental para la Bogotá del Siglo XXI | K130: 3 | L130: =IF(ISERROR(VLOOKUP(K130,Proposito_programa!$C$2:$E$59,2,FALSE))," ",VLOOKUP(K130,Proposito_programa!$C$2:$E$59,2,FALSE)) -> Movilidad social integral | M130: =IF(ISERROR(VLOOKUP(K130,Proposito_programa!$C$2:$E$59,3,FALSE))," ",VLOOKUP(K130,Proposito_programa!$C$2:$E$59,3,FALSE)) -> Propósito 1: Hacer un nuevo contrato social para incrementar la inclusión social, productiva y política | N130: O212020200701030571358 | O130: 0 | P130: 901472025 | Q130: DISTRIBUCIONES ANDAQUI SAS | R130: Persona Jurídica | S130: N/A | T130: N/A | U130: N/A | V130: 2022 | W130: 20000000 | AA130: 20000000 | AB130: =+X130+Y130+AA130 -> 20000000 | AC130: 2022-07-26 | AD130: 2022-07-27 | AE130: 2022-12-31 | AF130: 157 dias | AM130: Terminado | AN130: 1
A131: 120-2022 | B131: 2022 | C131: FDLM-120-2022 (74626) | D131: https://community.secop.gov.co/Public/Tendering/OpportunityDetail/Index?noticeUID=CO1.NTC.3083732&isFromPublicArea=True&isModal=False | E131: Contratos de prestación de servicios profesionales y de apoyo a la gestión | F131: Contratación directa | G131: Prestación de servicios profesionales y de apoyo a la gestión, o para la ejecución de trabajos artísticos que sólo puedan encomendarse a determinadas personas naturales | H131: “ENTREGAR AL FONDO DE DESARROLLO LOCAL DE LOS MÁRTIRES A TUTULO DE ARRENDAMIENTO, EL USO Y GOCE DEL INMUEBLE UBICADO EN EL PISO 6 TORRE PARQUEADEROS DEL CENTRO COMERCIAL MALL PLAZA, PARA EL FUNCIONAMIENTO DE LA SEDE ADMINISTRATIVA DE LA ALCALDÍA LOCAL.” | I131: Inversión | J131: Un nuevo contrato social y ambiental para la Bogotá del Siglo XXI | K131: 3 | L131: =IF(ISERROR(VLOOKUP(K131,Proposito_programa!$C$2:$E$59,2,FALSE))," ",VLOOKUP(K131,Proposito_programa!$C$2:$E$59,2,FALSE)) -> Movilidad social integral | M131: =IF(ISERROR(VLOOKUP(K131,Proposito_programa!$C$2:$E$59,3,FALSE))," ",VLOOKUP(K131,Proposito_programa!$C$2:$E$59,3,FALSE)) -> Propósito 1: Hacer un nuevo contrato social para incrementar la inclusión social, productiva y política | N131: O21202020070272112 | O131: 0 | P131: 901120943-3 | Q131: MALLPLAZA SERVICIOS SAS | R131: Persona Jurídica | S131: N/A | T131: N/A | U131: N/A | V131: 2022 | W131: 228386901 | AA131: 228386901 | AC131: 2022-07-29 | AD131: 2022-08-02 | AE131: 2023-02-14 | AF131: 6 Meses y 14 dias | AM131: En ejecución | AN131: 0
A132: 121-2022 | B132: 2022 | C132: FDLM-CD-004-2022 (75511) | D132: https://community.secop.gov.co/Public/Tendering/OpportunityDetail/Index?noticeUID=CO1.NTC.3166289&isFromPublicArea=True&isModal=False | E132: Contratos de prestación de servicios profesionales y de apoyo a la gestión | F132: Contratación directa | G132: Prestación de servicios profesionales y de apoyo a la gestión, o para la ejecución de trabajos artísticos que sólo puedan encomendarse a determinadas personas naturales | H132: REALIZAR EL MANTENIMIENTO PREVENTIVO Y CORRECTIVO DEL ASCENSOR No.11023110 MARCA SCHINDLER 3300, LOCALIZADO EN LA EDIFICACIÓN DEL SALÓN COMUNAL SANTAFÉ, EN LA CARRERA 18 BIS N 23 -30 DE PROPIEDAD DEL FDLM | I132: Funcionamiento | J132: Un nuevo contrato social y ambiental para la Bogotá del Siglo XXI | K132: No aplica | L132: =IF(ISERROR(VLOOKUP(K132,Proposito_programa!$C$2:$E$59,2,FALSE))," ",VLOOKUP(K132,Proposito_programa!$C$2:$E$59,2,FALSE)) ->  | M132: =IF(ISERROR(VLOOKUP(K132,Proposito_programa!$C$2:$E$59,3,FALSE))," ",VLOOKUP(K132,Proposito_programa!$C$2:$E$59,3,FALSE)) ->  | N132: O2120202008078715701 | O132: 0 | P132: 860005289 | Q132: ASCENSORES SCHINDLER DE COLOMBIA SAS | R132: Persona Jurídica | S132: N/A | T132: N/A | U132: N/A | V132: 2022 | W132: 8000000 | AA132: 8000000 | AC132: 2022-08-18 | AD132: 2022-08-30 | AE132: 2023-09-01 | AF132: 1 AÑO | AM132: En ejecución | AN132: 0
A133: 122-2022 | B133: 2022 | C133: FDLM-CD-005-2022 (76318) | D133: https://community.secop.gov.co/Public/Tendering/OpportunityDetail/Index?noticeUID=CO1.NTC.3224894&isFromPublicArea=True&isModal=False | E133: Contratos de prestación de servicios profesionales y de apoyo a la gestión | F133: Contratación directa | G133: Prestación de servicios profesionales y de apoyo a la gestión, o para la ejecución de trabajos artísticos que sólo puedan encomendarse a determinadas personas naturales | H133: CONTRATAR EL ARRENDAMIENTO DE UN BIEN INMUEBLE (BODEGA) PARA EL ALMACENAMIENTO Y SALVAGUARDA DE LOS BIENES DE PROPIEDAD DEL FONDO DE DESARROLLO LOCAL DE LOS MÁRTIRES; Y AQUELLOS QUE LLEGASE A SER LEGALMENTE RESPONSABLE. | I133: Funcionamiento | J133: Un nuevo contrato social y ambiental para la Bogotá del Siglo XXI | K133: No aplica | L133: =IF(ISERROR(VLOOKUP(K133,Proposito_programa!$C$2:$E$59,2,FALSE))," ",VLOOKUP(K133,Proposito_programa!$C$2:$E$59,2,FALSE)) ->  | M133: =IF(ISERROR(VLOOKUP(K133,Proposito_programa!$C$2:$E$59,3,FALSE))," ",VLOOKUP(K133,Proposito_programa!$C$2:$E$59,3,FALSE)) ->  | N133: O21202020070272112 | O133: 0 | P133: 21527954 | Q133: JULIANA ZAPATA ZULUETA | R133: Persona Jurídica | S133: N/A | T133: N/A | U133: N/A | V133: 2022 | W133: 47031000 | AA133: 47031000 | AC133: 2022-08-30 | AD133: 2022-09-02 | AE133: 2023-03-04 | AF133: 183 dias | AM133: En ejecución | AN133: 0
A134: 123-2022 | B134: 2022 | C134: FDLM-LP-001-2022 | D134: https://community.secop.gov.co/Public/Tendering/OpportunityDetail/Index?noticeUID=CO1.NTC.3020873&isFromPublicArea=True&isModal=False | E134: Obra pública | F134: Licitación pública | G134: No aplica | H134: CONTRATAR A PRECIOS UNITARIOS FIJOS POR LA MODALIDAD DE MONTO AGOTABLE, LAS OBRAS Y ACTIVIDADES PARA LA CONSERVACIÓN DE LA MALLA VIAL, ESPACIO PUBLICO Y CICLO-INFRAESTRUCTURA DE LA LOCALIDAD DE LOS MARTIRES | I134: Funcionamiento | J134: Un nuevo contrato social y ambiental para la Bogotá del Siglo XXI | K134: No aplica | L134: =IF(ISERROR(VLOOKUP(K134,Proposito_programa!$C$2:$E$59,2,FALSE))," ",VLOOKUP(K134,Proposito_programa!$C$2:$E$59,2,FALSE)) ->  | M134: =IF(ISERROR(VLOOKUP(K134,Proposito_programa!$C$2:$E$59,3,FALSE))," ",VLOOKUP(K134,Proposito_programa!$C$2:$E$59,3,FALSE)) ->  | N134: O23011604490000002097 | O134: 0 | P134: 901154986-6 | Q134: CONSORCIO VIAS 2022 | R134: Consorcio | S134: N/A | T134: CONSORCIO VIAS 2022 | U134: 0.3 | V134: 2022 | W134: 3759254100 | AA134: 3759254100 | AC134: 2022-08-29 | AD134: 2022-08-30 | AE134: 2023-05-31 | AF134: 8 Meses | AM134: En ejecución | AN134: 0
A135: 124-2022 | B135: 2022 | C135: FDLM-115-2022 (75588) | D135: https://community.secop.gov.co/Public/Tendering/OpportunityDetail/Index?noticeUID=CO1.NTC.3271228&isFromPublicArea=True&isModal=False | E135: Contratos de prestación de servicios profesionales y de apoyo a la gestión | F135: Contratación directa | G135: Prestación de servicios profesionales y de apoyo a la gestión, o para la ejecución de trabajos artísticos que sólo puedan encomendarse a determinadas personas naturales | H135: PRESTAR LOS SERVICIOS PROFESIONALES PARA LA FORMULACIÓN PRE CONTRACTUAL PARTICIPATIVA, APOYO A LA SUPERVISIÓN, SEGUIMIENTO, ACOMPAÑAMIENTO, ATENCIÓN Y EVALUACIÓN DE LOS PROYECTOS E INSTANCIAS DE ARTICULACIÓN INTERINSTITUCIONAL Y PARTICIPACIÓN LOCAL QUE SE REQUIERAN EN EL PROYECTO 2077 TERRITORIOS DIVERSOS Y LIBRES DE VIOLENCI | I135: Inversión | J135: Un nuevo contrato social y ambiental para la Bogotá del Siglo XXI | K135: 3 | L135: =IF(ISERROR(VLOOKUP(K135,Proposito_programa!$C$2:$E$59,2,FALSE))," ",VLOOKUP(K135,Proposito_programa!$C$2:$E$59,2,FALSE)) -> Movilidad social integral | M135: =IF(ISERROR(VLOOKUP(K135,Proposito_programa!$C$2:$E$59,3,FALSE))," ",VLOOKUP(K135,Proposito_programa!$C$2:$E$59,3,FALSE)) -> Propósito 1: Hacer un nuevo contrato social para incrementar la inclusión social, productiva y política | N135: O23011601060000002077 | O135: 0 | P135: 52543513 | Q135: CAROL BEATRIZ RODRIGUEZ CANO | R135: Persona Natural | S135: N/A | T135: N/A | U135: N/A | V135: 2022 | W135: 18200000 | AA135: 18200000 | AC135: 2022-09-13 | AD135: 2022-09-14 | AE135: 2023-01-12 | AF135: 4 meses | AM135: En ejecución | AN135: 0
A136: 125-2022 | B136: 2022 | C136: FDLM-CD-006-2022 (77403) | D136: https://community.secop.gov.co/Public/Tendering/OpportunityDetail/Index?noticeUID=CO1.NTC.3284738&isFromPublicArea=True&isModal=False | E136: Contratos de prestación de servicios profesionales y de apoyo a la gestión | F136: Contratación directa | G136: Prestación de servicios profesionales y de apoyo a la gestión, o para la ejecución de trabajos artísticos que sólo puedan encomendarse a determinadas personas naturales | H136: AUNAR ESFUERZOS TÉCNICOS, ADMINISTRATIVOS, JURÍDICOS Y FINANCIEROS ENTRE LA AGENCIA DISTRITAL PARA LA EDUCACIÓN SUPERIOR, LA CIENCIA Y LA TECNOLOGÍA - ATENEA Y EL FONDO DE DESARROLLO LOCAL DE LOS MÁRTIRES PARA LA IMPLEMENTACIÓN DE UN NUEVO MODELO INCLUSIVO, EFICIENTE Y FLEXIBLE PARA EL ACCESO Y LA PERMANENCIA DE LAS Y LOS JÓVENES EGRESADOS DE INSTITUCIONES DE EDUCACIÓN MEDIA A PROGRAMAS DE EDUCACIÓN SUPERIOR Y POSMEDIA | I136: Funcionamiento | J136: Un nuevo contrato social y ambiental para la Bogotá del Siglo XXI | K136: No aplica | L136: =IF(ISERROR(VLOOKUP(K136,Proposito_programa!$C$2:$E$59,2,FALSE))," ",VLOOKUP(K136,Proposito_programa!$C$2:$E$59,2,FALSE)) ->  | M136: =IF(ISERROR(VLOOKUP(K136,Proposito_programa!$C$2:$E$59,3,FALSE))," ",VLOOKUP(K136,Proposito_programa!$C$2:$E$59,3,FALSE)) ->  | N136: O23011601170000002056 | O136: 0 | P136: 901508361-4 | Q136: AGENCIA DE EDUCACIÓN SUPERIOR, CIENCIA Y TECNOLOGÍA – ATENEA | R136: Persona Jurídica | S136: N/A | T136: N/A | U136: N/A | V136: 2022 | W136: 1320513000 | AA136: 1320513000 | AC136: 2022-09-15 | AD136: 2022-09-20 | AE136: 2029-12-31 | AF136: 7 años | AM136: En ejecución | AN136: 0
A137: 126-2022 | B137: 2022 | C137: FDLM-MC-006-2022 (75170) | D137: https://community.secop.gov.co/Public/Tendering/OpportunityDetail/Index?noticeUID=CO1.NTC.3220248&isFromPublicArea=True&isModal=False | E137: Contratos de prestación de servicios | F137: Selección abreviada | G137: Selección abreviada por menor cuantía | H137: CONTRATAR A PRECIOS UNITARIOS FIJOS POR LA MODALIDAD DE MONTO AGOTABLE LOS SERVICIOS PARA LA CONSTRUCCIÓN DE ACCIONES DE PREVENCIÓN DE VIOLENCIA INTRAFAMILIAR Y/O VIOLENCIA SEXUAL, PROYECTO 2077, VIGENCIA 2022 | I137: Funcionamiento | J137: Un nuevo contrato social y ambiental para la Bogotá del Siglo XXI | K137: No aplica | L137: =IF(ISERROR(VLOOKUP(K137,Proposito_programa!$C$2:$E$59,2,FALSE))," ",VLOOKUP(K137,Proposito_programa!$C$2:$E$59,2,FALSE)) ->  | M137: =IF(ISERROR(VLOOKUP(K137,Proposito_programa!$C$2:$E$59,3,FALSE))," ",VLOOKUP(K137,Proposito_programa!$C$2:$E$59,3,FALSE)) ->  | N137: O23011601060000002077 | O137: 0 | P137: 901610739 | Q137: AVANZA LOGISTICA Y SERVICIOS SAS | R137: Persona Jurídica | S137: N/A | T137: N/A | U137: N/A | V137: 2022 | W137: 21562965 | AA137: 21562965 | AC137: 2022-09-15 | AD137: 2022-09-26 | AE137: 2023-02-15 | AF137: 5 meses | AM137: En ejecución | AN137: 0
A138: 127-2022 | B138: 2022 | C138: FDLM-116-2022 (76825) | D138: https://community.secop.gov.co/Public/Tendering/OpportunityDetail/Index?noticeUID=CO1.NTC.3330828&isFromPublicArea=True&isModal=False | E138: Contratos de prestación de servicios profesionales y de apoyo a la gestión | F138: Contratación directa | G138: Prestación de servicios profesionales y de apoyo a la gestión, o para la ejecución de trabajos artísticos que sólo puedan encomendarse a determinadas personas naturales | H138: CONTRATAR LA PRESTACIÓN DE SERVICIOS PROFESIONALES PARA LIDERAR LA EJECUCIÓN DEL PROYECTO 2077 DE PREVENCIÓN DE VIOLENCIA INTRAFAMILIAR, VIOLENCIA SEXUAL EN EL CONTEXTO FAMILIAR Y PROMOCIÓN DEL BUEN TRATO Y ENTORNO PROTECTORES PARA POBLACIONES EN SITUACIÓN DE RIESGO EN CUMPLIMIENTO DEL PLAN DE DESARROLLO LOCAL | I138: Inversión | J138: Un nuevo contrato social y ambiental para la Bogotá del Siglo XXI | K138: 3 | L138: =IF(ISERROR(VLOOKUP(K138,Proposito_programa!$C$2:$E$59,2,FALSE))," ",VLOOKUP(K138,Proposito_programa!$C$2:$E$59,2,FALSE)) -> Movilidad social integral | M138: =IF(ISERROR(VLOOKUP(K138,Proposito_programa!$C$2:$E$59,3,FALSE))," ",VLOOKUP(K138,Proposito_programa!$C$2:$E$59,3,FALSE)) -> Propósito 1: Hacer un nuevo contrato social para incrementar la inclusión social, productiva y política | N138: O23011601060000002077 | O138: 0 | P138: 1026283969 | Q138: LEIDY CAROLINA MORENO HURTADO | R138: Persona Natural | S138: N/A | T138: N/A | U138: N/A | V138: 2022 | W138: 24860000 | AA138: 24860000 | AC138: 27/09/2022 | AD138: 2022-09-28 | AE138: 2023-01-20 | AF138: 3 meses y 23 dias | AM138: En ejecución | AN138: 0
A139: 128-2022 | B139: 2022 | C139: FDLM-117-2022 (77098) | D139: https://community.secop.gov.co/Public/Tendering/OpportunityDetail/Index?noticeUID=CO1.NTC.3340746&isFromPublicArea=True&isModal=False | E139: Contratos de prestación de servicios profesionales y de apoyo a la gestión | F139: Contratación directa | G139: Prestación de servicios profesionales y de apoyo a la gestión, o para la ejecución de trabajos artísticos que sólo puedan encomendarse a determinadas personas naturales | H139: PRESTAR SUS SERVICIOS PROFESIONALES PARA APOYAR JURÍDICAMENTE LA EJECUCIÓN DE LAS ACCIONES REQUERIDAS PARA LA DEPURACIÓN DE LAS ACTUACIONES ADMINISTRATIVAS QUE CURSAN EN LA ALCALDÍA LOCAL DE LOS MÁRTIRES | I139: Inversión | J139: Un nuevo contrato social y ambiental para la Bogotá del Siglo XXI | K139: 3 | L139: =IF(ISERROR(VLOOKUP(K139,Proposito_programa!$C$2:$E$59,2,FALSE))," ",VLOOKUP(K139,Proposito_programa!$C$2:$E$59,2,FALSE)) -> Movilidad social integral | M139: =IF(ISERROR(VLOOKUP(K139,Proposito_programa!$C$2:$E$59,3,FALSE))," ",VLOOKUP(K139,Proposito_programa!$C$2:$E$59,3,FALSE)) -> Propósito 1: Hacer un nuevo contrato social para incrementar la inclusión social, productiva y política | N139: O23011605570000002099 | O139: 0 | P139: 1007539578 | Q139: JUAN PABLO TORRES ALVAREZ | R139: Persona Natural | S139: N/A | T139: N/A | U139: N/A | V139: 2022 | W139: 13650000 | AA139: =+W139+X139+Z139 -> 13650000 | AC139: 29/09/2022 | AD139: 2022-09-30 | AE139: 2022-12-29 | AF139: 3 meses | AM139: En ejecución | AN139: 0
A140: 129-2022 | B140: 2022 | C140: FDLM-CD-007-2022 (78620) | D140: https://community.secop.gov.co/Public/Tendering/OpportunityDetail/Index?noticeUID=CO1.NTC.3373947&isFromPublicArea=True&isModal=False | E140: Contratos de prestación de servicios profesionales y de apoyo a la gestión | F140: Contratación directa | G140: Prestación de servicios profesionales y de apoyo a la gestión, o para la ejecución de trabajos artísticos que sólo puedan encomendarse a determinadas personas naturales | H140: PRESTAR LOS SERVICIOS DE CORREO CERTIFICADO Y APOYO A LA OPOERACION DEL CENTRO DE DOCUMENTACION E INFORMACION (CDI) DE LA ALCALDIA LOCAL DE LOS MARTIRES EN SU SEDE PRINCIPAL, INSPECCIONES DE POLICIA Y DEMAS QUE LLEGUEN A REQUERIR DURAN CON LA EJECUCION, QUECION CURSO Y ENTREGA DE CORRESPONDENCIA TANTO INTERNA COMO EXTERNA. | I140: Funcionamiento | J140: Un nuevo contrato social y ambiental para la Bogotá del Siglo XXI | K140: No aplica | L140: =IF(ISERROR(VLOOKUP(K140,Proposito_programa!$C$2:$E$59,2,FALSE))," ",VLOOKUP(K140,Proposito_programa!$C$2:$E$59,2,FALSE)) ->  | M140: =IF(ISERROR(VLOOKUP(K140,Proposito_programa!$C$2:$E$59,3,FALSE))," ",VLOOKUP(K140,Proposito_programa!$C$2:$E$59,3,FALSE)) ->  | N140: O21202020060868030 | O140: 0 | P140: 900062917-9 | Q140: SERVICIOS POSTALES NACIONALES S.A.S | R140: Persona Jurídica | S140: N/A | T140: N/A | U140: N/A | V140: 2022 | W140: 45194866 | AA140: 45194866 | AC140: 2022-10-19 | AD140: 2023-01-24 | AE140: 2023-01-24 | AF140: 3 meses | AM140: En ejecución | AN140: 0
A141: 130-2022 | B141: 2022 | C141: FDLM-SAMC-002-2022 (74622) | D141: https://community.secop.gov.co/Public/Tendering/OpportunityDetail/Index?noticeUID=CO1.NTC.3252081&isFromPublicArea=True&isModal=False | E141: Contratos de prestación de servicios | F141: Selección abreviada | G141: Selección abreviada por menor cuantía | H141: PRESTAR LOS SERVICIOS PARA REALIZAR EL LEVANTAMIENTO TOPOGRÁFICO, ARQUITECTÓNICO Y LOS ENSAYOS DE LABORATORIO A LA EDIFICACIÓN UBICADA EN CARRERA 26 #1F - 05, CONFORME LA NORMATIVA VIGENTE, EN CUMPLIMIENTO DEL PLAN DE DESARROLLO VIGENTE. | I141: Inversión | J141: Un nuevo contrato social y ambiental para la Bogotá del Siglo XXI | K141: 3 | L141: =IF(ISERROR(VLOOKUP(K141,Proposito_programa!$C$2:$E$59,2,FALSE))," ",VLOOKUP(K141,Proposito_programa!$C$2:$E$59,2,FALSE)) -> Movilidad social integral | M141: =IF(ISERROR(VLOOKUP(K141,Proposito_programa!$C$2:$E$59,3,FALSE))," ",VLOOKUP(K141,Proposito_programa!$C$2:$E$59,3,FALSE)) -> Propósito 1: Hacer un nuevo contrato social para incrementar la inclusión social, productiva y política | N141: O23011601210000002070 | O141: 0 | P141: 9273808 | Q141: RAFAEL ARÍSTIDES DÍAZ PIÑERES | R141: Persona Natural | S141: N/A | T141: N/A | U141: N/A | V141: 2022 | W141: 59362732 | AA141: 59362732 | AC141: 2022-10-05 | AD141: 2022-10-09 | AE141: 2023-12-12 | AF141: 2 meses | AM141: En ejecución | AN141: 0
A142: 131-2022 | B142: 2022 | C142: FDLM-118-2022 (76056) | D142: https://community.secop.gov.co/Public/Tendering/OpportunityDetail/Index?noticeUID=CO1.NTC.3377800&isFromPublicArea=True&isModal=False | E142: Contratos de prestación de servicios profesionales y de apoyo a la gestión | F142: Contratación directa | G142: Prestación de servicios profesionales y de apoyo a la gestión, o para la ejecución de trabajos artísticos que sólo puedan encomendarse a determinadas personas naturales | H142: PRESTAR LOS SERVICIOS DE APOYO A LA GESTIÓN AL GRUPO DE PRENSA Y COMUNICACIONES DEL FONDO DE DESARROLLO LOCAL DE LOS MARTIRES. | I142: Inversión | J142: Un nuevo contrato social y ambiental para la Bogotá del Siglo XXI | K142: 3 | L142: =IF(ISERROR(VLOOKUP(K142,Proposito_programa!$C$2:$E$59,2,FALSE))," ",VLOOKUP(K142,Proposito_programa!$C$2:$E$59,2,FALSE)) -> Movilidad social integral | M142: =IF(ISERROR(VLOOKUP(K142,Proposito_programa!$C$2:$E$59,3,FALSE))," ",VLOOKUP(K142,Proposito_programa!$C$2:$E$59,3,FALSE)) -> Propósito 1: Hacer un nuevo contrato social para incrementar la inclusión social, productiva y política | N142: O23011605570000002099 | O142: 0 | P142: 1052096060 | Q142: MARIA JOSE DONADO NAVAS | R142: Persona Natural | S142: N/A | T142: N/A | U142: N/A | V142: 2022 | W142: 10127000 | AA142: 10127000 | AC142: 2022-10-07 | AD142: 2022-10-13 | AE142: 2023-01-17 | AF142: 95 dias | AM142: En ejecución | AN142: =IF(ISERROR(AB142/AA142),"-",(AB142/AA142)) -> 0
A143: 132-2022 | B143: 2022 | C143: FDLM-119-2022 (76040) | D143: https://community.secop.gov.co/Public/Tendering/OpportunityDetail/Index?noticeUID=CO1.NTC.3415841&isFromPublicArea=True&isModal=False | E143: Contratos de prestación de servicios profesionales y de apoyo a la gestión | F143: Contratación directa | G143: Prestación de servicios profesionales y de apoyo a la gestión, o para la ejecución de trabajos artísticos que sólo puedan encomendarse a determinadas personas naturales | H143: PRESTACIÓN DE SERVICIOS PROFESIONALES PARA LA REALIZACIÓN DE ACTIVIDADES Y ESTRATEGIAS RELACIONADAS CON EL PROYECTO 2060. | I143: Inversión | J143: Un nuevo contrato social y ambiental para la Bogotá del Siglo XXI | K143: 3 | L143: =IF(ISERROR(VLOOKUP(K143,Proposito_programa!$C$2:$E$59,2,FALSE))," ",VLOOKUP(K143,Proposito_programa!$C$2:$E$59,2,FALSE)) -> Movilidad social integral | M143: =IF(ISERROR(VLOOKUP(K143,Proposito_programa!$C$2:$E$59,3,FALSE))," ",VLOOKUP(K143,Proposito_programa!$C$2:$E$59,3,FALSE)) -> Propósito 1: Hacer un nuevo contrato social para incrementar la inclusión social, productiva y política | N143: O23011605570000002099 | O143: 0 | P143: 1006793928 | Q143: ZULAY ELIANA HERRERA MARTINEZ | R143: Persona Natural | S143: N/A | T143: N/A | U143: N/A | V143: 2022 | W143: 15300000 | AA143: 15300000 | AC143: 2022-10-18 | AD143: 2022-10-19 | AE143: 2023-01-18 | AF143: 3 meses | AM143: En ejecución | AN143: 0
A144: 133-2022 | B144: 2022 | C144: FDLM-MC-007-2022 (75462) | D144: https://community.secop.gov.co/Public/Tendering/OpportunityDetail/Index?noticeUID=CO1.NTC.3325215&isFromPublicArea=True&isModal=False | E144: Contratos de prestación de servicios | F144: Selección abreviada | G144: Selección abreviada por menor cuantía | H144: Realizar el mantenimiento preventivo y correctivo con repuestos de las plantas eléctricas incluida capacitación para el manejo de las plantas propiedad del Fondo de Desarrollo Local de Los Mártires. | I144: Inversión | J144: Un nuevo contrato social y ambiental para la Bogotá del Siglo XXI | K144: 3 | L144: =IF(ISERROR(VLOOKUP(K144,Proposito_programa!$C$2:$E$59,2,FALSE))," ",VLOOKUP(K144,Proposito_programa!$C$2:$E$59,2,FALSE)) -> Movilidad social integral | M144: =IF(ISERROR(VLOOKUP(K144,Proposito_programa!$C$2:$E$59,3,FALSE))," ",VLOOKUP(K144,Proposito_programa!$C$2:$E$59,3,FALSE)) -> Propósito 1: Hacer un nuevo contrato social para incrementar la inclusión social, productiva y política | N144: O2-12-02-020-08078715999 | O144: 0 | P144: 900556510 | Q144: M&M ENERGY SOLUTIONS SAS | R144: Persona Jurídica | S144: N/A | T144: N/A | U144: N/A | V144: 2022 | W144: 2356200 | Y144: 1 | Z144: 1170109 | AA144: 3526309 | AC144: 12/10/2022 | AD144: 2022-10-16 | AE144: 2022-11-18 | AF144: 1 mes | AG144: 1 | AH144: 01 mes y 10 dias | AM144: En ejecución | AN144: 0
A145: 134-2022 | B145: 2022 | C145: FDLM-120-2022 (79223) | D145: https://community.secop.gov.co/Public/Tendering/OpportunityDetail/Index?noticeUID=CO1.NTC.3452941&isFromPublicArea=True&isModal=False | E145: Contratos de prestación de servicios profesionales y de apoyo a la gestión | F145: Contratación directa | G145: Prestación de servicios profesionales y de apoyo a la gestión, o para la ejecución de trabajos artísticos que sólo puedan encomendarse a determinadas personas naturales | H145: PRESTAR LOS SERVICIOS PROFESIONALES PARA APOYAR AL DESPACHO DEL ALCALDE LOCAL DE LOS MÁRTIRES CON EL SEGUIMIENTO A REQUERIMIENTOS DE ENTES DE CONTROL, CIUDADANÍA, ENTIDADES, DERECHOS DE PETICIÓN, PLAN DE GESTIÓN INSTITUCIONAL, PLANES DE MEJORA Y CONEXOS | I145: Inversión | J145: Un nuevo contrato social y ambiental para la Bogotá del Siglo XXI | K145: 3 | L145: =IF(ISERROR(VLOOKUP(K145,Proposito_programa!$C$2:$E$59,2,FALSE))," ",VLOOKUP(K145,Proposito_programa!$C$2:$E$59,2,FALSE)) -> Movilidad social integral | M145: =IF(ISERROR(VLOOKUP(K145,Proposito_programa!$C$2:$E$59,3,FALSE))," ",VLOOKUP(K145,Proposito_programa!$C$2:$E$59,3,FALSE)) -> Propósito 1: Hacer un nuevo contrato social para incrementar la inclusión social, productiva y política | N145: O23011605570000002099 | O145: 0 | P145: 53168170 | Q145: MARIA ANGELICA DEL PILAR ANGULO PAEZ | R145: Persona Natural | S145: N/A | T145: N/A | U145: N/A | V145: 2022 | W145: 14790000 | AA145: 14790000 | AC145: 2022-10-27 | AD145: 2022-10-28 | AE145: 2023-01-24 | AF145: 87 dias | AM145: En ejecución | AN145: 0
A146: 135-2022 | B146: 2022 | C146: FDLM-121-2022 (79139) | D146: https://community.secop.gov.co/Public/Tendering/OpportunityDetail/Index?noticeUID=CO1.NTC.3453131&isFromPublicArea=True&isModal=False | E146: Contratos de prestación de servicios profesionales y de apoyo a la gestión | F146: Contratación directa | G146: Prestación de servicios profesionales y de apoyo a la gestión, o para la ejecución de trabajos artísticos que sólo puedan encomendarse a determinadas personas naturales | H146: PRESTACION DE SERVICIOS PROFESIONALES ESPECIALIZADOS AL FONDO DE DESARROLLO LOCAL DE LOS MARTIRES EN APOYO AL DESARROLLO Y SEGUIMIENTO DE LA LÍNEA ESTRATÉGICA Y EL ACOMPAÑAMIENTO PARA EL CUMPLIMIENTO DE LAS FUNCIONES DEL ALCALDE LOCAL | I146: Inversión | J146: Un nuevo contrato social y ambiental para la Bogotá del Siglo XXI | K146: 3 | L146: =IF(ISERROR(VLOOKUP(K146,Proposito_programa!$C$2:$E$59,2,FALSE))," ",VLOOKUP(K146,Proposito_programa!$C$2:$E$59,2,FALSE)) -> Movilidad social integral | M146: =IF(ISERROR(VLOOKUP(K146,Proposito_programa!$C$2:$E$59,3,FALSE))," ",VLOOKUP(K146,Proposito_programa!$C$2:$E$59,3,FALSE)) -> Propósito 1: Hacer un nuevo contrato social para incrementar la inclusión social, productiva y política | N146: O23011605570000002099 | O146: 0 | P146: 1047413222 | Q146: CARLOS ANDRES ESQUIAQUI RANGEL | R146: Persona Natural | S146: N/A | T146: N/A | U146: N/A | V146: 2022 | W146: 16566667 | AA146: 16566667 | AC146: 2022-10-27 | AD146: 2022-11-01 | AE146: 2023-01-10 | AF146: 70 dias | AM146: En ejecución | AN146: 0
A147: 136-2022 | B147: 2022 | C147: FDLM-122-2022 (79298) | D147: https://community.secop.gov.co/Public/Tendering/OpportunityDetail/Index?noticeUID=CO1.NTC.3466160&isFromPublicArea=True&isModal=False | E147: Contratos de prestación de servicios profesionales y de apoyo a la gestión | F147: Contratación directa | G147: Prestación de servicios profesionales y de apoyo a la gestión, o para la ejecución de trabajos artísticos que sólo puedan encomendarse a determinadas personas naturales | H147: APOYAR TÉCNICAMENTE LA REALIZACIÓN DE ACUERDOS QUE PROMUEVAN LA CONVIVENCIA ARMÓNICA ENTRE LA CIUDADANÍA Y LOS VENDEDORES INFORMALES Y ESTACIONARIOS, ORIENTADOS A LA SOLUCIÓN DE LOS CONFLICTOS DEL ESPACIO PÚBLICO IDENTIFICADOS POR LAS ALCALDÍAS LOCALES, ASI COMO APOYAR TÉCNICAMENTE LAS DISTINTAS ETAPAS DE LOS PROCESOS DE COMPETENCIA DE LA ALCALDÍA LOCAL Y/O INSPECCIONES DE POLICÍA PARA LA DEPURACIÓN DE ACTUACIONES ADMINISTRATIVAS Y/O QUERELLAS | I147: Inversión | J147: Un nuevo contrato social y ambiental para la Bogotá del Siglo XXI | K147: 3 | L147: =IF(ISERROR(VLOOKUP(K147,Proposito_programa!$C$2:$E$59,2,FALSE))," ",VLOOKUP(K147,Proposito_programa!$C$2:$E$59,2,FALSE)) -> Movilidad social integral | M147: =IF(ISERROR(VLOOKUP(K147,Proposito_programa!$C$2:$E$59,3,FALSE))," ",VLOOKUP(K147,Proposito_programa!$C$2:$E$59,3,FALSE)) -> Propósito 1: Hacer un nuevo contrato social para incrementar la inclusión social, productiva y política | N147: O23011603450000002080 | O147: 0 | P147: 1007027883 | Q147: MAIKEL JOSE DOMINGUEZ ARRIETA | R147: Persona Natural | S147: N/A | T147: N/A | U147: N/A | V147: 2022 | W147: 15000000 | AA147: 15000000 | AC147: 2022-10-31 | AD147: 2022-11-02 | AE147: 2023-02-01 | AF147: 3 meses | AM147: En ejecución | AN147: 0
A148: 137-2022 | B148: 2022 | C148: FDLM-123-2022 (79188) | D148: https://community.secop.gov.co/Public/Tendering/OpportunityDetail/Index?noticeUID=CO1.NTC.3466162&isFromPublicArea=True&isModal=False | E148: Contratos de prestación de servicios profesionales y de apoyo a la gestión | F148: Contratación directa | G148: Prestación de servicios profesionales y de apoyo a la gestión, o para la ejecución de trabajos artísticos que sólo puedan encomendarse a determinadas personas naturales | H148: PRESTACION DE SERVICIOS PROFESIONALES AL FONDO DE DESARROLLO LOCAL EN EL FORTALECIMIENTO DE LAS ETAPAS DE LA GESTION PUBLICA CONTRACTUAL, EN CUMPLIMIENTO DEL PLAN DE DESARROLLO LOCAL VIGENTE | I148: Inversión | J148: Un nuevo contrato social y ambiental para la Bogotá del Siglo XXI | K148: 3 | L148: =IF(ISERROR(VLOOKUP(K148,Proposito_programa!$C$2:$E$59,2,FALSE))," ",VLOOKUP(K148,Proposito_programa!$C$2:$E$59,2,FALSE)) -> Movilidad social integral | M148: =IF(ISERROR(VLOOKUP(K148,Proposito_programa!$C$2:$E$59,3,FALSE))," ",VLOOKUP(K148,Proposito_programa!$C$2:$E$59,3,FALSE)) -> Propósito 1: Hacer un nuevo contrato social para incrementar la inclusión social, productiva y política | N148: O23011605570000002099 | O148: 0 | P148: 1032463668 | Q148: MARIA ANGÉLICA NARANJO HERRERA | R148: Persona Natural | S148: N/A | T148: N/A | U148: N/A | V148: 2022 | W148: 12833333 | AA148: 12833333 | AC148: 2022-10-31 | AD148: 2022-11-01 | AE148: 2023-01-10 | AF148: 70 dias | AM148: En ejecución | AN148: 0
A149: 138-2022 | B149: 2022 | C149: FDLM-124-2022 (79185) | D149: https://community.secop.gov.co/Public/Tendering/OpportunityDetail/Index?noticeUID=CO1.NTC.3475661&isFromPublicArea=True&isModal=False | E149: Contratos de prestación de servicios profesionales y de apoyo a la gestión | F149: Contratación directa | G149: Prestación de servicios profesionales y de apoyo a la gestión, o para la ejecución de trabajos artísticos que sólo puedan encomendarse a determinadas personas naturales | H149: PRESTACIÓN DE SERVICIOS COMO APOYO PROFESIONAL ESPECIALIZADO EN LA GESTIÓN PÚBLICA PRECONTRACTUAL, CONTRACTUAL Y POST CONTRACTUAL QUE SE REQUIERA EN CUMPLIMIENTO DEL PLAN DE DESARROLLO LOCAL | I149: Inversión | J149: Un nuevo contrato social y ambiental para la Bogotá del Siglo XXI | K149: 3 | L149: =IF(ISERROR(VLOOKUP(K149,Proposito_programa!$C$2:$E$59,2,FALSE))," ",VLOOKUP(K149,Proposito_programa!$C$2:$E$59,2,FALSE)) -> Movilidad social integral | M149: =IF(ISERROR(VLOOKUP(K149,Proposito_programa!$C$2:$E$59,3,FALSE))," ",VLOOKUP(K149,Proposito_programa!$C$2:$E$59,3,FALSE)) -> Propósito 1: Hacer un nuevo contrato social para incrementar la inclusión social, productiva y política | N149: O23011605570000002099 | O149: 0 | P149: 1032372023 | Q149: JESUS DAVID DIAZ CAMPOS | R149: Persona Natural | S149: N/A | T149: N/A | U149: N/A | V149: 2022 | W149: 16566667 | AA149: 16566667 | AC149: 2022-11-02 | AD149: 2022-11-03 | AE149: 2023-01-12 | AF149: 70 dias | AM149: En ejecución | AN149: 0
A150: 139-2022 | B150: 2022 | C150: FDLM-125-2022 (79435) | D150: https://community.secop.gov.co/Public/Tendering/OpportunityDetail/Index?noticeUID=CO1.NTC.3484598&isFromPublicArea=True&isModal=False | E150: Contratos de prestación de servicios profesionales y de apoyo a la gestión | F150: Contratación directa | G150: Prestación de servicios profesionales y de apoyo a la gestión, o para la ejecución de trabajos artísticos que sólo puedan encomendarse a determinadas personas naturales | H150: PRESTACIÓN DE SERVICIOS DE APOYO A LA GESTIÓN CON EL FIN DE REALIZAR ACTIVIDADES PROPIAS DEL ÁREA DE GESTIÓN POLICIVA Y JURÍDICA | I150: Inversión | J150: Un nuevo contrato social y ambiental para la Bogotá del Siglo XXI | K150: 3 | L150: =IF(ISERROR(VLOOKUP(K150,Proposito_programa!$C$2:$E$59,2,FALSE))," ",VLOOKUP(K150,Proposito_programa!$C$2:$E$59,2,FALSE)) -> Movilidad social integral | M150: =IF(ISERROR(VLOOKUP(K150,Proposito_programa!$C$2:$E$59,3,FALSE))," ",VLOOKUP(K150,Proposito_programa!$C$2:$E$59,3,FALSE)) -> Propósito 1: Hacer un nuevo contrato social para incrementar la inclusión social, productiva y política | N150: O23011605570000002099 | O150: 0 | P150: 1014291719 | Q150: JESSICA LORENA GÓMEZ PARDO | R150: Persona Natural | S150: N/A | T150: N/A | U150: N/A | V150: 2022 | W150: 5200000 | AA150: 5200000 | AB150: =+X150+Y150+AA150 -> 5200000 | AC150: 2022-11-03 | AD150: 2022-11-09 | AE150: 2023-01-07 | AF150: 2 meses | AM150: Terminado | AN150: 1
A151: 140-2022 | B151: 2022 | C151: FDLM-126-2022 (79311) | D151: https://community.secop.gov.co/Public/Tendering/OpportunityDetail/Index?noticeUID=CO1.NTC.3485023&isFromPublicArea=True&isModal=False | E151: Contratos de prestación de servicios profesionales y de apoyo a la gestión | F151: Contratación directa | G151: Prestación de servicios profesionales y de apoyo a la gestión, o para la ejecución de trabajos artísticos que sólo puedan encomendarse a determinadas personas naturales | H151: Prestar los servicios profesionales para la operación, prestación, seguimiento y cumplimiento de los procedimientos administrativos, operativos y programáticos del servicio social apoyo económico tipo C, que contribuyan a la garantía de los derechos de la población mayor en el marco de la política pública social para el envejecimiento y la vejez en el distrito capital a cargo de la alcaldía local. | I151: Inversión | J151: Un nuevo contrato social y ambiental para la Bogotá del Siglo XXI | K151: 3 | L151: =IF(ISERROR(VLOOKUP(K151,Proposito_programa!$C$2:$E$59,2,FALSE))," ",VLOOKUP(K151,Proposito_programa!$C$2:$E$59,2,FALSE)) -> Movilidad social integral | M151: =IF(ISERROR(VLOOKUP(K151,Proposito_programa!$C$2:$E$59,3,FALSE))," ",VLOOKUP(K151,Proposito_programa!$C$2:$E$59,3,FALSE)) -> Propósito 1: Hacer un nuevo contrato social para incrementar la inclusión social, productiva y política | N151: O23011601010000002068 | O151: 0 | P151: 1070611652 | Q151: LUIS CAMILO GOMEZ GUEVARA | R151: Persona Natural | S151: N/A | T151: N/A | U151: N/A | V151: 2022 | W151: 9315000 | AA151: 9315000 | AB151: =+X151+Y151+AA151 -> 9315000 | AC151: 2022-11-03 | AD151: 2022-11-08 | AE151: 2023-01-07 | AF151: 2 meses | AM151: Terminado | AN151: 1
A152: 141-2022 | B152: 2022 | C152: FDLM-127-2022 (79316) | D152: https://community.secop.gov.co/Public/Tendering/OpportunityDetail/Index?noticeUID=CO1.NTC.3484789&isFromPublicArea=True&isModal=False | E152: Contratos de prestación de servicios profesionales y de apoyo a la gestión | F152: Contratación directa | G152: Prestación de servicios profesionales y de apoyo a la gestión, o para la ejecución de trabajos artísticos que sólo puedan encomendarse a determinadas personas naturales | H152: Prestar los servicios profesionales para la operación, prestación, seguimiento y cumplimiento de los procedimientos administrativos, operativos y programáticos del servicio social apoyo económico tipo C, que contribuyan a la garantía de los derechos de la población mayor en el marco de la política pública social para el envejecimiento y la vejez en el distrito capital a cargo de la alcaldía local. | I152: Inversión | J152: Un nuevo contrato social y ambiental para la Bogotá del Siglo XXI | K152: 3 | L152: =IF(ISERROR(VLOOKUP(K152,Proposito_programa!$C$2:$E$59,2,FALSE))," ",VLOOKUP(K152,Proposito_programa!$C$2:$E$59,2,FALSE)) -> Movilidad social integral | M152: =IF(ISERROR(VLOOKUP(K152,Proposito_programa!$C$2:$E$59,3,FALSE))," ",VLOOKUP(K152,Proposito_programa!$C$2:$E$59,3,FALSE)) -> Propósito 1: Hacer un nuevo contrato social para incrementar la inclusión social, productiva y política | N152: O23011601010000002068 | O152: 0 | P152: 59805916 | Q152: MARCELA MARTINEZ | R152: Persona Natural | S152: N/A | T152: N/A | U152: N/A | V152: 2022 | W152: 9315000 | AA152: 9315000 | AB152: =+X152+Y152+AA152 -> 9315000 | AC152: 2022-11-03 | AD152: 2022-11-08 | AE152: 2023-01-07 | AF152: 2 meses | AM152: Terminado | AN152: 1
A153: 142-2022 | B153: 2022 | C153: FDLM-128-2022 (79708) | D153: https://community.secop.gov.co/Public/Tendering/OpportunityDetail/Index?noticeUID=CO1.NTC.3512644&isFromPublicArea=True&isModal=False | E153: Contratos de prestación de servicios profesionales y de apoyo a la gestión | F153: Contratación directa | G153: Prestación de servicios profesionales y de apoyo a la gestión, o para la ejecución de trabajos artísticos que sólo puedan encomendarse a determinadas personas naturales | H153: PRESTAR LOS SERVICIOS PROFESIONALES COMO APOYO AL ÁREA DE GESTIÓN DEL DESARROLLO, PARA EL FORTALECIMIENTO PRESUPUESTAL Y CONTABLE, EN EL CUMPLIMIENTO DEL PLAN DE DESARROLLO LOCAL VIGENTE. | I153: Inversión | J153: Un nuevo contrato social y ambiental para la Bogotá del Siglo XXI | K153: 3 | L153: =IF(ISERROR(VLOOKUP(K153,Proposito_programa!$C$2:$E$59,2,FALSE))," ",VLOOKUP(K153,Proposito_programa!$C$2:$E$59,2,FALSE)) -> Movilidad social integral | M153: =IF(ISERROR(VLOOKUP(K153,Proposito_programa!$C$2:$E$59,3,FALSE))," ",VLOOKUP(K153,Proposito_programa!$C$2:$E$59,3,FALSE)) -> Propósito 1: Hacer un nuevo contrato social para incrementar la inclusión social, productiva y política | N153: O23011605570000002099 | O153: 0 | P153: 1013603935 | Q153: CATHERINE DÍAZ LOZANO | R153: Persona Natural | S153: N/A | T153: N/A | U153: N/A | V153: 2022 | W153: 9040000 | AA153: 9040000 | AC153: 2022-11-10 | AD153: 2022-11-13 | AE153: 2023-01-14 | AF153: 2 meses | AM153: En ejecución | AN153: 0
A154: 143-2022 | B154: 2022 | C154: FDLM-129-2022 (79306) | D154: https://community.secop.gov.co/Public/Tendering/OpportunityDetail/Index?noticeUID=CO1.NTC.3518110&isFromPublicArea=True&isModal=False | E154: Contratos de prestación de servicios profesionales y de apoyo a la gestión | F154: Contratación directa | G154: Prestación de servicios profesionales y de apoyo a la gestión, o para la ejecución de trabajos artísticos que sólo puedan encomendarse a determinadas personas naturales | H154: Apoyar el cubrimiento de las actividades, cronogramas y agenda de la alcaldía local a nivel interno y externo, así como la generación de contenidos periodísticos | I154: Inversión | J154: Un nuevo contrato social y ambiental para la Bogotá del Siglo XXI | K154: 3 | L154: =IF(ISERROR(VLOOKUP(K154,Proposito_programa!$C$2:$E$59,2,FALSE))," ",VLOOKUP(K154,Proposito_programa!$C$2:$E$59,2,FALSE)) -> Movilidad social integral | M154: =IF(ISERROR(VLOOKUP(K154,Proposito_programa!$C$2:$E$59,3,FALSE))," ",VLOOKUP(K154,Proposito_programa!$C$2:$E$59,3,FALSE)) -> Propósito 1: Hacer un nuevo contrato social para incrementar la inclusión social, productiva y política | N154: O23011605570000002099 | O154: 0 | P154: 1015450203 | Q154: JUAN SEBASTIAN VITERI | R154: Persona Natural | S154: N/A | T154: N/A | U154: N/A | V154: 2022 | W154: 9100000 | AA154: 9100000 | AC154: 2022-11-10 | AD154: 2022-11-11 | AE154: 2023-01-14 | AF154: 2 meses | AM154: En ejecución | AN154: 0
A155: 144-2022 | B155: 2022 | C155: FDLM-130-2022 (79737) | D155: https://community.secop.gov.co/Public/Tendering/OpportunityDetail/Index?noticeUID=CO1.NTC.3528578&isFromPublicArea=True&isModal=False | E155: Contratos de prestación de servicios profesionales y de apoyo a la gestión | F155: Contratación directa | G155: Prestación de servicios profesionales y de apoyo a la gestión, o para la ejecución de trabajos artísticos que sólo puedan encomendarse a determinadas personas naturales | H155: PRESTACIÓN DE SERVICIOS DE APOYO A LA GESTIÓN AL ÁREA DE GESTIÓN POLICIVA Y JURÍDICA CON EL FIN DE REALIZAR LAS ACTIVIDADES PROPIAS DEL ÁREA | I155: Inversión | J155: Un nuevo contrato social y ambiental para la Bogotá del Siglo XXI | K155: 3 | L155: =IF(ISERROR(VLOOKUP(K155,Proposito_programa!$C$2:$E$59,2,FALSE))," ",VLOOKUP(K155,Proposito_programa!$C$2:$E$59,2,FALSE)) -> Movilidad social integral | M155: =IF(ISERROR(VLOOKUP(K155,Proposito_programa!$C$2:$E$59,3,FALSE))," ",VLOOKUP(K155,Proposito_programa!$C$2:$E$59,3,FALSE)) -> Propósito 1: Hacer un nuevo contrato social para incrementar la inclusión social, productiva y política | N155: O23011603450000002080 | O155: 0 | P155: 1000930688 | Q155: ALVARO DARIO GOMEZ GOMEZ | R155: Persona Natural | S155: N/A | T155: N/A | U155: N/A | V155: 2022 | W155: 6000000 | AA155: 6000000 | AC155: 2022-11-14 | AD155: 2022-11-15 | AE155: 2023-01-16 | AF155: 2 meses | AM155: En ejecución | AN155: 0
A156: 145-2022 | B156: 2022 | C156: FDLM-LP-02-2022 (77109) | D156: https://community.secop.gov.co/Public/Tendering/OpportunityDetail/Index?noticeUID=CO1.NTC.3343829&isFromPublicArea=True&isModal=False | E156: Obra pública | F156: Concurso de méritos | G156: No aplica | H156: PRESTAR LOS SERVICIOS COMO OPERADOR LOGISTICO PARA LA REALIZACIÓN DE 5 EVENTOS DE PROMOCION ARTISTICA CULTURAL EN EL DESARROLLO DEL PLAN DE DESARROLLO LOCAL VIGENTE | I156: Funcionamiento | J156: Un nuevo contrato social y ambiental para la Bogotá del Siglo XXI | K156: No aplica | L156: =IF(ISERROR(VLOOKUP(K156,Proposito_programa!$C$2:$E$59,2,FALSE))," ",VLOOKUP(K156,Proposito_programa!$C$2:$E$59,2,FALSE)) ->  | M156: =IF(ISERROR(VLOOKUP(K156,Proposito_programa!$C$2:$E$59,3,FALSE))," ",VLOOKUP(K156,Proposito_programa!$C$2:$E$59,3,FALSE)) ->  | N156: O23011601210000002070 | O156: 0 | P156: 901654401-5 | Q156: UNION TEMPORAL MARTIRES ARTISTICA Y CULTURAL | R156: Unión Temporal | S156: N/A | T156: UNION TEMPORAL MARTIRES ARTISTICA Y CULTURAL | U156: 0.3 | V156: 2022 | W156: 315334553 | AA156: 315334553 | AC156: 2022-11-15 | AD156: 2022-11-16 | AE156: 2023-04-16 | AF156: 5 meses | AM156: En ejecución | AN156: 0
A157: 146-2022 | B157: 2022 | C157: FDLM-CMA-001-2022 | D157: https://community.secop.gov.co/Public/Tendering/OpportunityDetail/Index?noticeUID=CO1.NTC.3173812&isFromPublicArea=True&isModal=False | E157: Consultoría | F157: Concurso de méritos | G157: No aplica | H157: REALIZAR LA CONSULTORIA, CUYO OBJETO ES LA INTERVENTORIA TÉCNICA, ADMINISTRATIVA, FINANCIERA, JURÍDICA, SOCIAL, AMBIENTAL Y SISO AL CONTRATO DE OBRA PUBLICA QUE TENDRÁ POR OBJETO CONTRATAR A PRECIOS UNITARIOS FIJOS POR LA MODALIDAD DE MONTO AGOTABLE, LAS OBRAS Y ACTIVIDADES PARA LA CONSERVACION DE LA MALLA VIAL, ESPACIO PUBLICO Y CICLOINFRAESTRUCTURA DE LA LOCALIDAD DE LOS MARTIRES | I157: Funcionamiento | J157: Un nuevo contrato social y ambiental para la Bogotá del Siglo XXI | K157: No aplica | L157: =IF(ISERROR(VLOOKUP(K157,Proposito_programa!$C$2:$E$59,2,FALSE))," ",VLOOKUP(K157,Proposito_programa!$C$2:$E$59,2,FALSE)) ->  | M157: =IF(ISERROR(VLOOKUP(K157,Proposito_programa!$C$2:$E$59,3,FALSE))," ",VLOOKUP(K157,Proposito_programa!$C$2:$E$59,3,FALSE)) ->  | N157: O23011604490000002097 | O157: 0 | P157: 900.241.875-6/72005623 | Q157: CONSORCIO INTERARES/NICK RANDY ALMEIDA GAMARRA | R157: Consorcio | S157: N/A | T157: CONSORCIO INTERARES/NICK RANDY ALMEIDA GAMARRA | U157: 0.3 | V157: 2022 | W157: 417421900 | AA157: 417421900 | AC157: 2022-11-08 | AD157: 2022-07-07 | AE157: 2023-07-15 | AF157: 8 meses | AM157: En ejecución | AN157: 0
A158: 147-2022 | B158: 2022 | C158: FDLM-131-2022 (79800) | D158: https://community.secop.gov.co/Public/Tendering/OpportunityDetail/Index?noticeUID=CO1.NTC.3544129&isFromPublicArea=True&isModal=False | E158: Contratos de prestación de servicios profesionales y de apoyo a la gestión | F158: Contratación directa | G158: Prestación de servicios profesionales y de apoyo a la gestión, o para la ejecución de trabajos artísticos que sólo puedan encomendarse a determinadas personas naturales | H158: PRESTAR LOS SERVICIOS DE APOYO A LA GESTIÓN TERRITORIAL PARA LA IMPLEMENTACIÓN DE ACUERDOS QUE PROMUEVAN LA CONVIVENCIA ARMÓNICA ENTRE LA CIUDADANÍA Y LOS VENDEDORES INFORMALES Y ESTACIONARIOS, ORIENTADOS A LA SOLUCIÓN DE LOS CONFLICTOS DEL ESPACIO PÚBLICO IDENTIFICADOS POR LAS ALCALDÍAS LOCALES, ASÍ COMO EL APOYO AL ÁREA DE GESTIÓN POLICIVA Y JURÍDICA DE LA ALCALDÍA LOCAL DE LOS MÁRTIRES EN TEMAS DE ESPACIO PÚBLICO EN GENERA | I158: Inversión | J158: Un nuevo contrato social y ambiental para la Bogotá del Siglo XXI | K158: 3 | L158: =IF(ISERROR(VLOOKUP(K158,Proposito_programa!$C$2:$E$59,2,FALSE))," ",VLOOKUP(K158,Proposito_programa!$C$2:$E$59,2,FALSE)) -> Movilidad social integral | M158: =IF(ISERROR(VLOOKUP(K158,Proposito_programa!$C$2:$E$59,3,FALSE))," ",VLOOKUP(K158,Proposito_programa!$C$2:$E$59,3,FALSE)) -> Propósito 1: Hacer un nuevo contrato social para incrementar la inclusión social, productiva y política | N158: O23011603450000002080 | O158: 0 | P158: 79461481 | Q158: CARLOS JULIO LOPEZ ALFONSO | R158: Persona Natural | S158: N/A | T158: N/A | U158: N/A | V158: 2022 | W158: 5130000 | AA158: 5130000 | AC158: 2022-11-18 | AD158: 2022-11-19 | AE158: 2023-01-20 | AF158: 2 meses | AM158: En ejecución | AN158: 0
A159: 148-2022 | B159: 2022 | C159: FDLM-MC-008-2022 (78771) | D159: https://community.secop.gov.co/Public/Tendering/OpportunityDetail/Index?noticeUID=CO1.NTC.3478642&isFromPublicArea=True&isModal=False | E159: Contratos de prestación de servicios | F159: Selección abreviada | G159: Selección abreviada por menor cuantía | H159: SUMINISTRO DE KITS DE ALIMENTACIÓN Y MEDICAMENTOS ESENCIALES PARA REALIZAR ATENCIÓN DE ANIMALES | I159: Inversión | J159: Un nuevo contrato social y ambiental para la Bogotá del Siglo XXI | K159: 3 | L159: =IF(ISERROR(VLOOKUP(K159,Proposito_programa!$C$2:$E$59,2,FALSE))," ",VLOOKUP(K159,Proposito_programa!$C$2:$E$59,2,FALSE)) -> Movilidad social integral | M159: =IF(ISERROR(VLOOKUP(K159,Proposito_programa!$C$2:$E$59,3,FALSE))," ",VLOOKUP(K159,Proposito_programa!$C$2:$E$59,3,FALSE)) -> Propósito 1: Hacer un nuevo contrato social para incrementar la inclusión social, productiva y política | N159: O23011602340000002085 | O159: 0 | P159: 900359095 | Q159: FUNDACION ECODES | R159: Persona Jurídica | S159: N/A | T159: N/A | U159: N/A | V159: 2022 | W159: 28000000 | AA159: 28000000 | AC159: 2022-11-18 | AD159: 2022-11-19 | AE159: 2023-03-12 | AF159: 4 meses | AM159: En ejecución | AN159: 0
A160: 149-2022 | B160: 2022 | C160: FDLM-132-2022 (80043) | D160: https://community.secop.gov.co/Public/Tendering/OpportunityDetail/Index?noticeUID=CO1.NTC.3558791&isFromPublicArea=True&isModal=False | E160: Contratos de prestación de servicios profesionales y de apoyo a la gestión | F160: Contratación directa | G160: Prestación de servicios profesionales y de apoyo a la gestión, o para la ejecución de trabajos artísticos que sólo puedan encomendarse a determinadas personas naturales | H160: PRESTACIÓN DE SERVICIOS PROFESIONALES AL FONDO DE DESARROLLO LOCAL EN EL FORTALECIMIENTO DE LAS ETAPAS DE LA GESTIÓN PUBLICA CONTRACTUAL, EN CUMPLIMIENTO DEL PLAN DE DESARROLLO LOCAL VIGENT | I160: Inversión | J160: Un nuevo contrato social y ambiental para la Bogotá del Siglo XXI | K160: 3 | L160: =IF(ISERROR(VLOOKUP(K160,Proposito_programa!$C$2:$E$59,2,FALSE))," ",VLOOKUP(K160,Proposito_programa!$C$2:$E$59,2,FALSE)) -> Movilidad social integral | M160: =IF(ISERROR(VLOOKUP(K160,Proposito_programa!$C$2:$E$59,3,FALSE))," ",VLOOKUP(K160,Proposito_programa!$C$2:$E$59,3,FALSE)) -> Propósito 1: Hacer un nuevo contrato social para incrementar la inclusión social, productiva y política | N160: O23011605570000002099 | O160: 0 | P160: 1010215026 | Q160: ANDRES FELIPE CAPERA SANCHEZ | R160: Persona Natural | S160: N/A | T160: N/A | U160: N/A | V160: 2022 | W160: 7333333 | AA160: 7333333 | AB160: =+X160+Y160+AA160 -> 7333333 | AC160: 2022-11-22 | AD160: 2022-11-23 | AE160: 2023-01-06 | AF160: 44 dias | AM160: Terminado | AN160: 1
A161: 150-2022 | B161: 2022 | C161: FDLM-133-2022 (79734 ) | D161: https://community.secop.gov.co/Public/Tendering/OpportunityDetail/Index?noticeUID=CO1.NTC.3570523&isFromPublicArea=True&isModal=False | E161: Contratos de prestación de servicios profesionales y de apoyo a la gestión | F161: Contratación directa | G161: Prestación de servicios profesionales y de apoyo a la gestión, o para la ejecución de trabajos artísticos que sólo puedan encomendarse a determinadas personas naturales | H161: EL CONTRATISTA SE OBLIGA CON EL FONDO DE DESARROLLO LOCAL DE LOS MÁRTIRES A PRESTAR SUS SERVICIOS DE APOYO A LA GESTIÓN TERRITORIAL EN LOS TEMAS DE SEGURIDAD Y CONVIVENCIA CIUDADANA; EN EL MARCO DEL PROYECTO 2083. | I161: Inversión | J161: Un nuevo contrato social y ambiental para la Bogotá del Siglo XXI | K161: 3 | L161: =IF(ISERROR(VLOOKUP(K161,Proposito_programa!$C$2:$E$59,2,FALSE))," ",VLOOKUP(K161,Proposito_programa!$C$2:$E$59,2,FALSE)) -> Movilidad social integral | M161: =IF(ISERROR(VLOOKUP(K161,Proposito_programa!$C$2:$E$59,3,FALSE))," ",VLOOKUP(K161,Proposito_programa!$C$2:$E$59,3,FALSE)) -> Propósito 1: Hacer un nuevo contrato social para incrementar la inclusión social, productiva y política | N161: O23011603430000002083 | O161: 0 | P161: 1032490091 | Q161: PAULA ANGELICA JIMENEZ TAMARA | R161: Persona Natural | S161: N/A | T161: N/A | U161: N/A | V161: 2022 | W161: 5200000 | AA161: 5200000 | AC161: 2022-11-15 | AD161: 2022-11-16 | AE161: 2023-01-15 | AF161: 2 meses | AM161: En ejecución | AN161: 0
A162: 151-2022 | B162: 2022 | C162: FDLM-134-2022 ( 79801) | D162: https://community.secop.gov.co/Public/Tendering/OpportunityDetail/Index?noticeUID=CO1.NTC.3581728&isFromPublicArea=True&isModal=False | E162: Contratos de prestación de servicios profesionales y de apoyo a la gestión | F162: Contratación directa | G162: Prestación de servicios profesionales y de apoyo a la gestión, o para la ejecución de trabajos artísticos que sólo puedan encomendarse a determinadas personas naturales | H162: PRESTAR LOS SERVICIOS DE APOYO A LA GESTIÓN TERRITORIAL PARA LA IMPLEMENTACIÓN DE ACUERDOS QUE PROMUEVAN LA CONVIVENCIA ARMÓNICA ENTRE LA CIUDADANÍA Y LOS VENDEDORES INFORMALES Y ESTACIONARIOS, ORIENTADOS A LA SOLUCIÓN DE LOS CONFLICTOS DEL ESPACIO PÚBLICO IDENTIFICADOS POR LAS ALCALDÍAS LOCALES, ASÍ COMO EL APOYO AL ÁREA DE GESTIÓN POLICIVA Y JURÍDICA DE LA ALCALDÍA LOCAL DE LOS MÁRTIRES EN TEMAS DE ESPACIO PÚBLICO EN GENERAL | I162: Inversión | J162: Un nuevo contrato social y ambiental para la Bogotá del Siglo XXI | K162: 3 | L162: =IF(ISERROR(VLOOKUP(K162,Proposito_programa!$C$2:$E$59,2,FALSE))," ",VLOOKUP(K162,Proposito_programa!$C$2:$E$59,2,FALSE)) -> Movilidad social integral | M162: =IF(ISERROR(VLOOKUP(K162,Proposito_programa!$C$2:$E$59,3,FALSE))," ",VLOOKUP(K162,Proposito_programa!$C$2:$E$59,3,FALSE)) -> Propósito 1: Hacer un nuevo contrato social para incrementar la inclusión social, productiva y política | N162: O23011603450000002080 | O162: 0 | P162: 39722169 | Q162: NANCY JANNETH LEIVA HERNANDEZ | R162: Persona Natural | S162: N/A | T162: N/A | U162: N/A | V162: 2022 | W162: 5130000 | AA162: 5130000 | AC162: 2022-11-15 | AD162: 2022-11-16 | AE162: 2023-01-15 | AF162: 2 meses | AM162: En ejecución | AN162: 0
A163: 152-2022 | B163: 2022 | C163: FDLM-135-2022 ( 79733) | D163: https://community.secop.gov.co/Public/Tendering/OpportunityDetail/Index?noticeUID=CO1.NTC.3582107&isFromPublicArea=True&isModal=False | E163: Contratos de prestación de servicios profesionales y de apoyo a la gestión | F163: Contratación directa | G163: Prestación de servicios profesionales y de apoyo a la gestión, o para la ejecución de trabajos artísticos que sólo puedan encomendarse a determinadas personas naturales | H163: EL CONTRATISTA SE OBLIGA CON EL FONDO DE DESARROLLO LOCAL DE LOS MÁRTIRES A PRESTAR SUS SERVICIOS DE APOYO A LA GESTIÓN TERRITORIAL EN LOS TEMAS DE SEGURIDAD Y CONVIVENCIA CIUDADANA; EN EL MARCO DEL PROYECTO 2083 | I163: Inversión | J163: Un nuevo contrato social y ambiental para la Bogotá del Siglo XXI | K163: 3 | L163: =IF(ISERROR(VLOOKUP(K163,Proposito_programa!$C$2:$E$59,2,FALSE))," ",VLOOKUP(K163,Proposito_programa!$C$2:$E$59,2,FALSE)) -> Movilidad social integral | M163: =IF(ISERROR(VLOOKUP(K163,Proposito_programa!$C$2:$E$59,3,FALSE))," ",VLOOKUP(K163,Proposito_programa!$C$2:$E$59,3,FALSE)) -> Propósito 1: Hacer un nuevo contrato social para incrementar la inclusión social, productiva y política | N163: O23011603430000002083 | O163: 0 | P163: 1013634077 | Q163: MICHAEL ALEXANDER MEDRANO NAVARRETE | R163: Persona Natural | S163: N/A | T163: N/A | U163: N/A | V163: 2022 | W163: 5200000 | AA163: 5200000 | AC163: 2022-11-15 | AD163: 2022-11-16 | AE163: 2023-01-15 | AF163: 2 meses | AM163: En ejecución | AN163: 0
A164: 153-2022 | B164: 2022 | C164: FDLM-136-2022 ( 79732) | D164: https://community.secop.gov.co/Public/Tendering/OpportunityDetail/Index?noticeUID=CO1.NTC.3594311&isFromPublicArea=True&isModal=False | E164: Contratos de prestación de servicios profesionales y de apoyo a la gestión | F164: Contratación directa | G164: Prestación de servicios profesionales y de apoyo a la gestión, o para la ejecución de trabajos artísticos que sólo puedan encomendarse a determinadas personas naturales | H164: PRESTAR SUS SERVICIOS DE APOYO A LA GESTIÓN TERRITORIAL EN LOS TEMAS DE SEGURIDAD Y CONVIVENCIA CIUDADANA; EN EL MARCO DEL PROYECTO 2083 | I164: Inversión | J164: Un nuevo contrato social y ambiental para la Bogotá del Siglo XXI | K164: 3 | L164: =IF(ISERROR(VLOOKUP(K164,Proposito_programa!$C$2:$E$59,2,FALSE))," ",VLOOKUP(K164,Proposito_programa!$C$2:$E$59,2,FALSE)) -> Movilidad social integral | M164: =IF(ISERROR(VLOOKUP(K164,Proposito_programa!$C$2:$E$59,3,FALSE))," ",VLOOKUP(K164,Proposito_programa!$C$2:$E$59,3,FALSE)) -> Propósito 1: Hacer un nuevo contrato social para incrementar la inclusión social, productiva y política | N164: O23011603430000002083 | O164: 0 | P164: 1023921919 | Q164: JOSE VICENTE SANCHEZ DOMINGUEZ | R164: Persona Natural | S164: N/A | T164: N/A | U164: N/A | V164: 2022 | W164: 5200000 | AA164: 5200000 | AC164: 2022-11-15 | AD164: 2022-11-16 | AE164: 2023-01-15 | AF164: 2 meses | AM164: En ejecución | AN164: 0
A165: 154-2022 | B165: 2022 | C165: FDLM-137-2022 ( 80129) | D165: https://community.secop.gov.co/Public/Tendering/OpportunityDetail/Index?noticeUID=CO1.NTC.3598704&isFromPublicArea=True&isModal=False | E165: Contratos de prestación de servicios profesionales y de apoyo a la gestión | F165: Contratación directa | G165: Prestación de servicios profesionales y de apoyo a la gestión, o para la ejecución de trabajos artísticos que sólo puedan encomendarse a determinadas personas naturales | H165: PRESTAR LOS SERVICIOS PROFESIONALES COMO ADMINISTRADOR DE RED BRINDANDO ASISTENCIA Y SOPORTE TÉCNICO DE LA INFRAESTRUCTURA TECNOLÓGICA (SOFTWARE Y HARDWARE DE LOS EQUIPOS TECNOLÓGICOS QUE MANEJA LA ENTIDAD), ASÍ COMO A LOS USUARIOS QUE DESARROLLEN SUS ACTIVIDADES EN TODAS LAS ÁREAS DE LA ALCALDÍA LOCAL Y JUNTA ADMINISTRADORA LOCAL | I165: Inversión | J165: Un nuevo contrato social y ambiental para la Bogotá del Siglo XXI | K165: 3 | L165: =IF(ISERROR(VLOOKUP(K165,Proposito_programa!$C$2:$E$59,2,FALSE))," ",VLOOKUP(K165,Proposito_programa!$C$2:$E$59,2,FALSE)) -> Movilidad social integral | M165: =IF(ISERROR(VLOOKUP(K165,Proposito_programa!$C$2:$E$59,3,FALSE))," ",VLOOKUP(K165,Proposito_programa!$C$2:$E$59,3,FALSE)) -> Propósito 1: Hacer un nuevo contrato social para incrementar la inclusión social, productiva y política | N165: O23011605570000002099 | O165: 0 | P165: 80166441 | Q165: LUIS MIGUEL LOPEZ RODRIGUEZ | R165: Persona Natural | S165: N/A | T165: N/A | U165: N/A | V165: 2022 | W165: 5000000 | AA165: 5000000 | AC165: 2022-11-15 | AD165: 2022-11-16 | AE165: 2023-01-15 | AF165: 1 mes | AM165: En ejecución | AN165: 0
A166: 155-2022 | B166: 2022 | C166: FDLM-138-2022 (79803) | D166: https://community.secop.gov.co/Public/Tendering/OpportunityDetail/Index?noticeUID=CO1.NTC.3606556&isFromPublicArea=True&isModal=False | E166: Contratos de prestación de servicios profesionales y de apoyo a la gestión | F166: Contratación directa | G166: Prestación de servicios profesionales y de apoyo a la gestión, o para la ejecución de trabajos artísticos que sólo puedan encomendarse a determinadas personas naturales | H166: EL CONTRATISTA SE OBLIGA CON EL FONDO DE DESARROLLO LOCAL DE LOS MÁRTIRES A PRESTAR SUS SERVICIOS DE APOYO TERRITORIAL PARA LA IMPLEMENTACIÓN DE ACUERDOS QUE PROMUEVAN LA CONVIVENCIA ARMÓNICA ENTRE LA CIUDADANÍA Y LOS VENDEDORES INFORMALES Y ESTACIONARIOS, ORIENTADOS A LA SOLUCIÓN DE LOS CONFLICTOS DEL ESPACIO PÚBLICO IDENTIFICADOS POR LAS ALCALDÍAS LOCALES, ASÍ COMO EL APOYO AL ÁREA DE GESTIÓN POLICIVA Y JURÍDICA DE LA ALCALDÍA LOCAL DE LOS MÁRTIRES EN TEMAS DE ESPACIO PÚBLICO EN GENERAL." | I166: Inversión | J166: Un nuevo contrato social y ambiental para la Bogotá del Siglo XXI | K166: 3 | L166: =IF(ISERROR(VLOOKUP(K166,Proposito_programa!$C$2:$E$59,2,FALSE))," ",VLOOKUP(K166,Proposito_programa!$C$2:$E$59,2,FALSE)) -> Movilidad social integral | M166: =IF(ISERROR(VLOOKUP(K166,Proposito_programa!$C$2:$E$59,3,FALSE))," ",VLOOKUP(K166,Proposito_programa!$C$2:$E$59,3,FALSE)) -> Propósito 1: Hacer un nuevo contrato social para incrementar la inclusión social, productiva y política | N166: O23011603450000002080 | O166: 0 | P166: 80163928 | Q166: OSCAR MAURICIO LOPEZ MARROQUIN | R166: Persona Natural | S166: N/A | T166: N/A | U166: N/A | V166: 2022 | W166: 5130000 | AA166: 5130000 | AC166: 2022-11-15 | AD166: 2022-11-16 | AE166: 2023-01-15 | AF166: 2 meses | AM166: En ejecución | AN166: 0
A167: 156-2022 | B167: 2022 | C167: FDLM-SASI-004-2022 (78531) | D167: https://community.secop.gov.co/Public/Tendering/OpportunityDetail/Index?noticeUID=CO1.NTC.3444407&isFromPublicArea=True&isModal=False | E167: Arrendamiento de bienes inmuebles | F167: Selección abreviada | G167: Subasta inversa | H167: ADQUISICIÓN DE ELEMENTOS PARA DOTACIÓN DE 6 SEDES EDUCATIVAS DE LA LOCALIDAD DE LOS MÁRTIRES, DE CONFORMIDAD CON LA ESPECIFICACIONES Y CANTIDADES ESTABLECIDAS EN LAS FICHAS TÉCNICO | I167: Funcionamiento | J167: Un nuevo contrato social y ambiental para la Bogotá del Siglo XXI | K167: No aplica | L167: =IF(ISERROR(VLOOKUP(K167,Proposito_programa!$C$2:$E$59,2,FALSE))," ",VLOOKUP(K167,Proposito_programa!$C$2:$E$59,2,FALSE)) ->  | M167: =IF(ISERROR(VLOOKUP(K167,Proposito_programa!$C$2:$E$59,3,FALSE))," ",VLOOKUP(K167,Proposito_programa!$C$2:$E$59,3,FALSE)) ->  | N167: O23011601140000002052 | O167: 0 | P167: 830005066 | Q167: SECURITY VIDEO EQUIPMENT S.A.S. | R167: Persona Jurídica | S167: N/A | T167: N/A | U167: N/A | V167: 2022 | W167: 502419000 | AA167: 502419000 | AC167: 2022-10-03 | AD167: 2022-10-04 | AE167: 2022-04-06 | AF167: 4 meses | AM167: En ejecución | AN167: 0
A168: 157-2022 | B168: 2022 | C168: FDLM-SASI-003-2022 (78536) | D168: https://community.secop.gov.co/Public/Tendering/OpportunityDetail/Index?noticeUID=CO1.NTC.3444407&isFromPublicArea=True&isModal=False | E168: Arrendamiento de bienes inmuebles | F168: Selección abreviada | G168: Subasta inversa | H168: ADQUISICIÓN DE ELEMENTOS PARA LA DOTACIÓN LÚDICA, PEDAGÓGICA Y TECNOLÓGICA DE JARDINES INFANTILES Y CENTROS AMAR DE LA LOCALIDAD DE LOS MÁRTIRES, DE CONFORMIDAD CON LAS ESPECIFICACIONES Y CANTIDADES ESTABLECIDAS EN LAS FICHAS TÉCNICAS | I168: Funcionamiento | J168: Un nuevo contrato social y ambiental para la Bogotá del Siglo XXI | K168: No aplica | L168: =IF(ISERROR(VLOOKUP(K168,Proposito_programa!$C$2:$E$59,2,FALSE))," ",VLOOKUP(K168,Proposito_programa!$C$2:$E$59,2,FALSE)) ->  | M168: =IF(ISERROR(VLOOKUP(K168,Proposito_programa!$C$2:$E$59,3,FALSE))," ",VLOOKUP(K168,Proposito_programa!$C$2:$E$59,3,FALSE)) ->  | N168: O23011601060000002065 | O168: 0 | P168: 900916649-6. | Q168: CI WARRIORS COMPANY SAS | R168: Persona Jurídica | S168: N/A | T168: N/A | U168: N/A | V168: 2022 | W168: 392701305 | AA168: 392701305 | AC168: 2022-10-02 | AD168: 2022-10-03 | AE168: 2022-04-06 | AF168: 4 meses | AM168: En ejecución | AN168: 0
A169: 158-2022 | B169: 2022 | C169: FDLM-139-2022 (81257) | D169: https://community.secop.gov.co/Public/Tendering/OpportunityDetail/Index?noticeUID=CO1.NTC.3626919&isFromPublicArea=True&isModal=False | E169: Contratos de prestación de servicios profesionales y de apoyo a la gestión | F169: Contratación directa | G169: Prestación de servicios profesionales y de apoyo a la gestión, o para la ejecución de trabajos artísticos que sólo puedan encomendarse a determinadas personas naturales | H169: PRESTAR LOS SERVICIOS PROFESIONALES PARA LA FORMULACIÓN PRE CONTRACTUAL PARTICIPATIVA, APOYO A LA SUPERVISIÓN, SEGUIMIENTO, ACOMPAÑAMIENTO, ATENCIÓN Y EVALUACIÓN DE LOS PROYECTOS E INSTANCIAS DE ARTICULACIÓN INTERINSTITUCIONAL Y PARTICIPACIÓN LOCAL QUE SE REQUIERAN EN EL PROYECTO 2077 TERRITORIOS DIVERSOS Y LIBRES DE VIOLENCIA | I169: Inversión | J169: Un nuevo contrato social y ambiental para la Bogotá del Siglo XXI | K169: 3 | L169: =IF(ISERROR(VLOOKUP(K169,Proposito_programa!$C$2:$E$59,2,FALSE))," ",VLOOKUP(K169,Proposito_programa!$C$2:$E$59,2,FALSE)) -> Movilidad social integral | M169: =IF(ISERROR(VLOOKUP(K169,Proposito_programa!$C$2:$E$59,3,FALSE))," ",VLOOKUP(K169,Proposito_programa!$C$2:$E$59,3,FALSE)) -> Propósito 1: Hacer un nuevo contrato social para incrementar la inclusión social, productiva y política | N169: O23011601060000002077 | O169: 0 | P169: 1032383222 | Q169: JESUS MAURICIO ROA OME | R169: Persona Natural | S169: N/A | T169: N/A | U169: N/A | V169: 2022 | W169: 5100000 | AA169: 5100000 | AC169: 2022-12-07 | AD169: 2022-12-08 | AE169: 2023-01-11 | AF169: 1 mes | AM169: En ejecución | AN169: 0
A170: 159-2022 | B170: 2022 | C170: FDLM-140-2022 (81021) | D170: https://community.secop.gov.co/Public/Tendering/OpportunityDetail/Index?noticeUID=CO1.NTC.3628845&isFromPublicArea=True&isModal=False | E170: Contratos de prestación de servicios profesionales y de apoyo a la gestión | F170: Contratación directa | G170: Prestación de servicios profesionales y de apoyo a la gestión, o para la ejecución de trabajos artísticos que sólo puedan encomendarse a determinadas personas naturales | H170: APOYAR LAS COMUNICACIONES DE LA ALCALDÍA LOCAL EN LA REALIZACIÓN DE PRODUCTOS Y PIEZAS DIGITALES, PUBLICITARIAS, EDICION Y ANIMACION GRAFICA EN SUS DIFERENTES FORMATOS, ASÍ COMO APOYAR LA PRODUCCIÓN Y MONTAJE DE EVENTOS DE CONFORMIDAD A LA NECESIDADES DEL FONDO DE DESARROLLO LOCAL | I170: Inversión | J170: Un nuevo contrato social y ambiental para la Bogotá del Siglo XXI | K170: 3 | L170: =IF(ISERROR(VLOOKUP(K170,Proposito_programa!$C$2:$E$59,2,FALSE))," ",VLOOKUP(K170,Proposito_programa!$C$2:$E$59,2,FALSE)) -> Movilidad social integral | M170: =IF(ISERROR(VLOOKUP(K170,Proposito_programa!$C$2:$E$59,3,FALSE))," ",VLOOKUP(K170,Proposito_programa!$C$2:$E$59,3,FALSE)) -> Propósito 1: Hacer un nuevo contrato social para incrementar la inclusión social, productiva y política | N170: O23011605570000002099 | O170: 0 | P170: 1118292807 | Q170: ANDRES MAURICIO ROMERO CASTILLO | R170: Persona Natural | S170: N/A | T170: N/A | U170: N/A | V170: 2022 | W170: 3198000 | AA170: 3198000 | AC170: 2022-12-16 | AD170: 2022-12-21 | AE170: 2022-12-20 | AF170: 1 mes | AM170: En ejecución | AN170: 0
A171: 160-2022 | B171: 2022 | C171: FDLM-141-2022 (80548) | D171: https://community.secop.gov.co/Public/Tendering/OpportunityDetail/Index?noticeUID=CO1.NTC.3636143&isFromPublicArea=True&isModal=False | E171: Contratos de prestación de servicios profesionales y de apoyo a la gestión | F171: Contratación directa | G171: Prestación de servicios profesionales y de apoyo a la gestión, o para la ejecución de trabajos artísticos que sólo puedan encomendarse a determinadas personas naturales | H171: PRESTACION DE SERVICIOS PROFESIONALES AL FONDO DE DESARROLLO LOCAL EN EL FORTALECIMIENTO DE LAS ETAPAS DE LA GESTION PUBLICA CONTRACTUAL, EN CUMPLIMIENTO DEL PLAN DE DESARROLLO LOCAL VIGENTE | I171: Inversión | J171: Un nuevo contrato social y ambiental para la Bogotá del Siglo XXI | K171: 3 | L171: =IF(ISERROR(VLOOKUP(K171,Proposito_programa!$C$2:$E$59,2,FALSE))," ",VLOOKUP(K171,Proposito_programa!$C$2:$E$59,2,FALSE)) -> Movilidad social integral | M171: =IF(ISERROR(VLOOKUP(K171,Proposito_programa!$C$2:$E$59,3,FALSE))," ",VLOOKUP(K171,Proposito_programa!$C$2:$E$59,3,FALSE)) -> Propósito 1: Hacer un nuevo contrato social para incrementar la inclusión social, productiva y política | N171: O23011605570000002099 | O171: 0 | P171: 1010188451 | Q171: KARENT ELIANA GUTIERREZ VARON | R171: Persona Natural | S171: N/A | T171: N/A | U171: N/A | V171: 2022 | W171: 5833333 | AA171: =+W171+X171+Z171 -> 5833333 | AC171: 2022-12-16 | AD171: 2022-12-17 | AE171: 2022-12-20 | AF171: 1 mes | AM171: En ejecución | AN171: 0
A172: 161-2022 | B172: 2022 | C172: FDLM-SAMC-005-2022 (79487) | D172: https://community.secop.gov.co/Public/Tendering/OpportunityDetail/Index?noticeUID=CO1.NTC.3559063&isFromPublicArea=True&isModal=False | E172: Contratos de prestación de servicios | F172: Selección abreviada | G172: Selección abreviada por menor cuantía | H172: PRESTAR LOS SERVICIOS EN LA FORMACIÓN Y VINCULACIÓN A PROCESOS DE CONSTRUCCIÓN DE MEMORIA, VERDAD, REPARACIÓN INTEGRAL A VÍCTIMAS, PAZ Y RECONCILIACIÓN, EN CUMPLIMIENTO DEL PLAN DE DESARROLLO LOCAL VIGENTE DE LA LOCALIDAD DE LOS MÁRTIRES | I172: Inversión | J172: Un nuevo contrato social y ambiental para la Bogotá del Siglo XXI | K172: 3 | L172: =IF(ISERROR(VLOOKUP(K172,Proposito_programa!$C$2:$E$59,2,FALSE))," ",VLOOKUP(K172,Proposito_programa!$C$2:$E$59,2,FALSE)) -> Movilidad social integral | M172: =IF(ISERROR(VLOOKUP(K172,Proposito_programa!$C$2:$E$59,3,FALSE))," ",VLOOKUP(K172,Proposito_programa!$C$2:$E$59,3,FALSE)) -> Propósito 1: Hacer un nuevo contrato social para incrementar la inclusión social, productiva y política | N172: O23011603390000002042 | O172: 0 | P172: 79867234-5 | Q172: CARLOS ALBERTO PINZÓN MOLINA | R172: Persona Natural | S172: N/A | T172: N/A | U172: N/A | V172: 2022 | W172: 130767276 | AA172: 130767276 | AC172: 2022-11-01 | AD172: 2022-11-02 | AE172: 2023-03-15 | AF172: 3 meses | AM172: En ejecución | AN172: 0
A173: 162-2022 | B173: 2022 | C173: FDLM-SAMC-007-2022 (79905) | D173: https://community.secop.gov.co/Public/Tendering/OpportunityDetail/Index?noticeUID=CO1.NTC.3588924&isFromPublicArea=True&isModal=False | E173: Contratos de prestación de servicios | F173: Selección abreviada | G173: Selección abreviada por menor cuantía | H173: PRESTAR LOS SERVICIOS PARA IMPLEMENTAR LAS "ESTRATEGIAS DEL CUIDADO" EN LA LOCALIDAD DE LOS MÁRTIRES EN EL MARCO DEL PROYECTO 2065 MÁRTIRES CUIDADORA, VINCULANDO A 205 CUIDADORAS | I173: Inversión | J173: Un nuevo contrato social y ambiental para la Bogotá del Siglo XXI | K173: 3 | L173: =IF(ISERROR(VLOOKUP(K173,Proposito_programa!$C$2:$E$59,2,FALSE))," ",VLOOKUP(K173,Proposito_programa!$C$2:$E$59,2,FALSE)) -> Movilidad social integral | M173: =IF(ISERROR(VLOOKUP(K173,Proposito_programa!$C$2:$E$59,3,FALSE))," ",VLOOKUP(K173,Proposito_programa!$C$2:$E$59,3,FALSE)) -> Propósito 1: Hacer un nuevo contrato social para incrementar la inclusión social, productiva y política | N173: O23011601060000002065 | O173: 0 | P173: 800131690 | Q173: AVANCE ORGANIZACIONAL CONSULTORES S.A.S. BIC | R173: Persona Jurídica | S173: N/A | T173: N/A | U173: N/A | V173: 2022 | W173: 211123254 | AA173: 211123254 | AC173: 2022-11-24 | AD173: 2022-11-25 | AE173: 2023-04-18 | AF173: 4 meses | AM173: En ejecución | AN173: 0
A174: 163-2022 | B174: 2022 | C174: FDLM-SAMC-008-2022 (79742) | D174: https://community.secop.gov.co/Public/Tendering/OpportunityDetail/Index?noticeUID=CO1.NTC.3568207&isFromPublicArea=True&isModal=False | E174: Contratos de prestación de servicios | F174: Selección abreviada | G174: Selección abreviada por menor cuantía | H174: CONTRATAR A SISTEMA MONTO AGOTABLE CON PRECIOS UNITARIOS FIJOS LA INTERVENCION Y/O ADECACION DE 4 SALONES COMUNALES DE LA LOCALIDAD DE LOS MARTIRES EN EL CUMPLIMIENTO DEL PLAN DE DESARROLLO LOCAL VIGENTE | I174: Inversión | J174: Un nuevo contrato social y ambiental para la Bogotá del Siglo XXI | K174: 3 | L174: =IF(ISERROR(VLOOKUP(K174,Proposito_programa!$C$2:$E$59,2,FALSE))," ",VLOOKUP(K174,Proposito_programa!$C$2:$E$59,2,FALSE)) -> Movilidad social integral | M174: =IF(ISERROR(VLOOKUP(K174,Proposito_programa!$C$2:$E$59,3,FALSE))," ",VLOOKUP(K174,Proposito_programa!$C$2:$E$59,3,FALSE)) -> Propósito 1: Hacer un nuevo contrato social para incrementar la inclusión social, productiva y política | N174: O2-30-11-605-55000000-2096 | O174: 0 | P174: 900.557.017-0 | Q174: DICOIN INGENIEROS S.A.S | R174: Persona Jurídica | S174: N/A | T174: N/A | U174: N/A | V174: 2022 | W174: 261258000 | AA174: 261258000 | AC174: 2022-11-02 | AD174: 2022-11-19 | AE174: 2023-03-18 | AF174: 3 meses | AM174: En ejecución | AN174: =IF(ISERROR(AB174/AA174),"-",(AB174/AA174)) -> 0
A175: 164-2022 | B175: 2022 | C175: FDLM-SAMC-010-2022 (79795) | D175: https://community.secop.gov.co/Public/Tendering/OpportunityDetail/Index?noticeUID=CO1.NTC.3595018&isFromPublicArea=True&isModal=False | E175: Contratos de prestación de servicios | F175: Selección abreviada | G175: Selección abreviada por menor cuantía | H175: PRESTAR LOS SERVICIOS DE FORMACIÓN EN ACCIONES QUE PROMUEVAN DE CAMBIOS EN CULTURA CIUDADANA EN SEPARACIÓN EN LA FUENTE Y RECICLAJE, EN LA LOCALIDAD DE LOS MÁRTIRES | I175: Inversión | J175: Un nuevo contrato social y ambiental para la Bogotá del Siglo XXI | K175: 3 | L175: =IF(ISERROR(VLOOKUP(K175,Proposito_programa!$C$2:$E$59,2,FALSE))," ",VLOOKUP(K175,Proposito_programa!$C$2:$E$59,2,FALSE)) -> Movilidad social integral | M175: =IF(ISERROR(VLOOKUP(K175,Proposito_programa!$C$2:$E$59,3,FALSE))," ",VLOOKUP(K175,Proposito_programa!$C$2:$E$59,3,FALSE)) -> Propósito 1: Hacer un nuevo contrato social para incrementar la inclusión social, productiva y política | N175: O2-30-11-605-55000000-2096 | O175: 0 | P175: 900018217 | Q175: FUNDACIÓN OTRO ROLLO SOCIAL | R175: Persona Jurídica | S175: N/A | T175: N/A | U175: N/A | V175: 2022 | W175: 230716194 | AA175: 230716194 | AC175: 2022-12-21 | AD175: 2022-12-22 | AE175: 2023-06-25 | AF175: 6 Meses | AM175: En ejecución | AN175: 0
A176: 165-2022 | B176: 2022 | C176: FDLM-142-2022 (81259) | D176: https://community.secop.gov.co/Public/Tendering/ContractNoticePhases/View?PPI=CO1.PPI.22224195&isFromPublicArea=True&isModal=False | E176: Contratos de prestación de servicios profesionales y de apoyo a la gestión | F176: Contratación directa | G176: Prestación de servicios profesionales y de apoyo a la gestión, o para la ejecución de trabajos artísticos que sólo puedan encomendarse a determinadas personas naturales | H176: PRESTAR SUS SERVICIOS COMO PERSONAL DE APOYO EN LA CONDUCCIÓN DEL VEHÍCULO DE PROPIEDAD DEL FONDO DE DESARROLLO LOCAL DE LOS MÁRTIRES, ASIGNADO A DESPACHO. | I176: Inversión | J176: Un nuevo contrato social y ambiental para la Bogotá del Siglo XXI | K176: 3 | L176: =IF(ISERROR(VLOOKUP(K176,Proposito_programa!$C$2:$E$59,2,FALSE))," ",VLOOKUP(K176,Proposito_programa!$C$2:$E$59,2,FALSE)) -> Movilidad social integral | M176: =IF(ISERROR(VLOOKUP(K176,Proposito_programa!$C$2:$E$59,3,FALSE))," ",VLOOKUP(K176,Proposito_programa!$C$2:$E$59,3,FALSE)) -> Propósito 1: Hacer un nuevo contrato social para incrementar la inclusión social, productiva y política | N176: O2-73-01-1605570000002099 | O176: 0 | P176: 9140998 | Q176: JHONY ENRIQUE RAMOS ALVAREZ | R176: Persona Natural | S176: N/A | T176: N/A | U176: N/A | V176: 2022 | W176: 3190000 | AA176: 3190000 | AC176: 2022-12-26 | AD176: 2022-12-27 | AE176: PEN | AF176: 1 mes | AM176: En ejecución | AN176: 0
A177: 166-2022 | B177: 2022 | C177: FDLM-143-2022 ( 82637 ) | D177: https://community.secop.gov.co/Public/Tendering/OpportunityDetail/Index?noticeUID=CO1.NTC.3670616&isFromPublicArea=True&isModal=False | E177: Contratos de prestación de servicios profesionales y de apoyo a la gestión | F177: Contratación directa | G177: Prestación de servicios profesionales y de apoyo a la gestión, o para la ejecución de trabajos artísticos que sólo puedan encomendarse a determinadas personas naturales | H177: PRESTAR SUS SERVICIOS PROFESIONALES PARA FORTALECER TÉCNICAMENTE EL ÁREA DE GESTIÓN DEL DESARROLLO LOCAL DE LA LOCALIDAD DE LOS MÁRTIRES, EN CUMPLIMIENTO DEL PLAN DE DESARROLLO LOCAL VIGENTE | I177: Inversión | J177: Un nuevo contrato social y ambiental para la Bogotá del Siglo XXI | K177: 3 | L177: =IF(ISERROR(VLOOKUP(K177,Proposito_programa!$C$2:$E$59,2,FALSE))," ",VLOOKUP(K177,Proposito_programa!$C$2:$E$59,2,FALSE)) -> Movilidad social integral | M177: =IF(ISERROR(VLOOKUP(K177,Proposito_programa!$C$2:$E$59,3,FALSE))," ",VLOOKUP(K177,Proposito_programa!$C$2:$E$59,3,FALSE)) -> Propósito 1: Hacer un nuevo contrato social para incrementar la inclusión social, productiva y política | N177: O2-73-01-1605570000002099 | O177: 0 | P177: 942661897 | Q177: OSVALDO EMILIO MARIN MORA | R177: Persona Natural | S177: N/A | T177: N/A | U177: N/A | V177: 2022 | W177: 7744500 | AA177: 7744500 | AC177: 2022-12-28 | AD177: 29/12/222 | AE177: PEN | AF177: 95 dias | AM177: En ejecución | AN177: 0
A178: 167-2022 | B178: 2022 | C178: FDLM-CMA-003-2022 (79740) | D178: https://community.secop.gov.co/Public/Tendering/OpportunityDetail/Index?noticeUID=CO1.NTC.3614565&isFromPublicArea=True&isModal=False | E178: Consultoría | F178: Concurso de méritos | G178: No aplica | H178: Realizar los estudios y diseños de la malla vial de la localidad de los Mártires", en adelante el "Contrato" | I178: Funcionamiento | J178: Un nuevo contrato social y ambiental para la Bogotá del Siglo XXI | K178: No aplica | L178: =IF(ISERROR(VLOOKUP(K178,Proposito_programa!$C$2:$E$59,2,FALSE))," ",VLOOKUP(K178,Proposito_programa!$C$2:$E$59,2,FALSE)) ->  | M178: =IF(ISERROR(VLOOKUP(K178,Proposito_programa!$C$2:$E$59,3,FALSE))," ",VLOOKUP(K178,Proposito_programa!$C$2:$E$59,3,FALSE)) ->  | N178: 00-00-00-2097 | O178: 0 | P178: 822006689 | Q178: CONSORCIO DISEÑOS VIALES MARTIRES | R178: Consorcio | S178: N/A | T178: CONSORCIO DISEÑOS VIALES MARTIRES | U178: 0.3 | V178: 2022 | W178: 877120339 | AA178: 877120339 | AC178: 2022-12-28 | AD178: 29/12/222 | AE178: PEN | AF178: PEN | AM178: En ejecución | AN178: 0
A179: 168-2022 | B179: 2022 | C179: FDLM-144-2022 ( 80287 ) | D179: https://community.secop.gov.co/Public/Tendering/OpportunityDetail/Index?noticeUID=CO1.NTC.3675843&isFromPublicArea=True&isModal=False | E179: Contratos de prestación de servicios profesionales y de apoyo a la gestión | F179: Contratación directa | G179: Prestación de servicios profesionales y de apoyo a la gestión, o para la ejecución de trabajos artísticos que sólo puedan encomendarse a determinadas personas naturales | H179: APOYAR JURIDICAMENTE AL FONDO DE DESARROLLO LOCAL DE LOS MARTIRES EN LA IMPLEMENTACION DE ACUERDOS, PLANES Y PROGRAMAS QUE PROMUEVAN LA CONVIVENCIA ARMÓNICA ENTRE LA CIUDADANÍA Y LOS VENDEDORES INFORMALES Y ESTACIONARIOS, ORIENTADOS A LA SOLUCIÓN DE LOS CONFLICTOS DEL ESPACIO PÚBLICO IDENTIFICADOS POR LAS ALCALDÍAS LOCALES, ASI COMO LAS DEMAS ACCIONES REQUERIDAS QUE PERMITAN GARANTIZAR EL CUMPLIMIENTO DE LAS METAS ESTABLECIDAS EN EL PLAN DE DESARROLLO LOCAL VIGENTE." | I179: Inversión | J179: Un nuevo contrato social y ambiental para la Bogotá del Siglo XXI | K179: 3 | L179: =IF(ISERROR(VLOOKUP(K179,Proposito_programa!$C$2:$E$59,2,FALSE))," ",VLOOKUP(K179,Proposito_programa!$C$2:$E$59,2,FALSE)) -> Movilidad social integral | M179: =IF(ISERROR(VLOOKUP(K179,Proposito_programa!$C$2:$E$59,3,FALSE))," ",VLOOKUP(K179,Proposito_programa!$C$2:$E$59,3,FALSE)) -> Propósito 1: Hacer un nuevo contrato social para incrementar la inclusión social, productiva y política | N179: O2-73-01-1605570000002099 | O179: 0 | P179: 14326392 | Q179: RAFAEL EDUARDO PEREZ ENCISO | R179: Persona Natural | S179: N/A | T179: N/A | U179: N/A | V179: 2022 | W179: 6018666 | AA179: 6018666 | AC179: 2022-12-28 | AD179: 29/12/222 | AE179: PEN | AF179: PEN | AM179: En ejecución | AN179: 0
A180: 169-2022 | B180: 2022 | C180: FDLM-SAMC-009-2022 (79818) | D180: https://community.secop.gov.co/Public/Tendering/OpportunityDetail/Index?noticeUID=CO1.NTC.3629464&isFromPublicArea=True&isModal=False | E180: Contratos de prestación de servicios | F180: Selección abreviada | G180: Selección abreviada por menor cuantía | H180: Contratar los servicios para la realización, coordinación y ejecución de los eventos recreo deportivos y juegos de la localidad de los mártires en el marco del proyecto 2075 recreación y deporte para una vida más sana, según anexo técnico y demás documentos que hacen parte integral del presente proceso | I180: Inversión | J180: Un nuevo contrato social y ambiental para la Bogotá del Siglo XXI | K180: 3 | L180: =IF(ISERROR(VLOOKUP(K180,Proposito_programa!$C$2:$E$59,2,FALSE))," ",VLOOKUP(K180,Proposito_programa!$C$2:$E$59,2,FALSE)) -> Movilidad social integral | M180: =IF(ISERROR(VLOOKUP(K180,Proposito_programa!$C$2:$E$59,3,FALSE))," ",VLOOKUP(K180,Proposito_programa!$C$2:$E$59,3,FALSE)) -> Propósito 1: Hacer un nuevo contrato social para incrementar la inclusión social, productiva y política | N180: O2-73-01-1605570000002099 | O180: 0 | P180: 830089058 | Q180: FUNDACIÓN DE CIENCIAS Y TECNOLOGÍA GLOBAL | R180: Persona Jurídica | S180: N/A | T180: N/A | U180: N/A | V180: 2022 | W180: 258189030 | AA180: 258189030 | AC180: 2022-12-28 | AD180: 29/12/222 | AE180: PEN | AF180: PEN | AM180: En ejecución | AN180: 0
A181: 170-2022 | B181: 2022 | C181: FDLM-SAMC-006-2022 (79084) | D181: https://community.secop.gov.co/Public/Tendering/OpportunityDetail/Index?noticeUID=CO1.NTC.3613043&isFromPublicArea=True&isModal=False | E181: Contratos de prestación de servicios | F181: Selección abreviada | G181: Selección abreviada por menor cuantía | H181: CONTRATAR A PRECIOS UNITARIOS FIJOS POR LA MODALIDAD DE MONTO AGOTABLE EL SUMINISTRO DE DOTACIÓN LOGÍSTICA Y DE EQUIPOS ESPECIALES DE PROTECCIÓN A ORGANISMOS DE SEGURIDAD DE LA LOCALIDAD DE LOS MÁRTIRE | I181: Inversión | J181: Un nuevo contrato social y ambiental para la Bogotá del Siglo XXI | K181: 3 | L181: =IF(ISERROR(VLOOKUP(K181,Proposito_programa!$C$2:$E$59,2,FALSE))," ",VLOOKUP(K181,Proposito_programa!$C$2:$E$59,2,FALSE)) -> Movilidad social integral | M181: =IF(ISERROR(VLOOKUP(K181,Proposito_programa!$C$2:$E$59,3,FALSE))," ",VLOOKUP(K181,Proposito_programa!$C$2:$E$59,3,FALSE)) -> Propósito 1: Hacer un nuevo contrato social para incrementar la inclusión social, productiva y política | N181: O23011601060000002098 | O181: 0 | P181: 900778568-5 | Q181: INVERSIONES MPX SAS | R181: Persona Jurídica | S181: N/A | T181: N/A | U181: N/A | V181: 2022 | W181: 247296000 | AA181: 247296000 | AC181: 2022-12-28 | AD181: 29/12/222 | AE181: PEN | AF181: PEN | AM181: En ejecución | AN181: 0
A182: 171-2022 | B182: 2022 | C182: FDLM-SAMC-012-2022 (81200) | D182: https://community.secop.gov.co/Public/Tendering/OpportunityDetail/Index?noticeUID=CO1.NTC.3636529&isFromPublicArea=True&isModal=False | E182: Contratos de prestación de servicios | F182: Selección abreviada | G182: Selección abreviada por menor cuantía | H182: Contratar a precios unitarios fijos por la modalidad de monto agotable, las obras y actividades para la construcción y/o adecuación y/o conservación de jardinerías, coberturas verdes, muros verdes y techos verdes de la localidad de Los Mártires. | I182: Inversión | J182: Un nuevo contrato social y ambiental para la Bogotá del Siglo XXI | K182: 3 | L182: =IF(ISERROR(VLOOKUP(K182,Proposito_programa!$C$2:$E$59,2,FALSE))," ",VLOOKUP(K182,Proposito_programa!$C$2:$E$59,2,FALSE)) -> Movilidad social integral | M182: =IF(ISERROR(VLOOKUP(K182,Proposito_programa!$C$2:$E$59,3,FALSE))," ",VLOOKUP(K182,Proposito_programa!$C$2:$E$59,3,FALSE)) -> Propósito 1: Hacer un nuevo contrato social para incrementar la inclusión social, productiva y política | N182: O2-73-01-1605570000002099 | O182: 0 | P182: 900164390 | Q182: IMPULSAR FUNDACION SOCIAL | R182: Persona Natural | S182: N/A | T182: N/A | U182: N/A | V182: 2022 | W182: 232027000 | AA182: 232027000 | AC182: 2022-12-28 | AD182: 29/12/222 | AE182: PEN | AF182: PEN | AM182: En ejecución | AN182: 0
A183: 172-2022 | B183: 2022 | C183: FDLM-145-2022 (79791) | D183: https://community.secop.gov.co/Public/Tendering/OpportunityDetail/Index?noticeUID=CO1.NTC.3682123&isFromPublicArea=True&isModal=False | E183: Contratos de prestación de servicios profesionales y de apoyo a la gestión | F183: Contratación directa | G183: Prestación de servicios profesionales y de apoyo a la gestión, o para la ejecución de trabajos artísticos que sólo puedan encomendarse a determinadas personas naturales | H183: APOYAR LA FORMULACIÓN, GESTIÓN Y SEGUIMIENTO DE ACTIVIDADES ENFOCADAS A LA GESTIÓN AMBIENTAL EXTERNA, ENCAMINADAS A LA MITIGACIÓN DE LOS DIFERENTES IMPACTOS AMBIENTALES Y LA CONSERVACIÓN DE LOS RECURSOS NATURALES DE LA LOCALIDAD." | I183: Inversión | J183: Un nuevo contrato social y ambiental para la Bogotá del Siglo XXI | K183: 3 | L183: =IF(ISERROR(VLOOKUP(K183,Proposito_programa!$C$2:$E$59,2,FALSE))," ",VLOOKUP(K183,Proposito_programa!$C$2:$E$59,2,FALSE)) -> Movilidad social integral | M183: =IF(ISERROR(VLOOKUP(K183,Proposito_programa!$C$2:$E$59,3,FALSE))," ",VLOOKUP(K183,Proposito_programa!$C$2:$E$59,3,FALSE)) -> Propósito 1: Hacer un nuevo contrato social para incrementar la inclusión social, productiva y política | N183: O2-73-01-1605570000002099 | O183: 0 | P183: 1070611402 | Q183: LEIDY VIVIANA MARTINEZ RAMIREZ | R183: Persona Natural | S183: N/A | T183: N/A | U183: N/A | V183: 2022 | W183: 6018666 | AA183: 6018666 | AC183: 2022-12-28 | AD183: 29/12/222 | AE183: PEN | AF183: PEN | AM183: En ejecución | AN183: 0
A184: 173-2022 | B184: 2022 | C184: FDLM-146-2022 (81984) | D184: https://community.secop.gov.co/Public/Tendering/OpportunityDetail/Index?noticeUID=CO1.NTC.3682311&isFromPublicArea=True&isModal=False | E184: Contratos de prestación de servicios profesionales y de apoyo a la gestión | F184: Contratación directa | G184: Prestación de servicios profesionales y de apoyo a la gestión, o para la ejecución de trabajos artísticos que sólo puedan encomendarse a determinadas personas naturales | H184: PRESTAR LOS SERVICIOS PROFESIONALES ADMINISTRATIVOS AL FONDO DE DESARROLLO LOCAL EN EL FORTALECIMIENTO DE LAS ETAPAS DE LA GESTION PUBLICA CONTRACTUAL, EN CUMPLIMIENTO DEL PLAN DE DESARROLLO LOCAL VIGENTE | I184: Inversión | J184: Un nuevo contrato social y ambiental para la Bogotá del Siglo XXI | K184: 3 | L184: =IF(ISERROR(VLOOKUP(K184,Proposito_programa!$C$2:$E$59,2,FALSE))," ",VLOOKUP(K184,Proposito_programa!$C$2:$E$59,2,FALSE)) -> Movilidad social integral | M184: =IF(ISERROR(VLOOKUP(K184,Proposito_programa!$C$2:$E$59,3,FALSE))," ",VLOOKUP(K184,Proposito_programa!$C$2:$E$59,3,FALSE)) -> Propósito 1: Hacer un nuevo contrato social para incrementar la inclusión social, productiva y política | N184: O2-73-01-1605570000002099 | O184: 0 | P184: 1013596018 | Q184: JAIR ARMANDO MORA DIAZ | R184: Persona Natural | S184: N/A | T184: N/A | U184: N/A | V184: 2022 | W184: 4700000 | AA184: 4700000 | AC184: 2022-12-26 | AD184: 2022-12-27 | AE184: PEN | AF184: PEN | AM184: En ejecución | AN184: 0
A185: 174-2022 | B185: 2022 | C185: FDLM-SASI-013-2022 (81274) | D185: https://community.secop.gov.co/Public/Tendering/OpportunityDetail/Index?noticeUID=CO1.NTC.3620271&isFromPublicArea=True&isModal=False | E185: Arrendamiento de bienes inmuebles | F185: Selección abreviada | G185: Subasta inversa | H185: CONTRATAR A PRECIOS UNITARIOS FIJOS POR LA MODALIDAD DE MONTO AGOTABLE LOS BIENES PARA LA IMPLEMENTACIÓN Y EJECUCIÓN DE LOS PROYECTOS PEDAGÓGICOS DE LA LÍNEA DESARROLLO INTEGRAL DE LA PRIMERA INFANCIA Y LA RELACIÓN ESCUELA, FAMILIA Y COMUNIDAD, DENTRO DEL MARCO DEL DESARROLLO DEL PROYECTO DE INVERSION No 2047 DE LA VIGENCIA 2022 | I185: Funcionamiento | J185: Un nuevo contrato social y ambiental para la Bogotá del Siglo XXI | K185: No aplica | L185: =IF(ISERROR(VLOOKUP(K185,Proposito_programa!$C$2:$E$59,2,FALSE))," ",VLOOKUP(K185,Proposito_programa!$C$2:$E$59,2,FALSE)) ->  | M185: =IF(ISERROR(VLOOKUP(K185,Proposito_programa!$C$2:$E$59,3,FALSE))," ",VLOOKUP(K185,Proposito_programa!$C$2:$E$59,3,FALSE)) ->  | N185: O2-30-11-601-120000002047 | O185: 0 | P185: 900916649 | Q185: C I WARRIORS COMPANY SAS | R185: Persona Jurídica | S185: N/A | T185: N/A | U185: N/A | V185: 2022 | W185: 548093000 | AA185: 548093000 | AC185: 2022-12-28 | AD185: 2022-12-29 | AE185: PEN | AF185: PEN | AM185: En ejecución | AN185: 0
A186: 175-2022 | B186: 2022 | C186: FDLM-MC-011-2022 ( 84065 ) | D186: https://community.secop.gov.co/Public/Tendering/OpportunityDetail/Index?noticeUID=CO1.NTC.3659060&isFromPublicArea=True&isModal=False | E186: Contratos de prestación de servicios | F186: Selección abreviada | G186: Selección abreviada por menor cuantía | H186: CONTRATAR EL SERVICIO PARA LA TOMA FÍSICA, VERIFICACIÓN, CLASIFICACIÓN, Y ACTUALIZACIÓN DE LA INFORMACIÓN DE BIENES MUEBLES E INMUEBLES DE PROPIEDAD Y/O A CARGO DEL FONDO DE DESARROLLO LOCAL DE MÁRTIRES Y LA MEDICIÓN POSTERIOR, DETERIORO DE LOS BIENES CLASIFICADOS COMO PROPIEDAD, PLANTA Y EQUIPO, DE CONFORMIDAD CON LAS DISPOSICIONES LEGALES VIGENTES | I186: Inversión | J186: Un nuevo contrato social y ambiental para la Bogotá del Siglo XXI | K186: 3 | L186: =IF(ISERROR(VLOOKUP(K186,Proposito_programa!$C$2:$E$59,2,FALSE))," ",VLOOKUP(K186,Proposito_programa!$C$2:$E$59,2,FALSE)) -> Movilidad social integral | M186: =IF(ISERROR(VLOOKUP(K186,Proposito_programa!$C$2:$E$59,3,FALSE))," ",VLOOKUP(K186,Proposito_programa!$C$2:$E$59,3,FALSE)) -> Propósito 1: Hacer un nuevo contrato social para incrementar la inclusión social, productiva y política | N186: O2-30-11-60-5570000002099 | O186: 0 | P186: 900354279 | Q186: L&Q AUDITORES EXTERNOS S.A.S | R186: Persona Jurídica | S186: N/A | T186: N/A | U186: N/A | V186: 2022 | W186: 15155779 | AA186: 15155779 | AC186: 2022-12-19 | AD186: 2022-12-20 | AE186: PEN | AF186: PEN | AM186: En ejecución | AN186: 0
A187: 176-2022 | B187: 2022 | C187: FDLM-LP-003-2022 (79766) | D187: https://community.secop.gov.co/Public/Tendering/OpportunityDetail/Index?noticeUID=CO1.NTC.3609321&isFromPublicArea=True&isModal=False | E187: Obra pública | F187: Licitación pública | G187: No aplica | H187: Contratar los servicios para la construcción de ciudadanía y desarrollo de capacidades para el ejercicio de derechos de las mujeres así como en acciones para la prevención del feminicidio y la violencia contra la mujer. | I187: Funcionamiento | J187: Un nuevo contrato social y ambiental para la Bogotá del Siglo XXI | K187: No aplica | L187: =IF(ISERROR(VLOOKUP(K187,Proposito_programa!$C$2:$E$59,2,FALSE))," ",VLOOKUP(K187,Proposito_programa!$C$2:$E$59,2,FALSE)) ->  | M187: =IF(ISERROR(VLOOKUP(K187,Proposito_programa!$C$2:$E$59,3,FALSE))," ",VLOOKUP(K187,Proposito_programa!$C$2:$E$59,3,FALSE)) ->  | N187: 00-00-00-2089 | O187: 0 | P187: 8300956140 | Q187: FUNVIVE 2.0 | R187: Persona Jurídica | S187: N/A | T187: N/A | U187: N/A | V187: 2022 | W187: 593768000 | AA187: 593768000 | AC187: 2022-12-28 | AD187: 2022-12-29 | AE187: PEN | AF187: PEN | AM187: En ejecución | AN187: 0
A188: 177-2022 | B188: 2022 | C188: FDLM-CD-008-2022 (85246) | D188: https://community.secop.gov.co/Public/Tendering/OpportunityDetail/Index?noticeUID=CO1.NTC.3681621&isFromPublicArea=True&isModal=False | E188: Contratos de prestación de servicios profesionales y de apoyo a la gestión | F188: Contratación directa | G188: Prestación de servicios profesionales y de apoyo a la gestión, o para la ejecución de trabajos artísticos que sólo puedan encomendarse a determinadas personas naturales | H188: REALIZAR LOS ESTUDIOS Y DISEÑOS PARA EL EDIFICIO DE LA CASA DE LA CULTURA DE LA LOCALIDAD DE LOS MÁRTIRES. | I188: Funcionamiento | J188: Un nuevo contrato social y ambiental para la Bogotá del Siglo XXI | K188: No aplica | L188: =IF(ISERROR(VLOOKUP(K188,Proposito_programa!$C$2:$E$59,2,FALSE))," ",VLOOKUP(K188,Proposito_programa!$C$2:$E$59,2,FALSE)) ->  | M188: =IF(ISERROR(VLOOKUP(K188,Proposito_programa!$C$2:$E$59,3,FALSE))," ",VLOOKUP(K188,Proposito_programa!$C$2:$E$59,3,FALSE)) ->  | N188: 00-00-00-2089 | O188: 0 | P188: 899999230 | Q188: UNIVERSIDAD DISTRITAL FRANCISCO JOSE DE CALDAS | R188: Persona Jurídica | S188: N/A | T188: N/A | U188: N/A | V188: 2022 | W188: 390823000 | AA188: 390823000 | AC188: 2021-12-29 | AD188: PEN | AE188: PEN | AF188: PEN | AM188: En ejecución | AN188: 0
A189: 178-2022 | B189: 2022 | C189: FDLM-CMA-002-2022 (79741) | D189: https://community.secop.gov.co/Public/Tendering/OpportunityDetail/Index?noticeUID=CO1.NTC.3630422&isFromPublicArea=True&isModal=False | E189: Consultoría | F189: Concurso de méritos | G189: No aplica | H189: Realizar la interventoría técnica, administrativa, financiera, jurídica, social, ambiental y siso al contrato de obra pública que tendrá por objeto contratar los estudios y diseños de la malla vial de la localidad de los mártires | I189: Funcionamiento | J189: Un nuevo contrato social y ambiental para la Bogotá del Siglo XXI | K189: No aplica | L189: =IF(ISERROR(VLOOKUP(K189,Proposito_programa!$C$2:$E$59,2,FALSE))," ",VLOOKUP(K189,Proposito_programa!$C$2:$E$59,2,FALSE)) ->  | M189: =IF(ISERROR(VLOOKUP(K189,Proposito_programa!$C$2:$E$59,3,FALSE))," ",VLOOKUP(K189,Proposito_programa!$C$2:$E$59,3,FALSE)) ->  | N189: 00-00-00-2097 | O189: 0 | P189: 830515396 | Q189: PROYECTOS URBANOS Y CONSTRUCCIONES DEL CARIBE S.A.S. | R189: Persona Jurídica | S189: N/A | T189: N/A | U189: N/A | V189: 2022 | W189: 95588000 | AA189: 95588000 | AC189: 2021-12-29 | AD189: PEN | AE189: PEN | AF189: PEN | AM189: Celebrado o por iniciar | AN189: 0
A190: 179-2022 | B190: 2022 | C190: FDLM-CD-009-2022 (85523) | D190: https://community.secop.gov.co/Public/Tendering/OpportunityDetail/Index?noticeUID=CO1.NTC.3684947&isFromPublicArea=True&isModal=False | E190: Contratos de prestación de servicios profesionales y de apoyo a la gestión | F190: Contratación directa | G190: Prestación de servicios profesionales y de apoyo a la gestión, o para la ejecución de trabajos artísticos que sólo puedan encomendarse a determinadas personas naturales | H190: RESTAR LOS SERVICIOS PARA VINCULAR MINIMO 150 PERSONAS CON DISCAPACIDAD, CUIDADORES Y CUIDADORAS, EN ACTIVIDADES ALTERNATIVAS DE SALUD Y 124 PERSONAS A LAS ACCIONES DESARROLLADAS DESDE LOS DISPOSITIVOS DE BASE COMUNITARIA EN RESPUESTA AL CONSUMO DE SPA, EN LA LOCALIDAD DE LOS MARTIRES, EN CUMPLIMIENTO DEL PLAN DE DESARROLLO VIGENTE | I190: Funcionamiento | J190: Un nuevo contrato social y ambiental para la Bogotá del Siglo XXI | K190: No aplica | L190: =IF(ISERROR(VLOOKUP(K190,Proposito_programa!$C$2:$E$59,2,FALSE))," ",VLOOKUP(K190,Proposito_programa!$C$2:$E$59,2,FALSE)) ->  | M190: =IF(ISERROR(VLOOKUP(K190,Proposito_programa!$C$2:$E$59,3,FALSE))," ",VLOOKUP(K190,Proposito_programa!$C$2:$E$59,3,FALSE)) ->  | N190: 00-00-00-2089 | O190: 0 | P190: 901417108 | Q190: ALIANZA COLOMBIANA DE INSTITUCIONES PUBLICAS DE EDUCACION SUPERIOR RED SUMMA - CONSUMA SPA | R190: Persona Jurídica | S190: N/A | T190: N/A | U190: N/A | V190: 2022 | W190: 576058000 | AA190: 576058000 | AC190: 2021-12-29 | AD190: PEN | AE190: PEN | AF190: PEN | AM190: Celebrado o por iniciar | AN190: 0
A191: 180-2022 | B191: 2022 | C191: FDLM-CD-CCI-010-2022 | D191: https://community.secop.gov.co/Public/Tendering/OpportunityDetail/Index?noticeUID=CO1.NTC.3685669&isFromPublicArea=True&isModal=False | E191: Contratos de prestación de servicios profesionales y de apoyo a la gestión | F191: Contratación directa | G191: Prestación de servicios profesionales y de apoyo a la gestión, o para la ejecución de trabajos artísticos que sólo puedan encomendarse a determinadas personas naturales | H191: AUNAR ESFUERZOS PARA REALIZAR LA PLANEACIÓN, ORGANIZACIÓN, COORDINACIÓN Y EJECUCIÓN DE LAS ACCIONES DE FORTALECIMIENTO, REACTIVACIÓN, TRANSFORMACIÓN PRODUCTIVA DE MIPYMES Y EMPRENDIMIENTOS DE LA LOCALIDAD DE MÁRTIRES EN EL MARCO DEL PROYECTO 2060 LOCALIDAD EMPRENDEDORA Y SOSTENIBLE, SEGUN LOS ANEXOS TECNICOS Y DEMAS DOCUMENTOS QUE HACEN PARTE INTEGRAL DEL PRESENTE PROCESO | I191: Funcionamiento | J191: Un nuevo contrato social y ambiental para la Bogotá del Siglo XXI | K191: No aplica | L191: =IF(ISERROR(VLOOKUP(K191,Proposito_programa!$C$2:$E$59,2,FALSE))," ",VLOOKUP(K191,Proposito_programa!$C$2:$E$59,2,FALSE)) ->  | M191: =IF(ISERROR(VLOOKUP(K191,Proposito_programa!$C$2:$E$59,3,FALSE))," ",VLOOKUP(K191,Proposito_programa!$C$2:$E$59,3,FALSE)) ->  | N191: 00-00-00-2089 | O191: 0 | P191: 860403137 | Q191: ORGANIZACION DE ESTADOS IBEROAMERICANOS OEI | R191: Persona Jurídica | S191: N/A | T191: N/A | U191: N/A | V191: 2022 | W191: 1412120497 | AA191: 1412120497 | AC191: 2021-12-29 | AD191: PEN | AE191: PEN | AF191: PEN | AM191: Celebrado o por iniciar | AN191: 0
A192: 181-2022 | B192: 2022 | C192: FDLM-CD-011-2022 (85525) | D192: https://community.secop.gov.co/Public/Tendering/OpportunityDetail/Index?noticeUID=CO1.NTC.3689636&isFromPublicArea=True&isModal=False | E192: Contratos de prestación de servicios profesionales y de apoyo a la gestión | F192: Contratación directa | G192: Prestación de servicios profesionales y de apoyo a la gestión, o para la ejecución de trabajos artísticos que sólo puedan encomendarse a determinadas personas naturales | H192: VINCULAR PERSONAS DE LA LOCALIDAD DE LOS MÁRTIRES A LAS ACCIONES Y ESTRATEGIAS DE RECONOCIMIENTO DE LOS SABERES ANCESTRALES, EN MARCO DEL PROYECTO 2043- AYUDAS TECNICAS Y MEDICINA ANCESTRAL | I192: Funcionamiento | J192: Un nuevo contrato social y ambiental para la Bogotá del Siglo XXI | K192: No aplica | L192: =IF(ISERROR(VLOOKUP(K192,Proposito_programa!$C$2:$E$59,2,FALSE))," ",VLOOKUP(K192,Proposito_programa!$C$2:$E$59,2,FALSE)) ->  | M192: =IF(ISERROR(VLOOKUP(K192,Proposito_programa!$C$2:$E$59,3,FALSE))," ",VLOOKUP(K192,Proposito_programa!$C$2:$E$59,3,FALSE)) ->  | N192: O2-30-11-601-06-000000-2043 | O192: 0 | P192: 9003803030 | Q192: ASOCIACIÓN AFROCULTURAL NEFTALÍ MOSQUERA | R192: Persona Jurídica | S192: N/A | T192: N/A | U192: N/A | V192: 2022 | W192: 59000000 | AA192: 59000000 | AC192: 2021-12-29 | AD192: PEN | AE192: PEN | AF192: PEN | AM192: Celebrado o por iniciar | AN192: 0
A193: 182-2022 | B193: 2022 | C193: FDLM-CD-012-2022 (85526) | D193: https://community.secop.gov.co/Public/Tendering/OpportunityDetail/Index?noticeUID=CO1.NTC.3689635&isFromPublicArea=True&isModal=False | E193: Contratos de prestación de servicios profesionales y de apoyo a la gestión | F193: Contratación directa | G193: Prestación de servicios profesionales y de apoyo a la gestión, o para la ejecución de trabajos artísticos que sólo puedan encomendarse a determinadas personas naturales | H193: VINCULAR PERSONAS DE LA LOCALIDAD DE LOS MÁRTIRES A LAS ACCIONES Y ESTRATEGIAS DE RECONOCIMIENTO DE LOS SABERES ANCESTRALES, EN MARCO DEL PROYECTO 2043- AYUDAS TECNICAS Y MEDICINA ANCESTRAL | I193: Funcionamiento | J193: Un nuevo contrato social y ambiental para la Bogotá del Siglo XXI | K193: No aplica | L193: =IF(ISERROR(VLOOKUP(K193,Proposito_programa!$C$2:$E$59,2,FALSE))," ",VLOOKUP(K193,Proposito_programa!$C$2:$E$59,2,FALSE)) ->  | M193: =IF(ISERROR(VLOOKUP(K193,Proposito_programa!$C$2:$E$59,3,FALSE))," ",VLOOKUP(K193,Proposito_programa!$C$2:$E$59,3,FALSE)) ->  | N193: O2-30-11-601-06-000000-2043 | O193: 0 | P193: 830032429 | Q193: CABILDO INDIGENA INGA DE BOGOTA, D.C. | R193: Persona Jurídica | S193: N/A | T193: N/A | U193: N/A | V193: 2022 | W193: 59000000 | AA193: 59000000 | AC193: 2021-12-29 | AD193: PEN | AE193: PEN | AF193: PEN | AM193: Celebrado o por iniciar | AN193: 0
A194: 183-2022 | B194: 2022 | C194: FDLM-SAMC-011-2022 (79797) | D194: https://community.secop.gov.co/Public/Tendering/OpportunityDetail/Index?noticeUID=CO1.NTC.3650046&isFromPublicArea=True&isModal=False | E194: Contratos de prestación de servicios | F194: Selección abreviada | G194: Selección abreviada por menor cuantía | H194: PRESTAR LOS SERVICIOS PARA FORMULAR TRES (3) PROCESOS COMUNITARIOS DE EDUCACIÓN AMBIENTAL PROCEDA, EN LA LOCALIDAD DE LOS MÁRTIRES. | I194: Inversión | J194: Un nuevo contrato social y ambiental para la Bogotá del Siglo XXI | K194: 3 | L194: =IF(ISERROR(VLOOKUP(K194,Proposito_programa!$C$2:$E$59,2,FALSE))," ",VLOOKUP(K194,Proposito_programa!$C$2:$E$59,2,FALSE)) -> Movilidad social integral | M194: =IF(ISERROR(VLOOKUP(K194,Proposito_programa!$C$2:$E$59,3,FALSE))," ",VLOOKUP(K194,Proposito_programa!$C$2:$E$59,3,FALSE)) -> Propósito 1: Hacer un nuevo contrato social para incrementar la inclusión social, productiva y política | N194: O2-30-11-60-5570000002099 | O194: 0 | P194: 830089058 | Q194: FUNCITEG | R194: Persona Jurídica | S194: N/A | T194: N/A | U194: N/A | V194: 2022 | W194: 204999574 | AA194: 204999574 | AC194: 2021-12-29 | AD194: PEN | AE194: PEN | AF194: PEN | AM194: Celebrado o por iniciar | AN194: 0
A195: 184-2022 | B195: 2022 | C195: FDLM-SAMC-014-2022 (81235) | D195: https://community.secop.gov.co/Public/Tendering/OpportunityDetail/Index?noticeUID=CO1.NTC.3650046&isFromPublicArea=True&isModal=False | E195: Contratos de prestación de servicios | F195: Selección abreviada | G195: Selección abreviada por menor cuantía | H195: PRESTAR LOS SERVICIOS PARA LA IMPLEMENTACIÓN DE 3 ACCIONES DE FOMENTO PARA LA AGRICULTURA URBANA EN CUMPLIMIENTO DEL PLAN DE DESARROLLO LOCAL VIGENTE DE LA LOCALIDAD DE LOS MÁRTIRES | I195: Inversión | J195: Un nuevo contrato social y ambiental para la Bogotá del Siglo XXI | K195: 3 | L195: =IF(ISERROR(VLOOKUP(K195,Proposito_programa!$C$2:$E$59,2,FALSE))," ",VLOOKUP(K195,Proposito_programa!$C$2:$E$59,2,FALSE)) -> Movilidad social integral | M195: =IF(ISERROR(VLOOKUP(K195,Proposito_programa!$C$2:$E$59,3,FALSE))," ",VLOOKUP(K195,Proposito_programa!$C$2:$E$59,3,FALSE)) -> Propósito 1: Hacer un nuevo contrato social para incrementar la inclusión social, productiva y política | N195: O2-30-11-60-5570000002099 | O195: 0 | P195: 830133329 | Q195: FUNDESCO | R195: Persona Jurídica | S195: N/A | T195: N/A | U195: N/A | V195: 2022 | W195: 204999574 | AA195: 204999574 | AC195: 2021-12-29 | AD195: PEN | AE195: PEN | AF195: PEN | AM195: Celebrado o por iniciar | AN195: 0
A196: 185-2022 | B196: 2022 | C196: FDLM-CD-013-2022. | D196: https://community.secop.gov.co/Public/Tendering/OpportunityDetail/Index?noticeUID=CO1.NTC.3689683&isFromPublicArea=True&isModal=False | E196: Contratos de prestación de servicios profesionales y de apoyo a la gestión | F196: Contratación directa | G196: Prestación de servicios profesionales y de apoyo a la gestión, o para la ejecución de trabajos artísticos que sólo puedan encomendarse a determinadas personas naturales | H196: ANUAR ESFUERZOS PARA REALIZAR LA PLANEACIÓN, ORGANIZACIÓN, COORDINACIÓN Y EJECUCIÓN DE LAS ACCIONES DE FORTALECIMIENTO, REACTIVACIÓN, TRANSFORMACIÓN PRODUCTIVA Y REVITALIZACIÓN DE MIPYMES Y EMPRENDIMIENTOS DE LA LOCALIDAD DE MÁRTIRES EN EL MARCO DEL PROYECTO 2060 LOCALIDAD EMPRENDEDORA Y SOSTENIBLE, SEGUN LOS ANEXOS TECNICOS Y DEMAS DOCUMENTOS QUE HACEN PARTE INTEGRAL DEL PRESENTE PROCESO. | I196: Funcionamiento | J196: Un nuevo contrato social y ambiental para la Bogotá del Siglo XXI | K196: No aplica | L196: =IF(ISERROR(VLOOKUP(K196,Proposito_programa!$C$2:$E$59,2,FALSE))," ",VLOOKUP(K196,Proposito_programa!$C$2:$E$59,2,FALSE)) ->  | M196: =IF(ISERROR(VLOOKUP(K196,Proposito_programa!$C$2:$E$59,3,FALSE))," ",VLOOKUP(K196,Proposito_programa!$C$2:$E$59,3,FALSE)) ->  | N196: 00-00-00-2089 | O196: 0 | P196: 901100455 | Q196: ALDESARROLLO | R196: Persona Jurídica | S196: N/A | T196: N/A | U196: N/A | V196: 2022 | W196: 1412120497 | AA196: 1412120497 | AC196: 2021-12-29 | AD196: PEN | AE196: PEN | AF196: PEN | AM196: Celebrado o por iniciar | AN196: 0
A197: OC 86551 | B197: 2022 | C197: OC 86551 | D197: https://colombiacompra.gov.co/tienda-virtual-del-estado-colombiano/ordenes-compra/86551 | E197: Compraventa de bienes muebles | F197: Selección abreviada | G197: Acuerdo marco de precios | H197: ORDEN DE COMPRA POR ACUERDO MARCO DE PRECIOS PARA ADQUIRIR LOS SERVICIOS DE ASEO Y CAFETERIA FDLM. | I197: Funcionamiento | J197: Un nuevo contrato social y ambiental para la Bogotá del Siglo XXI | K197: No aplica | L197: =IF(ISERROR(VLOOKUP(K197,Proposito_programa!$C$2:$E$59,2,FALSE))," ",VLOOKUP(K197,Proposito_programa!$C$2:$E$59,2,FALSE)) ->  | M197: =IF(ISERROR(VLOOKUP(K197,Proposito_programa!$C$2:$E$59,3,FALSE))," ",VLOOKUP(K197,Proposito_programa!$C$2:$E$59,3,FALSE)) ->  | N197: 13-1020202030502 | O197: 0 | P197: 9002295032 | Q197: OUTSOURCING SEASIN LTDA | R197: Persona Jurídica | S197: N/A | T197: N/A | U197: N/A | V197: 2022 | W197: 72507494 | Y197: 1 | Z197: 17344880 | AA197: 89852374 | AB197: 72507494 | AC197: 2022-08-10 | AD197: 2022-08-11 | AE197: 2022-12-22 | AF197: 12 Meses | AG197: 1 | AH197: TRES MESES | AM197: En ejecución | AN197: 0.8069624738
A198: OC 93938 | B198: 2022 | C198: OC 93938 | D198: https://colombiacompra.gov.co/tienda-virtual-del-estado-colombiano/ordenes-compra/93938 | E198: Compraventa de bienes muebles | F198: Selección abreviada | G198: Acuerdo marco de precios | H198: La compraventa de licencias atraves de la plataforma de la tienda virtual del estado colombiano por instrumento de agregación de demanda para la adquisición de software por catalogo que requieren las entidades estatales CCE139-IAD-2020 | I198: Funcionamiento | J198: Un nuevo contrato social y ambiental para la Bogotá del Siglo XXI | K198: No aplica | L198: =IF(ISERROR(VLOOKUP(K198,Proposito_programa!$C$2:$E$59,2,FALSE))," ",VLOOKUP(K198,Proposito_programa!$C$2:$E$59,2,FALSE)) ->  | M198: =IF(ISERROR(VLOOKUP(K198,Proposito_programa!$C$2:$E$59,3,FALSE))," ",VLOOKUP(K198,Proposito_programa!$C$2:$E$59,3,FALSE)) ->  | N198: 21201010050203/0101 | O198: 0 | P198: 901399373 | Q198: UNION TEMPORAL DELL EMC | R198: Unión Temporal | S198: N/A | T198: UNION TEMPORAL DELL EMC | U198: 0.5 | V198: 2022 | W198: 69022800 | AA198: 69022800 | AC198: 2022-07-26 | AD198: 2022-07-27 | AE198: 2022-09-30 | AF198: 2 Meses | AM198: En ejecución | AN198: 0
A199: OC 94581 | B199: 2022 | C199: OC 94581 | D199: https://colombiacompra.gov.co/tienda-virtual-del-estado-colombiano/ordenes-compra/94581 | E199: Compraventa de bienes muebles | F199: Selección abreviada | G199: Acuerdo marco de precios | H199: SUMINISTRO DE COMBUSTIBLE PARA LAS PLANTAS ELECTRICAS Y LOS VEHICULOS PERTENECIENTES AL PARQUE AUTOMOTOR DEL FONDO DE DESARROLLO LOCAL DE LOS MARTIRES | I199: Funcionamiento | J199: Un nuevo contrato social y ambiental para la Bogotá del Siglo XXI | K199: No aplica | L199: =IF(ISERROR(VLOOKUP(K199,Proposito_programa!$C$2:$E$59,2,FALSE))," ",VLOOKUP(K199,Proposito_programa!$C$2:$E$59,2,FALSE)) ->  | M199: =IF(ISERROR(VLOOKUP(K199,Proposito_programa!$C$2:$E$59,3,FALSE))," ",VLOOKUP(K199,Proposito_programa!$C$2:$E$59,3,FALSE)) ->  | N199: 0212020100303333/1101 | O199: 0 | P199: 811009788 | Q199: DISTRACOM | R199: Persona Jurídica | S199: N/A | T199: CONSORCIO INTERARES/NICK RANDY ALMEIDA GAMARRA | U199: 0.3 | V199: 2022 | W199: 13000000 | AA199: 13000000 | AC199: 2022-08-10 | AD199: 2022-08-11 | AE199: 2023-02-16 | AF199: 7 Meses | AM199: En ejecución | AN199: 0
A200: OC 94996 | B200: 2022 | C200: OC 94996 | D200: https://colombiacompra.gov.co/tienda-virtual-del-estado-colombiano/ordenes-compra/94996 | E200: Compraventa de bienes muebles | F200: Selección abreviada | G200: Acuerdo marco de precios | H200: Seguros Generales (Servicios de seguros de vehículos automotores, Servicios de seguros contra incendio, terremoto o sustracción, Servicios de seguros generales de responsabilidad civil) | I200: Funcionamiento | J200: Un nuevo contrato social y ambiental para la Bogotá del Siglo XXI | K200: No aplica | L200: =IF(ISERROR(VLOOKUP(K200,Proposito_programa!$C$2:$E$59,2,FALSE))," ",VLOOKUP(K200,Proposito_programa!$C$2:$E$59,2,FALSE)) ->  | M200: =IF(ISERROR(VLOOKUP(K200,Proposito_programa!$C$2:$E$59,3,FALSE))," ",VLOOKUP(K200,Proposito_programa!$C$2:$E$59,3,FALSE)) ->  | N200: O212020200701030571351 | O200: 0 | P200: 860524654 | Q200: ASEGURADORA SOLIDARIA DE COLOMBIA LTD | R200: Persona Jurídica | S200: N/A | T200: CONSORCIO DISEÑOS VIALES MARTIRES | U200: 0.3 | V200: 2022 | W200: 23937455 | AA200: 23937455 | AC200: 2022-08-23 | AD200: 2022-08-24 | AE200: 2023-08-05 | AF200: 331 Dias | AM200: En ejecución | AN200: 0
A201: OC103287 | B201: 2022 | C201: OC 103287 | D201: https://colombiacompra.gov.co/tienda-virtual-del-estado-colombiano/ordenes-compra/103287 | E201: Compraventa de bienes muebles | F201: Selección abreviada | G201: Acuerdo marco de precios | H201: CONTRATAR A PRECIOS UNITARIOS FIJOS Y A MONTO AGOTABLE EL SUMINISTRO DE ELEMENTOS Y SERVICIOS PARA LAS INTERVENCIONES EN EL MARCO DE LA ESTRATEGIA JUNTOS CUIDAMOS BOGOTÁ “CONSERVACION DEL ESPACIO PUBLICO” DEL PROYECTO 2097 DEL PLAN DE DESARROLLO LOCAL DE LOS MÁRTIRES 2021-2022 | I201: Funcionamiento | J201: Un nuevo contrato social y ambiental para la Bogotá del Siglo XXI | K201: No aplica | L201: =IF(ISERROR(VLOOKUP(K201,Proposito_programa!$C$2:$E$59,2,FALSE))," ",VLOOKUP(K201,Proposito_programa!$C$2:$E$59,2,FALSE)) ->  | M201: =IF(ISERROR(VLOOKUP(K201,Proposito_programa!$C$2:$E$59,3,FALSE))," ",VLOOKUP(K201,Proposito_programa!$C$2:$E$59,3,FALSE)) ->  | N201: N/A | O201: 0 | P201: 900117244 | Q201: ARINTIA GROUP S.A.S | R201: Persona Jurídica | S201: N/A | T201: N/A | U201: N/A | V201: 2022 | W201: 28000000 | AA201: 28000000 | AC201: 2021-12-29 | AD201: PEN | AE201: PEN | AF201: PEN | AM201: Celebrado o por iniciar | AN201: 0
A202: OC103387 | B202: 2022 | C202: OC103387 | D202: https://colombiacompra.gov.co/tienda-virtual-del-estado-colombiano/ordenes-compra/103387 | E202: Compraventa de bienes muebles | F202: Selección abreviada | G202: Acuerdo marco de precios | H202: Adquirir una (1) impresora para la elaboración de carnet de identificación para funcionarios y contratistas | I202: Funcionamiento | J202: Un nuevo contrato social y ambiental para la Bogotá del Siglo XXI | K202: No aplica | L202: =IF(ISERROR(VLOOKUP(K202,Proposito_programa!$C$2:$E$59,2,FALSE))," ",VLOOKUP(K202,Proposito_programa!$C$2:$E$59,2,FALSE)) ->  | M202: =IF(ISERROR(VLOOKUP(K202,Proposito_programa!$C$2:$E$59,3,FALSE))," ",VLOOKUP(K202,Proposito_programa!$C$2:$E$59,3,FALSE)) ->  | N202: N/A | O202: 0 | P202: 830037946 | Q202: PANAMERICANA LIBRERIA Y PAPELERIA S.A. - ADQ MAQUINA DE CARNET | R202: Persona Jurídica | S202: N/A | T202: N/A | U202: N/A | V202: 2022 | W202: 13090000 | AA202: 13090000 | AC202: 2021-12-29 | AD202: PEN | AE202: PEN | AF202: PEN | AM202: Celebrado o por iniciar | AN202: 0
... 6 more rows

Sheet Proposito_programa
B2: PDD | C2: No. Programa | D2: Programa | E2: Propósito
A3: Acuerdo 761 2020 | B3: Un Nuevo Contrato Social y Ambiental para la Bogotá del Siglo XXI | C3: 1 | D3: Subsidios y transferencias para la equidad | E3: Propósito 1: Hacer un nuevo contrato social para incrementar la inclusión social, productiva y política
A4: Pag. 51 | B4: Un Nuevo Contrato Social y Ambiental para la Bogotá del Siglo XXI | C4: =+C3+1 -> 2 | D4: Igualdad de oportunidades y desarrollo de capacidades para las mujeres | E4: Propósito 1: Hacer un nuevo contrato social para incrementar la inclusión social, productiva y política
B5: Un Nuevo Contrato Social y Ambiental para la Bogotá del Siglo XXI | C5: =+C4+1 -> 3 | D5: Movilidad social integral | E5: Propósito 1: Hacer un nuevo contrato social para incrementar la inclusión social, productiva y política
B6: Un Nuevo Contrato Social y Ambiental para la Bogotá del Siglo XXI | C6: 4 | D6: Prevención de la exclusión por razones étnicas, religiosas, sociales, políticas y de orientación sexual | E6: Propósito 1: Hacer un nuevo contrato social para incrementar la inclusión social, productiva y política
B7: Un Nuevo Contrato Social y Ambiental para la Bogotá del Siglo XXI | C7: 5 | D7: Promoción de la igualdad, el desarrollo de capacidades y el reconocimiento de las mujeres | E7: Propósito 1: Hacer un nuevo contrato social para incrementar la inclusión social, productiva y política
B8: Un Nuevo Contrato Social y Ambiental para la Bogotá del Siglo XXI | C8: 6 | D8: Sistema Distrital de Cuidado | E8: Propósito 1: Hacer un nuevo contrato social para incrementar la inclusión social, productiva y política
B9: Un Nuevo Contrato Social y Ambiental para la Bogotá del Siglo XXI | C9: 7 | D9: Mejora de la gestión de instituciones de salud | E9: Propósito 1: Hacer un nuevo contrato social para incrementar la inclusión social, productiva y política
B10: Un Nuevo Contrato Social y Ambiental para la Bogotá del Siglo XXI | C10: 8 | D10: Prevención y atención de maternidad temprana | E10: Propósito 1: Hacer un nuevo contrato social para incrementar la inclusión social, productiva y política
B11: Un Nuevo Contrato Social y Ambiental para la Bogotá del Siglo XXI | C11: 9 | D11: Prevención y cambios para mejorar la salud de la población | E11: Propósito 1: Hacer un nuevo contrato social para incrementar la inclusión social, productiva y política
B12: Un Nuevo Contrato Social y Ambiental para la Bogotá del Siglo XXI | C12: 10 | D12: Salud para la vida y el bienestar | E12: Propósito 1: Hacer un nuevo contrato social para incrementar la inclusión social, productiva y política
B13: Un Nuevo Contrato Social y Ambiental para la Bogotá del Siglo XXI | C13: 11 | D13: Salud y bienestar para niñas y niños | E13: Propósito 1: Hacer un nuevo contrato social para incrementar la inclusión social, productiva y política
B14: Un Nuevo Contrato Social y Ambiental para la Bogotá del Siglo XXI | C14: 12 | D14: Educación inicial: Bases sólidas para la vida. | E14: Propósito 1: Hacer un nuevo contrato social para incrementar la inclusión social, productiva y política
B15: Un Nuevo Contrato Social y Ambiental para la Bogotá del Siglo XXI | C15: 13 | D15: Educación para todos y todas: acceso y permanencia con equidad y énfasis en educación rural | E15: Propósito 1: Hacer un nuevo contrato social para incrementar la inclusión social, productiva y política
B16: Un Nuevo Contrato Social y Ambiental para la Bogotá del Siglo XXI | C16: 14 | D16: Formación integral: más y mejor tiempo en los colegios | E16: Propósito 1: Hacer un nuevo contrato social para incrementar la inclusión social, productiva y política
B17: Un Nuevo Contrato Social y Ambiental para la Bogotá del Siglo XXI | C17: 15 | D17: Plan Distrital de Lectura, Escritura y Oralidad: "Leer para la vida" | E17: Propósito 1: Hacer un nuevo contrato social para incrementar la inclusión social, productiva y política
B18: Un Nuevo Contrato Social y Ambiental para la Bogotá del Siglo XXI | C18: 16 | D18: Transformación pedagógica y mejoramiento de la gestión educativa. Es con los maestros y maestras. | E18: Propósito 1: Hacer un nuevo contrato social para incrementar la inclusión social, productiva y política
B19: Un Nuevo Contrato Social y Ambiental para la Bogotá del Siglo XXI | C19: 17 | D19: Jóvenes con capacidades: Proyecto de vida para la ciudadanía, la innovación y el trabajo del siglo XXI | E19: Propósito 1: Hacer un nuevo contrato social para incrementar la inclusión social, productiva y política
B20: Un Nuevo Contrato Social y Ambiental para la Bogotá del Siglo XXI | C20: 18 | D20: Cierre de brechas para la inclusión productiva urbano rural | E20: Propósito 1: Hacer un nuevo contrato social para incrementar la inclusión social, productiva y política
B21: Un Nuevo Contrato Social y Ambiental para la Bogotá del Siglo XXI | C21: 19 | D21: Vivienda y entornos dignos en el territorio urbano y rural | E21: Propósito 1: Hacer un nuevo contrato social para incrementar la inclusión social, productiva y política
B22: Un Nuevo Contrato Social y Ambiental para la Bogotá del Siglo XXI | C22: 20 | D22: Bogotá, referente en cultura, deporte, recreación y actividad física, con parques para el desarrollo y la salud | E22: Propósito 1: Hacer un nuevo contrato social para incrementar la inclusión social, productiva y política
B23: Un Nuevo Contrato Social y Ambiental para la Bogotá del Siglo XXI | C23: 21 | D23: Creación y vida cotidiana: Apropiación ciudadana del arte, la cultura y el patrimonio, para la democracia cultural | E23: Propósito 1: Hacer un nuevo contrato social para incrementar la inclusión social, productiva y política
B24: Un Nuevo Contrato Social y Ambiental para la Bogotá del Siglo XXI | C24: 22 | D24: Transformación cultural para la conciencia ambiental y el cuidado de la fauna doméstica | E24: Propósito 1: Hacer un nuevo contrato social para incrementar la inclusión social, productiva y política
